{"text_format":"1","workbook":"xlsx","n_sheets":4,"sheets":["Cerere de Finantare","Anexa 1","Anexa 2","Anexa 3"],"not_rendered":{"charts":0,"images":1,"macros":1,"external_links":0,"defined_names":0,"comments":0,"pivot_tables":0},"unopened":[],"bounds":{"document_bytes":16777216,"sheet_cells":100000,"rows_first":2000,"rows_last":500,"rows_between":2000,"halvings":0,"cell_chars":16384,"cell_head_chars":4096},"cells_cut":0,"cells_raw":0,"read":"whole","date_system":"1900"}

{"sheet":"Cerere de Finantare","index":0,"n_rows":859,"n_cols":57,"rows_kept":859,"cut":false,"hidden":false,"merged":[[672,0,672,3],[672,4,672,41],[576,0,576,43],[584,3,584,17],[584,18,584,22],[584,23,584,40],[584,41,584,47],[584,48,584,54],[584,55,584,60],[703,0,703,29],[703,35,703,41],[703,42,703,49],[703,50,703,54],[703,55,703,60],[704,0,704,29],[705,0,705,29],[698,0,698,29],[698,35,698,41],[698,42,698,49],[698,50,698,54],[698,55,698,60],[699,0,699,29],[699,35,699,41],[699,42,699,49],[699,50,699,54],[699,55,699,60],[258,19,258,41],[258,42,258,48],[258,49,258,55],[259,1,259,13],[259,14,259,18],[259,19,259,41],[259,42,259,48],[259,49,259,55],[260,1,260,13],[260,14,260,18],[260,19,260,41],[260,42,260,48],[260,49,260,55],[667,42,667,50],[663,0,663,3],[663,4,663,41],[663,42,663,50],[663,51,663,60],[260,56,262,59],[261,1,261,13],[261,14,261,18],[261,19,261,41],[261,42,261,48],[261,49,261,55],[262,1,262,13],[171,28,172,35],[246,0,246,60],[252,1,253,13],[252,14,252,55],[252,56,253,59],[253,14,253,18],[253,19,253,41],[253,42,253,48],[253,49,253,55],[254,1,254,13],[254,14,254,18],[254,19,254,41],[254,42,254,48],[254,49,254,55],[254,56,255,59],[255,1,255,13],[255,14,255,18],[255,19,255,41],[255,42,255,48],[255,49,255,55],[198,0,244,59],[247,2,248,60],[192,1,192,9],[191,36,191,44],[188,1,188,37],[189,1,189,19],[189,22,189,39],[189,42,189,58],[190,1,190,19],[190,22,190,39],[190,42,190,58],[191,1,191,9],[640,0,640,60],[641,0,641,60],[676,0,676,44],[649,0,649,3],[649,4,649,41],[649,42,649,50],[649,51,649,60],[650,0,650,3],[650,4,650,41],[650,42,650,50],[650,51,650,60],[664,0,664,3],[664,4,664,41],[664,42,664,50],[664,51,664,60],[661,0,661,3],[661,4,661,41],[661,42,661,50],[661,51,661,60],[662,0,662,3],[662,4,662,41],[662,42,662,50],[662,51,662,60],[667,0,667,3],[667,4,667,41],[585,0,585,2],[585,3,585,17],[585,18,585,22],[585,23,585,40],[585,41,585,47],[585,48,585,54],[585,55,585,60],[599,0,599,60],[600,0,600,60],[653,0,653,3],[653,4,653,41],[653,42,653,50],[653,51,653,60],[652,0,652,3],[652,4,652,41],[652,42,652,50],[652,51,652,60],[647,0,647,3],[647,4,647,41],[647,42,647,50],[647,51,647,60],[636,7,636,41],[586,41,586,47],[586,48,586,54],[586,55,586,60],[604,42,604,50],[604,51,604,60],[605,0,605,3],[605,4,605,41],[605,42,605,50],[605,51,605,60],[606,0,606,3],[584,0,584,2],[648,0,648,3],[648,4,648,41],[648,42,648,50],[648,51,648,60],[654,0,654,3],[654,4,654,41],[654,42,654,50],[654,51,654,60],[655,0,655,3],[655,4,655,41],[655,42,655,50],[655,51,655,60],[651,0,651,3],[651,4,651,41],[651,42,651,50],[651,51,651,60],[645,4,645,41],[645,42,645,50],[645,51,645,60],[646,0,646,3],[646,4,646,41],[646,42,646,50],[646,51,646,60],[642,0,642,60],[594,7,594,41],[589,23,589,40],[589,41,589,47],[589,48,589,54],[589,55,589,60],[604,0,604,3],[604,4,604,41],[580,48,580,54],[580,55,580,60],[581,0,581,2],[581,3,581,17],[581,18,581,22],[581,23,581,40],[581,41,581,47],[586,0,586,2],[586,3,586,17],[586,18,586,22],[586,23,586,40],[658,0,658,60],[659,0,659,3],[659,4,659,41],[659,42,659,50],[659,51,659,60],[596,42,596,50],[596,51,596,60],[597,7,597,60],[598,0,598,60],[590,23,590,40],[590,41,590,47],[590,48,590,54],[590,55,590,60],[587,0,587,60],[588,0,588,22],[588,23,588,60],[589,0,589,22],[590,0,590,22],[636,42,637,60],[637,7,637,41],[645,0,645,3],[660,0,660,60],[656,0,656,41],[656,42,656,60],[657,0,657,3],[657,4,657,41],[657,42,657,50],[657,51,657,60],[643,0,643,60],[644,0,644,3],[644,4,644,41],[644,42,644,50],[644,51,644,60],[638,7,638,41],[638,42,638,50],[638,51,638,60],[639,7,639,60],[672,42,672,50],[672,51,672,60],[670,0,670,3],[670,4,670,41],[670,42,670,50],[670,51,670,60],[669,0,669,3],[669,4,669,41],[669,42,669,50],[669,51,669,60],[665,0,665,3],[665,4,665,41],[665,42,665,50],[665,51,665,60],[666,0,666,3],[666,4,666,41],[666,42,666,50],[666,51,666,60],[668,0,668,3],[668,4,668,41],[668,42,668,50],[668,51,668,60],[667,51,667,60],[574,0,574,41],[574,42,574,60],[571,0,571,3],[571,4,571,41],[571,42,571,50],[571,51,571,60],[572,0,572,41],[572,42,572,50],[572,51,572,60],[567,0,567,3],[567,4,567,41],[567,42,567,50],[567,51,567,60],[573,0,573,41],[573,42,573,50],[573,51,573,60],[568,0,568,3],[568,4,568,41],[568,42,568,50],[568,51,568,60],[569,0,569,3],[569,4,569,41],[569,42,569,50],[569,51,569,60],[570,0,570,3],[570,4,570,41],[570,42,570,50],[570,51,570,60],[564,0,564,3],[564,4,564,41],[564,42,564,50],[564,51,564,60],[565,0,565,3],[565,4,565,41],[565,42,565,50],[565,51,565,60],[566,0,566,60],[561,0,561,3],[561,4,561,41],[561,42,561,50],[561,51,561,60],[562,0,562,3],[562,4,562,41],[562,42,562,50],[562,51,562,60],[563,0,563,60],[559,0,559,3],[559,4,559,41],[559,42,559,50],[559,51,559,60],[560,0,560,3],[560,4,560,41],[560,42,560,50],[560,51,560,60],[557,0,557,3],[557,4,557,41],[557,42,557,50],[557,51,557,60],[558,0,558,3],[558,4,558,41],[558,42,558,50],[558,51,558,60],[510,0,510,42],[546,7,546,41],[547,7,547,41],[547,42,548,60],[548,7,548,41],[549,7,549,41],[549,42,549,50],[549,51,549,60],[555,0,555,41],[555,42,555,50],[555,51,555,60],[556,0,556,41],[556,42,556,50],[556,51,556,60],[550,7,550,60],[551,0,551,60],[554,4,554,41],[554,42,554,60],[487,42,487,50],[488,42,488,50],[489,42,489,50],[490,42,490,50],[491,42,491,50],[492,42,492,50],[486,51,486,60],[487,51,487,60],[488,51,488,60],[489,51,489,60],[490,51,490,60],[491,51,491,60],[492,51,492,60],[487,0,487,3],[488,0,488,3],[489,0,489,3],[490,0,490,3],[491,0,491,3],[492,0,492,3],[486,4,486,41],[487,4,487,41],[488,4,488,41],[499,0,499,3],[499,42,499,50],[499,51,499,60],[499,4,499,41],[505,4,505,41],[495,0,495,3],[495,42,495,50],[495,51,495,60],[472,42,472,50],[464,7,464,41],[464,42,464,50],[464,51,464,60],[465,7,465,60],[466,0,466,60],[467,0,467,60],[470,0,470,3],[470,4,470,41],[470,42,470,50],[470,51,470,60],[468,0,468,60],[469,0,469,3],[469,4,469,41],[469,42,469,50],[469,51,469,60],[471,0,471,3],[471,4,471,41],[471,42,471,50],[471,51,471,60],[472,51,472,60],[473,0,473,3],[473,4,473,41],[473,42,473,50],[473,51,473,60],[474,0,474,3],[474,4,474,41],[474,42,474,50],[474,51,474,60],[484,0,484,3],[484,4,484,41],[484,42,484,50],[485,0,485,3],[485,4,485,41],[484,51,484,60],[485,42,485,50],[485,51,485,60],[486,0,486,3],[486,42,486,50],[477,4,477,41],[483,42,483,50],[483,51,483,60],[483,4,483,41],[495,4,495,41],[498,4,498,41],[489,4,489,41],[490,4,490,41],[491,4,491,41],[492,4,492,41],[477,42,477,50],[477,51,477,60],[478,4,478,41],[478,42,478,50],[478,51,478,60],[475,0,475,3],[475,4,475,41],[475,42,475,50],[475,51,475,60],[476,4,476,41],[476,42,476,50],[476,51,476,60],[501,51,501,60],[500,4,500,41],[501,4,501,41],[502,4,502,41],[503,4,503,41],[504,4,504,41],[503,42,503,50],[504,42,504,50],[503,51,503,60],[504,51,504,60],[502,0,502,3],[502,42,502,50],[502,51,502,60],[472,0,472,3],[472,4,472,41],[481,4,481,41],[481,42,481,50],[481,51,481,60],[482,4,482,41],[482,42,482,50],[482,51,482,60],[479,4,479,41],[479,42,479,50],[479,51,479,60],[480,0,480,3],[480,4,480,41],[480,42,480,50],[480,51,480,60],[498,0,498,3],[498,42,498,50],[498,51,498,60],[483,0,483,3],[534,0,534,3],[507,4,507,41],[507,42,507,50],[507,51,507,60],[508,0,508,41],[508,42,508,60],[497,4,497,41],[497,42,497,50],[497,51,497,60],[493,0,493,3],[493,4,493,41],[493,42,493,50],[493,51,493,60],[494,0,494,3],[494,4,494,41],[494,42,494,50],[494,51,494,60],[506,0,506,3],[506,4,506,41],[506,42,506,50],[506,51,506,60],[496,4,496,41],[496,42,496,50],[496,51,496,60],[505,0,505,3],[505,42,505,50],[505,51,505,60],[500,0,500,3],[500,42,500,50],[500,51,500,60],[501,0,501,3],[501,42,501,50],[516,7,516,60],[539,0,539,3],[534,4,534,41],[536,4,536,41],[534,42,534,50],[536,42,536,50],[537,42,537,50],[538,42,538,50],[539,42,539,50],[540,42,540,50],[534,51,534,60],[536,51,536,60],[537,51,537,60],[538,51,538,60],[539,51,539,60],[540,51,540,60],[520,0,520,3],[520,4,520,41],[530,4,530,41],[530,42,530,50],[530,51,530,60],[531,0,531,3],[531,4,531,41],[531,42,531,50],[531,51,531,60],[537,4,537,41],[538,4,538,41],[539,4,539,41],[533,0,533,3],[533,4,533,41],[533,42,533,50],[533,51,533,60],[364,0,364,34],[364,35,364,43],[364,44,364,51],[364,52,364,60],[365,0,365,34],[365,35,365,43],[365,44,365,51],[512,7,512,41],[461,7,461,41],[462,7,462,41],[462,42,463,60],[463,7,463,41],[523,4,523,41],[523,42,523,50],[523,51,523,60],[524,4,524,41],[524,42,524,50],[524,51,524,60],[521,42,521,50],[521,51,521,60],[522,42,522,50],[522,51,522,60],[520,42,520,60],[522,0,522,41],[518,0,518,60],[519,0,519,60],[513,7,513,41],[513,42,514,60],[514,7,514,41],[515,7,515,41],[515,42,515,50],[515,51,515,60],[359,35,359,43],[359,44,359,51],[359,52,359,60],[362,0,362,34],[362,35,362,43],[362,44,362,51],[362,52,362,60],[536,0,536,3],[541,42,541,50],[541,51,541,60],[352,35,352,43],[264,1,264,15],[381,0,381,34],[381,35,381,43],[381,44,381,51],[381,52,381,60],[382,0,382,34],[382,35,382,43],[382,44,382,51],[382,52,382,60],[383,0,383,34],[383,35,383,43],[383,44,383,51],[383,52,383,60],[384,0,384,34],[384,35,384,43],[384,44,384,51],[384,52,384,60],[363,0,363,34],[363,35,363,43],[363,44,363,51],[363,52,363,60],[328,1,328,15],[343,0,343,34],[343,35,343,43],[343,44,343,51],[343,52,343,60],[347,0,347,34],[347,35,347,43],[347,44,347,51],[347,52,347,60],[349,0,349,34],[349,35,349,43],[349,44,349,51],[349,52,349,60],[348,0,348,34],[348,35,348,43],[348,44,348,51],[348,52,348,60],[330,44,330,51],[330,52,330,60],[331,0,331,60],[333,15,333,21],[333,22,333,27],[333,30,333,45],[333,47,333,56],[335,0,335,34],[335,35,335,43],[335,44,335,51],[335,52,335,60],[336,0,336,34],[336,35,336,43],[336,44,336,51],[336,52,336,60],[409,0,409,34],[409,35,409,43],[409,44,409,51],[409,52,409,60],[410,0,410,34],[410,35,410,43],[410,44,410,51],[410,52,410,60],[411,0,411,31],[411,35,411,42],[411,44,411,60],[412,0,412,34],[412,35,412,43],[412,44,412,60],[413,0,413,30],[413,35,413,43],[413,44,413,60],[405,0,405,34],[405,35,405,43],[405,44,405,51],[405,52,405,60],[406,0,406,34],[406,35,406,43],[406,44,406,51],[406,52,406,60],[407,0,407,13],[407,15,407,34],[407,35,407,43],[407,44,407,51],[407,52,407,60],[408,0,408,13],[408,15,408,34],[408,35,408,43],[408,44,408,51],[408,52,408,60],[400,0,400,34],[400,35,400,43],[400,44,400,51],[400,52,400,60],[401,0,401,34],[401,35,401,43],[401,44,401,51],[401,52,401,60],[402,0,402,34],[402,35,402,43],[402,44,402,51],[402,52,402,60],[403,0,403,34],[403,35,403,43],[403,44,403,51],[403,52,403,60],[404,0,404,34],[404,35,404,43],[404,44,404,51],[404,52,404,60],[395,0,395,34],[395,35,395,43],[395,44,395,51],[395,52,395,60],[396,0,396,34],[396,35,396,43],[396,44,396,51],[396,52,396,60],[397,0,397,34],[397,35,397,43],[397,44,397,51],[397,52,397,60],[398,0,398,34],[398,35,398,60],[399,0,399,34],[399,35,399,43],[399,44,399,51],[399,52,399,60],[390,0,390,34],[390,35,390,43],[390,44,390,51],[390,52,390,60],[391,0,391,34],[391,35,391,43],[391,44,391,51],[391,52,391,60],[392,0,392,34],[392,35,392,43],[392,44,392,51],[392,52,392,60],[393,0,393,17],[393,35,393,60],[394,0,394,34],[394,35,394,43],[394,44,394,51],[394,52,394,60],[379,0,379,34],[379,35,379,43],[379,44,379,51],[379,52,379,60],[380,0,380,34],[380,35,380,43],[380,44,380,51],[380,52,380,60],[388,0,388,34],[388,35,388,43],[388,44,388,51],[388,52,388,60],[387,0,387,34],[387,35,387,43],[387,44,387,51],[387,52,387,60],[389,0,389,34],[389,35,389,43],[389,44,389,51],[389,52,389,60],[385,0,385,34],[385,35,385,43],[385,44,385,51],[385,52,385,60],[386,0,386,34],[386,35,386,43],[386,44,386,51],[386,52,386,60],[374,0,374,34],[374,35,374,43],[374,44,374,51],[374,52,374,60],[375,0,375,34],[375,35,375,43],[375,44,375,51],[375,52,375,60],[376,0,376,34],[376,35,376,43],[376,44,376,51],[376,52,376,60],[377,0,377,34],[377,35,377,43],[377,44,377,51],[377,52,377,60],[378,0,378,34],[378,35,378,43],[378,44,378,51],[378,52,378,60],[373,0,373,34],[373,35,373,43],[373,44,373,51],[373,52,373,60],[351,0,351,34],[351,35,351,43],[351,44,351,51],[351,52,351,60],[352,0,352,34],[360,35,360,43],[352,44,352,51],[352,52,352,60],[353,0,353,34],[353,35,353,43],[353,44,353,51],[353,52,353,60],[360,0,360,34],[360,44,360,51],[360,52,360,60],[369,0,369,24],[365,52,365,60],[368,0,368,34],[368,35,368,43],[368,44,368,51],[368,52,368,60],[366,0,366,34],[366,35,366,43],[366,44,366,51],[366,52,366,60],[367,0,367,34],[367,35,367,43],[367,44,367,51],[345,35,345,43],[345,44,345,51],[345,52,345,60],[346,0,346,34],[346,35,346,43],[346,44,346,51],[346,52,346,60],[350,0,350,34],[370,0,370,34],[370,35,370,43],[370,44,370,51],[370,52,370,60],[371,0,371,34],[371,35,371,43],[371,44,371,51],[371,52,371,60],[372,0,372,34],[372,35,372,43],[372,44,372,51],[372,52,372,60],[367,52,367,60],[361,44,361,51],[361,52,361,60],[357,0,357,34],[357,35,357,43],[357,44,357,51],[357,52,357,60],[358,0,358,34],[358,35,358,43],[358,44,358,51],[358,52,358,60],[359,0,359,34],[340,44,340,51],[340,52,340,60],[341,0,341,34],[341,35,341,43],[341,44,341,51],[341,52,341,60],[337,0,337,34],[337,35,337,43],[369,35,369,60],[354,0,354,34],[354,35,354,43],[354,44,354,51],[354,52,354,60],[355,0,355,34],[355,35,355,43],[355,44,355,51],[355,52,355,60],[356,0,356,34],[356,35,356,43],[356,44,356,51],[356,52,356,60],[361,0,361,34],[361,35,361,43],[342,0,342,34],[342,35,342,43],[342,44,342,51],[342,52,342,60],[344,0,344,34],[344,35,344,43],[344,44,344,51],[344,52,344,60],[345,0,345,34],[820,15,820,59],[810,0,810,60],[784,0,784,60],[731,3,731,60],[730,3,730,60],[729,3,729,60],[727,3,727,60],[726,0,726,60],[617,0,617,60],[601,0,601,60],[578,0,578,60],[542,0,542,41],[541,0,541,41],[540,0,540,41],[755,0,755,4],[755,5,755,58],[794,41,794,50],[794,0,794,40],[795,41,795,50],[794,51,795,60],[795,0,795,27],[788,41,788,50],[788,51,788,60],[797,2,797,40],[798,2,798,40],[801,2,801,40],[802,2,802,40],[803,2,803,40],[799,0,799,60],[552,0,552,60],[553,0,553,60],[554,0,554,3],[803,41,803,50],[803,51,803,60],[809,41,809,50],[809,51,809,60],[797,0,797,1],[797,41,797,50],[797,51,797,60],[798,0,798,1],[798,41,798,50],[798,51,798,60],[800,41,800,50],[800,51,800,60],[804,0,804,60],[805,0,805,40],[805,41,805,50],[805,51,805,60],[806,0,806,1],[806,2,806,40],[806,41,806,50],[806,51,806,60],[807,0,807,1],[807,2,807,40],[807,41,807,50],[807,51,807,60],[808,0,808,1],[808,2,808,40],[808,41,808,50],[808,51,808,60],[7,36,8,60],[13,36,21,60],[796,2,796,40],[796,0,796,1],[532,0,532,60],[521,0,521,41],[457,0,457,41],[423,0,423,60],[422,0,422,60],[421,0,421,60],[154,1,154,58],[153,1,153,58],[329,0,329,34],[329,35,329,60],[330,0,330,34],[330,35,330,43],[786,41,786,50],[350,35,350,43],[350,44,350,51],[350,52,350,60],[337,44,337,51],[337,52,337,60],[338,0,338,34],[338,35,338,43],[338,44,338,51],[338,52,338,60],[339,0,339,34],[339,35,339,43],[339,44,339,51],[339,52,339,60],[340,0,340,34],[340,35,340,43],[33,1,33,45],[33,48,33,59],[34,48,34,59],[107,1,107,24],[109,1,110,59],[129,30,129,52],[124,30,124,52],[143,1,143,41],[856,13,856,22],[856,23,856,34],[856,0,856,12],[854,43,854,46],[854,47,854,56],[858,0,858,7],[542,42,542,60],[613,42,613,60],[844,12,844,59],[846,12,846,59],[457,42,457,60],[324,44,324,60],[325,44,325,60],[324,35,324,42],[326,0,326,30],[91,1,95,13],[83,1,87,13],[834,0,834,38],[834,40,834,59],[836,0,836,5],[838,0,838,19],[838,20,838,30],[785,41,785,50],[785,0,785,40],[836,6,836,30],[840,0,840,51],[840,52,840,59],[842,0,842,5],[842,6,842,59],[850,0,850,3],[850,4,850,14],[850,15,850,59],[852,0,852,60],[854,0,854,10],[854,12,854,27],[830,0,830,2],[830,3,830,6],[830,8,830,9],[830,10,830,12],[830,14,830,15],[830,16,830,17],[830,19,830,20],[830,21,830,23],[830,25,830,28],[830,30,830,36],[830,38,830,45],[830,47,830,56],[832,0,832,10],[832,11,832,21],[832,23,832,25],[832,26,832,36],[832,38,832,42],[832,43,832,59],[828,0,828,4],[828,5,828,18],[828,21,828,23],[828,25,828,37],[828,39,828,42],[828,44,828,59]],"merged_total":2088,"flags":["merged_cut"]}
[null,null,null,null,null,null,"MINISTERUL AGRICULTURII ŞI DEZVOLTĂRII RURALE"]
[null,null,null,null,null,null,"AGENŢIA PENTRU FINANŢAREA INVESTIŢIILOR RURALE"]
[]
[null,null,null,null,null,null,null,null,null,null,null,null,null,null,null,null,null,null,null,null,null,null,null,null,null,null,null,null,null,null,null,null,null,null,null,null,null,null,null,null,null,null,"SECŢIUNE GENERALĂ"]
[]
["DATE DE ÎNREGISTRARE",null,null,null,null,null,null,null,null,null,null,null,null,null,null,null,null,null,null,null,null,null,null,null,null,null,null,null,null,null,null,null,null,null,null,null,"NUME ŞI PRENUME DIRECTOR GENERAL"]
[null,null,null,null,null,null,null,null,null,null,null,null,null,null,null,null,null,null,null,null,null,null,null,null,null,null,null,null,null,null,null,null,null,null,null,null,"ADJUNCT CRFIR"]
["Se completează de către Agenția pentru Finanțarea Investițiilor Rurale -Centrul"]
["Regional- Programul FEADR pentru cereri de finanțare"]
[]
["CRFIR",null,null,null,null,null,null,null,null,null,null,null,null,null,null,null,null,null,null,null,null,null,null,null,null,null,null,null,null,null,null,null,null,null,null,null,"Semnătura Director General Adjunct CRFIR"]
[null,null,null,null,null,null,null,null,null,null,null,null,null,null,null,null,null,null,null,null,null,null,null,null,null,null,null,null,null,null,null,null,null,null,null,null,"Ştampila CRFIR"]
["Număr "]
["înregistrare"]
[]
[]
[]
[]
["Data Înregistrării"]
["Numele şi prenumele persoanei care înregistrează"]
["Semnătura:"]
["Data primirii cererii de finanţare la contractare:"]
["Se completează de către solicitant"]
["A PREZENTARE GENERALĂ"]
[]
[null,"A1 Măsura",null,null,null,null,null,null,null,null,"Sub-măsura 19.2"]
[null,null,null,null,null,null,null,null,null,null," - M03-2C Drumuri agricole și forestiere - A. Drumuri Agricole"]
[]
[null,null,null,null,null,null,null,"Tip investitie:",null,null,null,null,null,null,null,null,null,"Infrastructura de acces agricolă"]
[null,null,null,null,null,null,null,null,null,null,null,null,null,null,null,null,null,"Infrastructura de acces silvică"]
[null,null,null,null,null,null,null,null,null,null,null,null,null,null,null,null,null,"Infrastructura de irigații: sisteme de irigații aferente stațiilor de punere sub presiune (SPP)"]
[null,null,null,null,null,null,null,null,null,null,null,null,null,null,null,null,null,"Infrastructura de irigații: sisteme de irigații aferente stațiilor de pompare și repompare (SPA, SRP)"]
[]
[null,"Conţinutul cadru al documentaţiei tehnico-economice faza SF/DALI conform : ",null,null,null,null,null,null,null,null,null,null,null,null,null,null,null,null,null,null,null,null,null,null,null,null,null,null,null,null,null,null,null,null,null,null,null,null,null,null,null,null,null,null,null,null,null,null,"H.G. nr. 28/2008"]
[null,"A2 Nume prenume / Denumire solicitant:",null,null,null,null,null,null,null,null,null,null,null,null,null,null,null,null,null,null,null,null,null,null,null,null,null,null,null,null,null,null,null,null,null,null,null,null,null,null,null,null,null,null,null,null,null,null,"H.G. nr. 907/2016"]
[]
[null,"A3 Titlu proiect:"]
[]
[]
[]
[]
[null,"A4 Descrierea succintă a proiectului:"]
[]
[]
[]
[]
[]
[]
[]
[]
[]
[]
[]
[null,null,"A5 Amplasarea proiectului:"]
[]
["Regiunea de dezvoltare:",null,null,null,null,null,null,null,null,null,null,null,null,null,null,null,null,null,null,null,null,null,null,null,null,null,null,"Judeţ:"]
[]
[null,"Obiectivele investiţiei",null,null,null,null,null,null,null,null,null,null,null,null,null,"Judeţ",null,null,null,null,null,null,null,null,null,null,null,"Comună/Oraş",null,null,null,null,null,null,null,null,null,null,null,"Sat/Sector",null,null,null,null,null,null,null,null,null,null,"Sat/Sector"]
[]
[]
[]
[]
[]
[]
[]
[]
[]
[]
[]
[]
[]
[]
[]
[]
[]
[]
[]
[]
[]
[]
[]
[]
[]
[]
[]
[]
[]
[]
[]
[]
[]
[]
[]
[]
[]
[]
[]
[]
[null,"A6 Date despre tipul de proiect şi beneficiar:"]
[]
[null,"A6.1  Tip proiect",null,null,null,null,null,null,null,null,null,null,null,null,null,null,null,"Investiţie nouă"]
[null,null,null,null,null,null,null,null,null,null,null,null,null,null,null,null,null,"Lucrări de intervenție"]
[]
[null,"A6.2 Tip solicitant",null,null,null,null,null,null,null,null,null,null,null,null,null,null,null,"Public"]
[null,null,null,null,null,null,null,null,null,null,null,null,null,null,null,null,null,"Privat"]
[]
[null,"A6.3",null,null,null,"Prescorare"]
[null,"A6.3.1 Detaliere criterii de selecţie îndeplinite:"]
[]
[]
[]
[]
[null,"A6.4  Alocare financiară",null,null,null,null,null,null,null,null,null,null,null,null,null,null,null,null,null,null,null,null,null,null,null,null,"Restul teritoriului (N)"]
[null,null,null,null,null,null,null,null,null,null,null,null,null,null,null,null,null,null,null,null,null,null,null,null,null,null,"ITI Delta Dunării (I)"]
[]
[null,"A6.5 Investiția pentru infrastructura de irigații vizează modernizarea sistemelor:",null,null,null,null,null,null,null,null,null,null,null,null,null,null,null,null,null,null,null,null,null,null,null,null,"funcționale/utilizate în trecutul recent (2007-2016)"]
[null,null,null,null,null,null,null,null,null,null,null,null,null,null,null,null,null,null,null,null,null,null,null,null,null,null,"care au ca rezultat o mărire netă a suprafeței irigate"]
[]
[null,"A6.6 Criteriul de departajare a proiectelor cu\npunctaj egal :",null,null,null,null,null,null,null,null,null,null,null,null,null,null,null,null,null,null,null,null,null,null,"Gradul de utilizare a suprafeţei irigabile (%) :"]
[]
[]
[null,"A7 Date despre consultant:"]
[null,"Denumire: "]
[null,"Cod Unic de Înregistrare / Codul de"]
[null,"Înregistrare Fiscală",null,null,null,null,null,null,null,null,null,null,null,null,null,null,null,null,null,null,null,null,null,null,null,null,null,null,null,null,"Număr de înregistrare în registrul comerțului"]
[]
[null,"A8 Date despre proiectant:"]
[null,"Denumire: "]
[null,"Cod Unic de Înregistrare / Codul de"]
[null,"Înregistrare Fiscală",null,null,null,null,null,null,null,null,null,null,null,null,null,null,null,null,null,null,null,null,null,null,null,null,null,null,null,null,"Număr de înregistrare în registrul comerțului"]
[]
[]
["B INFORMAŢII PRIVIND SOLICITANTUL"]
["B1 Descrierea solicitantului"]
[null,"B1.1 Informaţii privind solicitantul"]
[null,"Data înființării",null,null,null,null,null,null,null,null,null,null,null,null,null,null,null,null,null,"Cod Unic de Înregistrare și/sau Codul de",null,null,null,null,null,null,null,null,null,null,null,null,null,null,null,null,null,null,null,null,null,null,null,"Statut juridic al solicitantului"]
[null,null,null,null,null,null,null,null,null,null,null,null,null,null,null,null,null,null,null,"Înregistrare Fiscală",null,null,null,null,null,null,null,null,null,null,null,null,null,null,null,null,null,null,null,null,null,null,null,"(Comune, ADI, ONG*)"]
[]
[]
[null,"Număr de înregistrare în Registrul Național al Organizațiilor de Îmbunătățiri Funciare"]
[]
[null,"Codul unic de înregistrare APIA",null,null,null,null,null,null,null,null,null,null,null,null,null,null,null,null,null,null,null,null,null,null,null,null,null,null,null,null,null,null,null,null,null,null,"Anul atribuirii codului"]
[]
[null,"B1.2 Sediul social / Domiciliul stabil al solicitantului / Reşedinţa din România"]
[null,"Judeţ",null,null,null,null,null,null,null,null,null,null,null,null,null,null,null,null,null,null,null,null,"Localitate",null,null,null,null,null,null,null,null,null,null,null,null,null,null,null,null,null,null,null,"Sat"]
[]
[null,"Cod Poştal",null,null,null,null,null,null,null,null,null,null,null,null,null,"Strada",null,null,null,null,null,null,null,null,null,null,null,null,null,null,null,null,null,null,null,null,null,null,null,null,null,null,null,null,null,null,null,null,null,null,null,null,"Nr."]
[]
[null,"Bloc",null,null,null,null,null,null,null,null,null,null,null,null,null,null,null,"Scara",null,null,null,null,null,null,null,null,null,null,null,null,null,"Etaj",null,null,null,null,null,null,null,null,null,null,null,null,null,null,null,"Apartament"]
[]
[null,"Telefon fix/ mobil",null,null,null,null,null,null,null,null,null,null,null,null,null,null,null,null,null,null,"Fax",null,null,null,null,null,null,null,null,null,null,null,null,null,null,null,"E-mail"]
[]
[]
[null,"B1.3 Numele şi prenumele reprezentantului legal şi funcţia acestuia în cadrul organizaţiei, precum şi"]
[null,"specimenul de semnatură:"]
[]
[null,null,null,"Numele",null,null,null,null,null,null,null,null,null,null,"Prenumele",null,null,null,null,null,null,null,null,null,null,"Funcţia",null,null,null,null,null,null,null,null,null,null,"Reprezentant legal",null,null,null,null,null,null,null,null,null,null,"Specimen de"]
[null,null,null,null,null,null,null,null,null,null,null,null,null,null,null,null,null,null,null,null,null,null,null,null,null,null,null,null,null,null,null,null,null,null,null,null,null,null,null,null,null,null,null,null,null,null,null,"semnătură"]
[]
[null,null,null,null,null,null,null,null,null,null,null,null,null,null,null,null,null,null,null,null,null,null,null,null,null,null,null,null,null,null,null,null,null,null,null,null,"LEGAL"]
[]
[]
["B2 Informaţii referitoare la reprezentantul legal de proiect"]
[null,"B2.1 Date de identitate ale reprezentantului legal de proiect"]
[]
[null,null,null,"Data naşterii",null,null,null,null,null,null,null,null,null,null,null,null,null,null,null,null,null,null,null,null,"Cod numeric personal"]
[]
[]
[]
[]
[null,null,null,null,"Act de identitate",null,null,null,null,null,null,null,null,null,null,null,null,null,"Seria",null,null,"Nr.",null,null,null,null,null,null,"Eliberat la data de",null,null,null,null,null,null,null,null,"de:",null,null,null,null,null,null,null,null,null,null,null,null,null,"Valabil până la:"]
[null,null,null,null,"B.I.",null,null,"C.I.",null,null,"Paşaport"]
[]
[]
[]
[]
[]
[]
[]
[]
[]
[]
[]
[]
[]
[]
[]
[]
[null,"B2.2 Domiciliul stabil al reprezentantului legal de proiect"]
[null,"Judeţ",null,null,null,null,null,null,null,null,null,null,null,null,null,null,null,null,null,null,null,null,"Localitate",null,null,null,null,null,null,null,null,null,null,null,null,null,null,null,null,null,null,null,"Sat"]
[]
[null,"Cod Poştal",null,null,null,null,null,null,null,null,null,null,"Strada",null,null,null,null,null,null,null,null,null,null,null,null,null,null,null,null,null,"Nr.",null,null,null,null,null,"Bloc",null,null,null,null,null,null,null,null,null,null,null,"Scara",null,null,null,null,null,"Ap."]
[]
[null,"Telefon fix",null,null,null,null,null,null,null,null,null,null,null,null,null,null,null,null,null,null,"Telefon mobil",null,null,null,null,null,null,null,null,null,null,null,null,null,null,null,null,null,"Fax"]
[]
[null,"E-mail"]
[]
[]
["REGULI DE COMPLETARE\n\nCâmpurile \"Numele şi prenumele persoanei care înregistrează. Semnătura\", se vor completa după data primirii în format letric a acesteia împreună cu documentele justificative.\nLa deschiderea fișierului în format pdf al cererii de finantare radiobutonul de la câmpul ,,Conținutul cadru al documentației tehnico-economice faza SF/DALI conform:” de la secțiunea A este setat implicit pe H.G. nr. 28/2008. În cazul în care conținutul cadru al SF/DALI este conform H.G. nr. 907/2016 privind etapele de elaborare şi conţinutul-cadru al documentaţiilor tehnico-economice aferente obiectivelor/ proiectelor de investiţii finanţate din fonduri publice atunci solicitantul va trebui să bifeze radiobutonul aferent acestui act normativ.\nSe menționează că în funcție de radiobutonul bifat la acest câmp solicitantul va putea completa Bugetul indicativ și anexele A1, A2 și A3 din modelul de cerere de finanțare în conformitate cu actul normativ care a stat la baza elaborării SF/DALI. De asemenea, în cazul în care conținutul cadrul al SF/DALI este conform H.G. nr. 28/2008 privind aprobarea conţinutului-cadru al documentaţiei tehnico-economice aferente investiţiilor publice, precum şi a structurii şi metodologiei de elaborare a devizului general pentru obiective de investiţii şi lucrări de intervenţii, solicitanții vor trebui să depună la dosarul cererii de finanțare documentul prin care fac dovada că obiectivul/proiectul de investiție se încadrează în prevederile art. 15 din H.G. nr. 907/2016.\nCompletaţi devizele aferente capitolelor de cheltuieli, defalcat pe cheltuieli eligibile şi neeligibile prin completarea tabelelor incluse în acest document, respectiv :\n1. În Anexa A1 este prezentat tabelul \"Deviz financiar- Capitolul 3 - Cheltuieli pentru proiectare şi asistenţa tehnică - EURO\"\ncare cuprinde cheltuielile aferente capitolului 3 - Cheltuieli pentru proiectare şi asistenţă tehnică, cheltuieli care trebuie să se\nregăsească atât în Bugetul Indicativ (Tabel \"Buget indicativ\" din cererea de finanţare, partea specifică) cât şi în Dezivul General din Studiul de Fezabilitate/Documentaţia de avizare a lucrărilor de intervenţie ;\n2. În Anexa A2 este prezentat tabelul \"Deviz pe obiect\" care cuprinde formatul cadru al devizului pe obiect, iar solicitantul va\ncompleta atâtea devize pe obiect câte obiecte definite de proiectant sunt incluse în proiect. Suma tuturor devizelor pe obiect\ntrebuie să se regăsească atât în Bugetul Indicativ (tabelul \"Buget indicativ\" din cererea de finanţare, partea specifică), cât şi în\nDezivul General din Studiul de Fezabilitate/Documentaţia de avizare a lucrărilor de intervenţie.\nÎn cazul în care proiectul de investiţii presupune mai multe devize pe obiect, solicitantul va crea în documentul curent câte o\ncopie a tabelului \"Deviz pe obiect\" pentru fiecare deviz pe obiect şi va detalia cheltuielile eligibile şi neeligibile pe fiecare în\nparte.\n3. În Anexa A3 sunt prezentate tabelele ,,Deviz capitolul 2- Cheltuieli pentru asigurarea utilităţilor necesare obiectivului – EURO” și\nrespectiv ,,Deviz capitolul 5 - Alte cheltuieli – EURO” care cuprind cheltuieli aferente capitolelor 2 şi 5 și trebuie să se regăsească atât în Bugetul Indicativ (tabel \"Buget indicativ\" din cererea de finanţare, partea specifică), cât şi Dezivul General din Studiul de Fezabilitate/ Documentaţia de avizare a lucrărilor de intervenţie.\n4. Câmpurile \"Prescorare\" şi \"Detalierea criteriilor de selecţie îndeplinite\" de la sectiunea A6 sunt obligatorii.\n5. Câmpul ,,Criteriul de departajare a proiectelor cu punctaj egal:” se va completa cu maxim 2 zecimale.\n6. Solicitanții vor putea depune proiecte care vizează investiții în modernizarea sistemelor care au ca rezultat o mărire netă a suprafeței irigate (cf. Art. 46 din Reg. UE 1305/2013) numai după publicarea pe site-ul AFIR/MADR a studiului Ministerul Apelor și Pădurilor.\nProiectele care au ca rezultat o mărire netă a suprafeței irigate încărcate în sistem înainte de publicarea pe site-ul AFIR/MADR a studiului de la Ministerul Apelor și Pădurilor, vor fi declarate neeligibile.\n7. Solicitanții ale căror proiecte vizează lucrări de modernizare a infrastructurii de irigații existente vor trebui obligatoriu să bifeze, funcție de încadrarea proiectului, unul din radiobutoanele prevăzute la secțiunea A6.5 Investiția pentru infrastructura de irigații vizează modernizarea sistemelor.\nTrebuie bifate și anexate toate documentele (1a, 2, 3, 3.1, 4, 5, 6, 7 și 8) de pe coloana “DEPUNERE - Obligatoriu\npentru toate proiectele” din secțiunea E – Lista documentelor anexate pentru Tip investiţie - infrastructura de irigaţii\n- pentru solicitanții care au bifat la A.6.4 Alocarea Financiară: Restul teritoriului.\nTrebuie bifate și anexate toate documentele (1a, 2, 3, 3.1, 4, 5, 6, 7, 8 și 9) de pe coloana “DEPUNERE - Obligatoriu\npentru toate proiectele” din secțiunea E – Lista documentelor anexate pentru Tip investiţie - infrastructura de irigaţii\n- pentru solicitanții care au bifat la A.6.4 Alocarea Financiară: ITI Delta Dunării.\nNotă :\nConform prevederilor PNDR 2014‐2020, proiectele care vizează investiții amplasate în arealul ITI Delta Dunării,vor beneficia de alocarea distinctă precizată în anunțul de lansare a apelului de proiecte pentru sesiunea respectivă.\nDin momentul deschiderii apelului de proiecte cu alocare distinctă pentru teritoriul aferent ITI DD, solicitanții din arealul vizat de Strategia Integrată de Dezvoltare Durabilă a Deltei Dunării (SIDD DD), vor putea depune proiecte exclusiv în cadrul apelului dedicat, aferent anului 2017 însoțite de avizul de conformitate a proiectului cu obiectivele SIDD DD, emis de Asociația pentru Dezvoltare Intercomunitară ITI Delta Dunării.\nSolicitanții care au depus anterior lansării apelului ITI Delta Dunării, Cereri de Finanțare în cadrul apelurilor naționale vor putea depune alte proiecte în cadrul apelului ITI Delta Dunării dacă acestea răspund obiectivelor Strategiei Integrate de Dezvoltare Durabilă a Deltei Dunării, respectiv dacă sunt însoțite de avizul de conformitate a proiectului cu obiectivele SIDD DD emis de Asociația pentru Dezvoltare Intercomunitară ITI Delta Dunării."]
[]
[]
[]
[]
[]
[]
[]
[]
[]
[]
[]
[]
[]
[]
[]
[]
[]
[]
[]
[]
[]
[]
[]
[]
[]
[]
[]
[]
[]
[]
[]
[]
[]
[]
[]
[]
[]
[]
[]
[]
[]
[]
[]
[]
[]
[]
[]
["C FINANȚĂRI NERAMBURSABILE OBȚINUTE, SAU SOLICITATE ?"]
[null,null,"C. Solicitatul a mai obţinut finanţări nerambursabile pentru acelaşi tip de investiţie? Dacă Da, detaliaţi cu datele solicitate în tabelul de mai jos"]
[]
[]
[null,null,null,null,null,null,null,null,null,null,"DA",null,null,null,null,null,null,null,"NU"]
[]
[null,"DENUMIRE PROGRAM FINANȚARE",null,null,null,null,null,null,null,null,null,null,null,null,"DA",null,null,null,null,null,null,null,null,null,null,null,null,null,null,null,null,null,null,null,null,null,null,null,null,null,null,null,null,null,null,null,null,null,null,null,null,null,null,null,null,null,"NU"]
[null,null,null,null,null,null,null,null,null,null,null,null,null,null,"Număr proiecte",null,null,null,null,"Titlul Proiectui și numărul contractului de finanțare ",null,null,null,null,null,null,null,null,null,null,null,null,null,null,null,null,null,null,null,null,null,null,"Data finalizării\nll/zz/aaaa",null,null,null,null,null,null,"Valoarea\nsprijinului\n(EUR)"]
[null,"Program Naţional*"]
[null,"Program Naţional*"]
[null,"FEADR *"]
[null,"SAPARD"]
[null,"Alte programe europene*"]
[null,"Alte programe europene*"]
[null,"Alte programe internaționale*"]
[null,"Alte programe internaționale*"]
[null,"Alte programe internaționale*"]
[null,null,null,null,"* se completează de către solicitant cu denumirea programului"]
[null,"Buget Indicativ - HG 28/2008"]
["MINISTERUL AGRICULTURII ŞI DEZVOLTĂRII RURALE"]
["AGENŢIA PENTRU FINANŢAREA INVESTIŢIILOR RURALE"]
[]
[]
[null,null,null,null,null,null,null,null,null,null,null,null,null,null,null,"Curs EURO",null,null,null,null,null,null,null,null,null,null,null,null,null,null,"Data întocmirii devizului general din SF/DALI"]
[]
["Submăsura",null,null,null,null,null,null,null,null,null,null,null,null,null,null,null,null,null,null,null,null,null,null,null,null,null,null,null,null,null,null,null,null,null,null,4.3]
["Denumirea capitolelor de cheltuieli",null,null,null,null,null,null,null,null,null,null,null,null,null,null,null,null,null,null,null,null,null,null,null,null,null,null,null,null,null,null,null,null,null,null,"Cheltuieli eligibile",null,null,null,null,null,null,null,null,"Cheltuieli neeligibile",null,null,null,null,null,null,null,"Total"]
[null,null,null,null,null,null,null,null,null,null,null,null,null,null,null,null,null,null,null,null,null,null,null,null,null,null,null,null,null,null,null,null,null,null,null,"EURO",null,null,null,null,null,null,null,null,"EURO",null,null,null,null,null,null,null,"EURO"]
[1,null,null,null,null,null,null,null,null,null,null,null,null,null,null,null,null,null,null,null,null,null,null,null,null,null,null,null,null,null,null,null,null,null,null,2,null,null,null,null,null,null,null,null,3,null,null,null,null,null,null,null,4]
["Capitolul 1 Cheltuieli pentru obtinerea şi amenajarea terenului - total, din care:",null,null,null,null,null,null,null,null,null,null,null,null,null,null,null,null,null,null,null,null,null,null,null,null,null,null,null,null,null,null,null,null,null,null,{"$f":"SUM(AJ278:AR279)","v":0},null,null,null,null,null,null,null,null,{"$f":"SUM(AS277:AZ279)","v":0},null,null,null,null,null,null,null,{"$f":"SUM(AJ276:AZ276)","v":0}]
["1.1 Cheltuieli pentru obţinerea terenului",null,null,null,null,null,null,null,null,null,null,null,null,null,null,null,null,null,null,null,null,null,null,null,null,null,null,null,null,null,null,null,null,null,null,null,null,null,null,null,null,null,null,null,null,null,null,null,null,null,null,null,{"$f":"SUM(AJ277:AZ277)","v":0}]
["1.2 Cheltuieli pentru amenajarea terenului",null,null,null,null,null,null,null,null,null,null,null,null,null,null,null,null,null,null,null,null,null,null,null,null,null,null,null,null,null,null,null,null,null,null,null,null,null,null,null,null,null,null,null,null,null,null,null,null,null,null,null,0]
["1.3 Cheltuieli cu amenajari pentru protecţia mediului şi aducerea la starea iniţială",null,null,null,null,null,null,null,null,null,null,null,null,null,null,null,null,null,null,null,null,null,null,null,null,null,null,null,null,null,null,null,null,null,null,null,null,null,null,null,null,null,null,null,null,null,null,null,null,null,null,null,0]
["Capitolul 2 Cheltuieli pentru asigurarea utilităţilor necesare obiectivului",null,null,null,null,null,null,null,null,null,null,null,null,null,null,null,null,null,null,null,null,null,null,null,null,null,null,null,null,null,null,null,null,null,null,null,null,null,null,null,null,null,null,null,null,null,null,null,null,null,null,null,0]
["Capitolul 3 Cheltuieli pentru proiectare şi asistenţă tehnică - total, din care:",null,null,null,null,null,null,null,null,null,null,null,null,null,null,null,null,null,null,null,null,null,null,null,null,null,null,null,null,null,null,null,null,null,null,{"$f":"SUM(AJ282:AR287)-AJ285","v":0},null,null,null,null,null,null,null,null,{"$f":"SUM(AS282:AZ287)","v":0},null,null,null,null,null,null,null,0]
["3.1 Studii de teren",null,null,null,null,null,null,null,null,null,null,null,null,null,null,null,null,null,null,null,null,null,null,null,null,null,null,null,null,null,null,null,null,null,null,null,null,null,null,null,null,null,null,null,null,null,null,null,null,null,null,null,0]
["3.2 Obţinerea de avize, acorduri şi autorizaţii",null,null,null,null,null,null,null,null,null,null,null,null,null,null,null,null,null,null,null,null,null,null,null,null,null,null,null,null,null,null,null,null,null,null,null,null,null,null,null,null,null,null,null,null,null,null,null,null,null,null,null,0]
["3.3 Proiectare şi inginerie",null,null,null,null,null,null,null,null,null,null,null,null,null,null,null,null,null,null,null,null,null,null,null,null,null,null,null,null,null,null,null,null,null,null,null,null,null,null,null,null,null,null,null,null,null,null,null,null,null,null,null,0]
["3.4 Organizarea procedurilor de achiziţie",null,null,null,null,null,null,null,null,null,null,null,null,null,null,null,null,null,null,null,null,null,null,null,null,null,null,null,null,null,null,null,null,null,null,null,null,null,null,null,null,null,null,null,null,null,null,null,null,null,null,null,0]
["3.5 Consultanţă",null,null,null,null,null,null,null,null,null,null,null,null,null,null,null,null,null,null,null,null,null,null,null,null,null,null,null,null,null,null,null,null,null,null,null,null,null,null,null,null,null,null,null,null,null,null,null,null,null,null,null,0]
["3.6 Asistenţă tehnică",null,null,null,null,null,null,null,null,null,null,null,null,null,null,null,null,null,null,null,null,null,null,null,null,null,null,null,null,null,null,null,null,null,null,null,null,null,null,null,null,null,null,null,null,null,null,null,null,null,null,null,0]
["Verificare încadrare cheltuieli capitolul 3",null,null,null,null,null,null,null,null,null,null,null,null,null,null,null,null,null,null,null,null,null,null,null,null,null,null,null,null,null,null,null,{"$f":"AJ276+AJ280+AJ289","v":0},{"$f":"IF(AG288=0,0,AI288)","v":0},{"$f":"AJ281*100/AG288","v":{"$error":"#DIV/0!"}},{"$f":"IF(AJ289=0,IF(AH288<=5,\"cheltuieli capitol 3 se incadreaza in limita de 5%\",\"cheltuieli capitol 3 nu se incadreaza in limita de 5%\"),IF(AH288<=10,\"cheltuieli capitol 3 se incadreaza in limita de 10%\",\"cheltuieli capitol 3 nu se incadreaza in limita de 10%\"))","v":"cheltuieli capitol 3 se incadreaza in limita de 5%"}]
["Capitolul 4 Cheltuieli pentru investiţia de bază - total, din care:",null,null,null,null,null,null,null,null,null,null,null,null,null,null,null,null,null,null,null,null,null,null,null,null,null,null,null,null,null,null,null,null,null,null,{"$f":"AJ290","v":0},null,null,null,null,null,null,null,null,{"$f":"AS290","v":0},null,null,null,null,null,null,null,{"$f":"SUM(AJ289:AZ289)","v":0}]
["Constructii, din care:",null,null,null,null,null,null,null,null,null,null,null,null,null,null,null,null,null,null,null,null,null,null,null,null,null,null,null,null,null,null,null,null,null,null,{"$f":"SUM(AJ291:AR296)","v":0},null,null,null,null,null,null,null,null,{"$f":"SUM(AS291:AZ296)","v":0},null,null,null,null,null,null,null,{"$f":"SUM(AJ290:AZ290)","v":0}]
["4.1 Construcţii şi instalaţii",null,null,null,null,null,null,null,null,null,null,null,null,null,null,null,null,null,null,null,null,null,null,null,null,null,null,null,null,null,null,null,null,null,null,null,null,null,null,null,null,null,null,null,null,null,null,null,null,null,null,null,0]
["4.2 Montaj utilaj tehnologic",null,null,null,null,null,null,null,null,null,null,null,null,null,null,null,null,null,null,null,null,null,null,null,null,null,null,null,null,null,null,null,null,null,null,null,null,null,null,null,null,null,null,null,null,null,null,null,null,null,null,null,0]
["4.3 Utilaje, echipamente tehnologice şi funcţionale cu montaj (procurare)",null,null,null,null,null,null,null,null,null,null,null,null,null,null,null,null,null,null,null,null,null,null,null,null,null,null,null,null,null,null,null,null,null,null,null,null,null,null,null,null,null,null,null,null,null,null,null,null,null,null,null,0]
["4.4 Utilaje şi echipamente fară montaj, mijloace de transport, alte achiziţii specifice",null,null,null,null,null,null,null,null,null,null,null,null,null,null,null,null,null,null,null,null,null,null,null,null,null,null,null,null,null,null,null,null,null,null,null,null,null,null,null,null,null,null,null,null,null,null,null,null,null,null,null,0]
["4.5 Dotări",null,null,null,null,null,null,null,null,null,null,null,null,null,null,null,null,null,null,null,null,null,null,null,null,null,null,null,null,null,null,null,null,null,null,null,null,null,null,null,null,null,null,null,null,null,null,null,null,null,null,null,0]
["4.6 Active necorporale",null,null,null,null,null,null,null,null,null,null,null,null,null,null,null,null,null,null,null,null,null,null,null,null,null,null,null,null,null,null,null,null,null,null,null,null,null,null,null,null,null,null,null,null,null,null,null,null,null,null,null,0]
["Capitolul 5 Alte cheltuieli - total, din care:",null,null,null,null,null,null,null,null,null,null,null,null,null,null,null,null,null,null,null,null,null,null,null,null,null,null,null,null,null,null,null,null,null,null,{"$f":"AJ301+AJ298","v":0},null,null,null,null,null,null,null,null,{"$f":"AS302+AS301+AS298","v":0},null,null,null,null,null,null,null,0]
["5.1 Organizare de şantier",null,null,null,null,null,null,null,null,null,null,null,null,null,null,null,null,null,null,null,null,null,null,null,null,null,null,null,null,null,null,null,null,null,null,{"$f":"SUM(AJ299:AR300)","v":0},null,null,null,null,null,null,null,null,{"$f":"SUM(AS299:AZ300)","v":0},null,null,null,null,null,null,null,0]
["      5.1.1 lucrări de construcţii şi instalaţii aferente organizării de şantier",null,null,null,null,null,null,null,null,null,null,null,null,null,null,null,null,null,null,null,null,null,null,null,null,null,null,null,null,null,null,null,null,null,null,null,null,null,null,null,null,null,null,null,null,null,null,null,null,null,null,null,0]
["      5.1.2 cheltuieli conexe orgănizării şantierului",null,null,null,null,null,null,null,null,null,null,null,null,null,null,null,null,null,null,null,null,null,null,null,null,null,null,null,null,null,null,null,null,null,null,null,null,null,null,null,null,null,null,null,null,null,null,null,null,null,null,null,0]
["5.2 Comisioane, taxe, costul creditului",null,null,null,null,null,null,null,null,null,null,null,null,null,null,null,null,null,null,null,null,null,null,null,null,null,null,null,null,null,null,null,null,null,null,null,null,null,null,null,null,null,null,null,null,null,null,null,null,null,null,null,0]
["5.3 Cheltuieli diverse şi neprevăzute",null,null,null,null,null,null,null,null,null,null,null,null,null,null,null,null,null,null,null,null,null,null,null,null,null,null,null,null,null,null,null,null,null,null,null,null,null,null,null,null,null,null,null,null,null,null,null,null,null,null,null,0]
["Capitolul 6 Cheltuieli pentru darea în exploatare - total, din care:",null,null,null,null,null,null,null,null,null,null,null,null,null,null,null,null,null,null,null,null,null,null,null,null,null,null,null,null,null,null,null,null,null,null,{"$f":"AJ305","v":0},null,null,null,null,null,null,null,null,{"$f":"SUM(AS304:AZ305)","v":0},null,null,null,null,null,null,null,0]
["6.1 Pregătirea personalului de exploatare",null,null,null,null,null,null,null,null,null,null,null,null,null,null,null,null,null,null,null,null,null,null,null,null,null,null,null,null,null,null,null,null,null,null,null,null,null,null,null,null,null,null,null,null,null,null,null,null,null,null,null,0]
["6.2 Probe tehnologice şi teste",null,null,null,null,null,null,null,null,null,null,null,null,null,null,null,null,null,null,null,null,null,null,null,null,null,null,null,null,null,null,null,null,null,null,null,null,null,null,null,null,null,null,null,null,null,null,null,null,null,null,null,0]
["TOTAL GENERAL",null,null,null,null,null,null,null,null,null,null,null,null,null,null,null,null,null,null,null,null,null,null,null,null,null,null,null,null,null,null,null,null,null,null,{"$f":"AJ276+AJ280+AJ281+AJ289+AJ297+AJ303","v":0},null,null,null,null,null,null,null,null,{"$f":"AS276+AS280+AS281+AS289+AS297+AS303","v":0},null,null,null,null,null,null,null,0]
["Verificare actualizare",null,null,null,null,null,null,null,null,null,null,null,null,null,null,null,null,null,null,null,null,null,null,null,null,null,null,null,null,null,null,{"$f":"AJ308*100/AJ306","v":{"$error":"#DIV/0!"}},null,null,{"$f":"IF(AJ306=0,0,AF307)","v":0},{"$f":"IF(AI307<=5,\"actualizare mai mică de 5% din valoarea eligibila\",\"actualizare mai mare de 5% din valoarea eligibila\")","v":"actualizare mai mică de 5% din valoarea eligibila"}]
["ACTUALIZARE Cheltuieli Eligibile (max 5%)",null,null,null,null,null,null,null,null,null,null,null,null,null,null,null,null,null,null,null,null,null,null,null,null,null,null,null,null,null,null,null,null,null,null,null,null,null,null,null,null,null,null,null,null,null,null,null,null,null,null,null,{"$f":"SUM(AJ308:AZ308)","v":0}]
["TOTAL GENERAL CU ACTUALIZARE",null,null,null,null,null,null,null,null,null,null,null,null,null,null,null,null,null,null,null,null,null,null,null,null,null,null,null,null,null,null,null,null,null,null,{"$f":"AJ306+AJ308","v":0},null,null,null,null,null,null,null,null,{"$f":"AS306","v":0},null,null,null,null,null,null,null,{"$f":"SUM(AJ309:AZ309)","v":0}]
["Valoare TVA",null,null,null,null,null,null,null,null,null,null,null,null,null,null,null,null,null,null,null,null,null,null,null,null,null,null,null,null,null,null,null,null,null,null,null,null,null,null,null,null,null,null,null,null,null,null,null,null,null,null,null,0]
[null,null,null,null,null,null,null,null,null,null,null,null,null,null,null,null,null,null,null,null,null,null,null,null,null,null,null,null,null,null,null,null,null,null,null,{"$f":"SUM(AJ309:AR310)","v":0},null,null,null,null,null,null,null,null,{"$f":"SUM(AS309:AZ310)","v":0},null,null,null,null,null,null,null,0]
["TOTAL GENERAL inclusiv TVA",null,null,null,null,null,null,null,null,null,null,null,null,null,null,null,null,null,null,null,null,null,null,null,null,null,null,null,null,null,null,null,null,null,null,{"$f":"BA309+BA310","v":0}]
[null,null,null,null,null,null,null,null,null,null,null,null,null,null,null,null,null,null,null,null,null,null,null,null,null,null,null,null,null,null,null,null,null,null,null,"LEI",null,null,null,null,null,null,null,null,"EURO"]
["VALOARE TOTALĂ",null,null,null,null,null,null,null,null,null,null,null,null,null,null,null,null,null,null,null,null,null,null,null,null,null,null,null,null,null,null,null,null,null,null,{"$f":"AS314*W270","v":0},null,null,null,null,null,null,null,null,{"$f":"AJ312","v":0}]
["VALOARE ELIGIBILĂ",null,null,null,null,null,null,null,null,null,null,null,null,null,null,null,null,null,null,null,null,null,null,null,null,null,null,null,null,null,null,null,null,null,null,{"$f":"AS315*W270","v":0},null,null,null,null,null,null,null,null,{"$f":"AJ309+AJ310","v":0}]
["VALOARE NEELIGIBILĂ",null,null,null,null,null,null,null,null,null,null,null,null,null,null,null,null,null,null,null,null,null,null,null,null,null,null,null,null,null,null,null,null,null,null,{"$f":"AS316*W270","v":0},null,null,null,null,null,null,null,null,{"$f":"AS309+AS310","v":0}]
[]
["Plan Financiar",null,null,null,null,null,null,null,null,null,null,null,null,null,null,null,null,null,null,null,null,null,null,null,null,null,null,null,null,null,null,null,null,null,null,"Cheltuieli eligibile EURO",null,null,null,null,null,null,null,null,"Cheltuieli neeligibile EURO",null,null,null,null,null,null,null,"Total"]
["Ajutor public nerambursabil (contribuţie UE şi cofinanţare naţională)",null,null,null,null,null,null,null,null,null,null,null,null,null,null,null,null,null,null,null,null,null,null,null,null,null,null,null,null,null,null,null,null,null,null,null,null,null,null,null,null,null,null,null,null,null,null,null,null,null,null,null,{"$f":"SUM(AJ319:AZ319)","v":0}]
["Cofinantare privata, din care:",null,null,null,null,null,null,null,null,null,null,null,null,null,null,null,null,null,null,null,null,null,null,null,null,null,null,null,null,null,null,null,null,null,null,{"$f":"SUM(AJ321:AR322)","v":0},null,null,null,null,null,null,null,null,{"$f":"SUM(AS321:AZ322)","v":0},null,null,null,null,null,null,null,{"$f":"SUM(AJ320:AZ320)","v":0}]
[null,null,null,null,null,null,null,null,null,null,null,null,null,null,null,"- autofinantare",null,null,null,null,null,null,null,null,null,null,null,null,null,null,null,null,null,null,null,null,null,null,null,null,null,null,null,null,null,null,null,null,null,null,null,null,0]
[null,null,null,null,null,null,null,null,null,null,null,null,null,null,null,"- imprumuturi",null,null,null,null,null,null,null,null,null,null,null,null,null,null,null,null,null,null,null,null,null,null,null,null,null,null,null,null,null,null,null,null,null,null,null,null,0]
["Buget local",null,null,null,null,null,null,null,null,null,null,null,null,null,null,null,null,null,null,null,null,null,null,null,null,null,null,null,null,null,null,null,null,null,null,null,null,null,null,null,null,null,null,null,null,null,null,null,null,null,null,null,0]
["TOTAL PROIECT",null,null,null,null,null,null,null,null,null,null,null,null,null,null,null,null,null,null,null,null,null,null,null,null,null,null,null,null,null,null,null,null,null,null,{"$f":"AJ319+AJ320+AJ323","v":0},null,null,null,null,null,null,null,null,{"$f":"AS320+AS323","v":0},null,null,null,null,null,null,null,0]
["Procent contribuţie publică",null,null,null,null,null,null,null,null,null,null,null,null,null,null,null,null,null,null,null,null,null,null,null,null,null,null,null,null,null,null,null,null,{"$f":"AJ319*100/AJ324","v":{"$error":"#DIV/0!"}},{"$f":"IF(AJ324=0,0,AH325)","v":0},{"$f":"AI325","v":0},null,null,null,null,null,null,null,"%"]
["Avans solicitat"]
["Procent avans solicitat ca procent din ajutorul public nerambursabil",null,null,null,null,null,null,null,null,null,null,null,null,null,null,null,null,null,null,null,null,null,null,null,null,null,null,null,null,null,null,null,null,null,{"$f":"AJ326*100/AJ319","v":{"$error":"#DIV/0!"}},{"$f":"IF(AJ319=0,0,AI327)","v":0},null,null,null,null,null,null,null,null,{"$f":"IF(AJ327<=50,\"Suma avans mai mica de 50% din ajutorul public\",\"Suma avans mai mare de 50% din ajutorul public\")","v":"Suma avans mai mica de 50% din ajutorul public"}]
[]
[null,"Buget Indicativ - HG 907/2016"]
["MINISTERUL AGRICULTURII ŞI DEZVOLTĂRII RURALE"]
["AGENŢIA PENTRU FINANŢAREA INVESTIŢIILOR RURALE"]
[]
[]
[null,null,null,null,null,null,null,null,null,null,null,null,null,null,null,"Curs EURO",null,null,null,null,null,null,null,null,null,null,null,null,null,null,"Data întocmirii devizului general din SF/DALI"]
[]
["Submăsura",null,null,null,null,null,null,null,null,null,null,null,null,null,null,null,null,null,null,null,null,null,null,null,null,null,null,null,null,null,null,null,null,null,null,4.3]
["Denumirea capitolelor de cheltuieli",null,null,null,null,null,null,null,null,null,null,null,null,null,null,null,null,null,null,null,null,null,null,null,null,null,null,null,null,null,null,null,null,null,null,"Cheltuieli eligibile",null,null,null,null,null,null,null,null,"Cheltuieli neeligibile",null,null,null,null,null,null,null,"Total"]
[null,null,null,null,null,null,null,null,null,null,null,null,null,null,null,null,null,null,null,null,null,null,null,null,null,null,null,null,null,null,null,null,null,null,null,"EURO",null,null,null,null,null,null,null,null,"EURO",null,null,null,null,null,null,null,"EURO"]
[1,null,null,null,null,null,null,null,null,null,null,null,null,null,null,null,null,null,null,null,null,null,null,null,null,null,null,null,null,null,null,null,null,null,null,2,null,null,null,null,null,null,null,null,3,null,null,null,null,null,null,null,4]
["Capitolul 1 Cheltuieli pentru obtinerea şi amenajarea terenului - total, din care:",null,null,null,null,null,null,null,null,null,null,null,null,null,null,null,null,null,null,null,null,null,null,null,null,null,null,null,null,null,null,null,null,null,null,{"$f":"SUM(AJ342:AJ344)","v":0},null,null,null,null,null,null,null,null,{"$f":"SUM(AS341:AS344)","v":0},null,null,null,null,null,null,null,{"$f":"SUM(AJ340:AZ340)","v":0}]
["1.1 Obţinerea terenului",null,null,null,null,null,null,null,null,null,null,null,null,null,null,null,null,null,null,null,null,null,null,null,null,null,null,null,null,null,null,null,null,null,null,null,null,null,null,null,null,null,null,null,null,null,null,null,null,null,null,null,{"$f":"SUM(AJ341:AZ341)","v":0}]
["1.2 Amenajarea terenului",null,null,null,null,null,null,null,null,null,null,null,null,null,null,null,null,null,null,null,null,null,null,null,null,null,null,null,null,null,null,null,null,null,null,null,null,null,null,null,null,null,null,null,null,null,null,null,null,null,null,null,0]
["1.3 Amenajari pentru protecţia mediului şi aducerea terenului la starea iniţială",null,null,null,null,null,null,null,null,null,null,null,null,null,null,null,null,null,null,null,null,null,null,null,null,null,null,null,null,null,null,null,null,null,null,null,null,null,null,null,null,null,null,null,null,null,null,null,null,null,null,null,0]
["1.4 Cheltuieli pentru relocarea/protecţia utilităţilor",null,null,null,null,null,null,null,null,null,null,null,null,null,null,null,null,null,null,null,null,null,null,null,null,null,null,null,null,null,null,null,null,null,null,null,null,null,null,null,null,null,null,null,null,null,null,null,null,null,null,null,{"$f":"SUM(AJ344:AZ344)","v":0}]
["Capitolul 2 Cheltuieli pentru asigurarea utilităţilor necesare obiectivului de investiții",null,null,null,null,null,null,null,null,null,null,null,null,null,null,null,null,null,null,null,null,null,null,null,null,null,null,null,null,null,null,null,null,null,null,null,null,null,null,null,null,null,null,null,null,null,null,null,null,null,null,null,0]
["Capitolul 3 Cheltuieli pentru proiectare şi asistenţă tehnică - total, din care:",null,null,null,null,null,null,null,null,null,null,null,null,null,null,null,null,null,null,null,null,null,null,null,null,null,null,null,null,null,null,null,null,null,null,{"$f":"AJ347+AJ351+AJ352+AJ353+AJ354+AJ362+AJ365","v":0},null,null,null,null,null,null,null,null,{"$f":"AS347+AS351+AS352+AS361+AS353+AS354+AS362+AS365","v":0},null,null,null,null,null,null,null,0]
["3.1 Studii",null,null,null,null,null,null,null,null,null,null,null,null,null,null,null,null,null,null,null,null,null,null,null,null,null,null,null,null,null,null,null,null,null,null,{"$f":"SUM(AJ348:AJ350)","v":0},null,null,null,null,null,null,null,null,{"$f":"SUM(AS348:AS350)","v":0},null,null,null,null,null,null,null,{"$f":"SUM(AJ347:AZ347)","v":0}]
["      3.1.1 Studii de teren",null,null,null,null,null,null,null,null,null,null,null,null,null,null,null,null,null,null,null,null,null,null,null,null,null,null,null,null,null,null,null,null,null,null,null,null,null,null,null,null,null,null,null,null,null,null,null,null,null,null,null,{"$f":"SUM(AJ348:AZ348)","v":0}]
["      3.1.2 Raport privind impactul asupra mediului",null,null,null,null,null,null,null,null,null,null,null,null,null,null,null,null,null,null,null,null,null,null,null,null,null,null,null,null,null,null,null,null,null,null,null,null,null,null,null,null,null,null,null,null,null,null,null,null,null,null,null,{"$f":"SUM(AJ349:AZ349)","v":0}]
["      3.1.3 Alte studii specifice",null,null,null,null,null,null,null,null,null,null,null,null,null,null,null,null,null,null,null,null,null,null,null,null,null,null,null,null,null,null,null,null,null,null,null,null,null,null,null,null,null,null,null,null,null,null,null,null,null,null,null,{"$f":"SUM(AJ350:AZ350)","v":0}]
["3.2 Documentații-suport și cheltuieli pentru obţinerea de avize, acorduri şi autorizaţii",null,null,null,null,null,null,null,null,null,null,null,null,null,null,null,null,null,null,null,null,null,null,null,null,null,null,null,null,null,null,null,null,null,null,null,null,null,null,null,null,null,null,null,null,null,null,null,null,null,null,null,0]
["3.3 Expertizare tehnică",null,null,null,null,null,null,null,null,null,null,null,null,null,null,null,null,null,null,null,null,null,null,null,null,null,null,null,null,null,null,null,null,null,null,null,null,null,null,null,null,null,null,null,null,null,null,null,null,null,null,null,0]
["3.4 Certificarea performanței energetice și auditul energetic al clădirilor",null,null,null,null,null,null,null,null,null,null,null,null,null,null,null,null,null,null,null,null,null,null,null,null,null,null,null,null,null,null,null,null,null,null,null,null,null,null,null,null,null,null,null,null,null,null,null,null,null,null,null,0]
["3.5 Proiectare",null,null,null,null,null,null,null,null,null,null,null,null,null,null,null,null,null,null,null,null,null,null,null,null,null,null,null,null,null,null,null,null,null,null,{"$f":"SUM(AJ355:AJ360)","v":0},null,null,null,null,null,null,null,null,{"$f":"SUM(AS355:AS360)","v":0},null,null,null,null,null,null,null,0]
["      3.5.1 Temă de proiectare",null,null,null,null,null,null,null,null,null,null,null,null,null,null,null,null,null,null,null,null,null,null,null,null,null,null,null,null,null,null,null,null,null,null,null,null,null,null,null,null,null,null,null,null,null,null,null,null,null,null,null,0]
["      3.5.2 Studiu de prefezabilitate",null,null,null,null,null,null,null,null,null,null,null,null,null,null,null,null,null,null,null,null,null,null,null,null,null,null,null,null,null,null,null,null,null,null,null,null,null,null,null,null,null,null,null,null,null,null,null,null,null,null,null,0]
["      3.5.3 Studiu de fezabilitate/documentație de avizare a lucrărilor de intervenții și deviz general",null,null,null,null,null,null,null,null,null,null,null,null,null,null,null,null,null,null,null,null,null,null,null,null,null,null,null,null,null,null,null,null,null,null,null,null,null,null,null,null,null,null,null,null,null,null,null,null,null,null,null,0]
["      3.5.4 Documentațiile tehnice necesare în vederea obținerii avizelor/acordurilor/ autorizațiilor",null,null,null,null,null,null,null,null,null,null,null,null,null,null,null,null,null,null,null,null,null,null,null,null,null,null,null,null,null,null,null,null,null,null,null,null,null,null,null,null,null,null,null,null,null,null,null,null,null,null,null,{"$f":"SUM(AJ358:AZ358)","v":0}]
["      3.5.5 Verificarea tehnică de calitate a proiectului tehnic și a detaliilor de execuție",null,null,null,null,null,null,null,null,null,null,null,null,null,null,null,null,null,null,null,null,null,null,null,null,null,null,null,null,null,null,null,null,null,null,null,null,null,null,null,null,null,null,null,null,null,null,null,null,null,null,null,0]
["      3.5.6 Proiect tehnic și detalii de execuție",null,null,null,null,null,null,null,null,null,null,null,null,null,null,null,null,null,null,null,null,null,null,null,null,null,null,null,null,null,null,null,null,null,null,null,null,null,null,null,null,null,null,null,null,null,null,null,null,null,null,null,0]
["3.6 Organizarea procedurilor de achiziţie",null,null,null,null,null,null,null,null,null,null,null,null,null,null,null,null,null,null,null,null,null,null,null,null,null,null,null,null,null,null,null,null,null,null,null,null,null,null,null,null,null,null,null,null,null,null,null,null,null,null,null,{"$f":"SUM(AJ361:AZ361)","v":0}]
["3.7 Consultanță",null,null,null,null,null,null,null,null,null,null,null,null,null,null,null,null,null,null,null,null,null,null,null,null,null,null,null,null,null,null,null,null,null,null,{"$f":"AJ363","v":0},null,null,null,null,null,null,null,null,{"$f":"SUM(AS363:AS364)","v":0},null,null,null,null,null,null,null,{"$f":"SUM(AJ362:AZ362)","v":0}]
["      3.7.1 Managementul de proiect pentru obiectivul de investiții",null,null,null,null,null,null,null,null,null,null,null,null,null,null,null,null,null,null,null,null,null,null,null,null,null,null,null,null,null,null,null,null,null,null,null,null,null,null,null,null,null,null,null,null,null,null,null,null,null,null,null,{"$f":"SUM(AJ363:AZ363)","v":0}]
["      3.7.2 Auditul financiar",null,null,null,null,null,null,null,null,null,null,null,null,null,null,null,null,null,null,null,null,null,null,null,null,null,null,null,null,null,null,null,null,null,null,null,null,null,null,null,null,null,null,null,null,null,null,null,null,null,null,null,0]
["3.8 Asistența tehnică",null,null,null,null,null,null,null,null,null,null,null,null,null,null,null,null,null,null,null,null,null,null,null,null,null,null,null,null,null,null,null,null,null,null,{"$f":"AJ366+AJ369","v":0},null,null,null,null,null,null,null,null,{"$f":"AS366+AS369","v":0},null,null,null,null,null,null,null,0]
["      3.8.1 Asistență tehnică din partea proiectantului",null,null,null,null,null,null,null,null,null,null,null,null,null,null,null,null,null,null,null,null,null,null,null,null,null,null,null,null,null,null,null,null,null,null,{"$f":"SUM(AJ367:AJ368)","v":0},null,null,null,null,null,null,null,null,{"$f":"SUM(AS367:AS368)","v":0},null,null,null,null,null,null,null,{"$f":"SUM(AJ366:AZ366)","v":0}]
["            3.8.1.1 pe perioada de execuție a lucrărilor",null,null,null,null,null,null,null,null,null,null,null,null,null,null,null,null,null,null,null,null,null,null,null,null,null,null,null,null,null,null,null,null,null,null,null,null,null,null,null,null,null,null,null,null,null,null,null,null,null,null,null,{"$f":"SUM(AJ367:AZ367)","v":0}]
["            3.8.1.2 pentru participarea proiectantului la fazele incluse în programul de control al lucrărilor de execuție, avizat de către Inspectoratul de Stat în Construcții",null,null,null,null,null,null,null,null,null,null,null,null,null,null,null,null,null,null,null,null,null,null,null,null,null,null,null,null,null,null,null,null,null,null,null,null,null,null,null,null,null,null,null,null,null,null,null,null,null,null,null,0]
["      3.8.2 Dirigenție de șantier",null,null,null,null,null,null,null,null,null,null,null,null,null,null,null,null,null,null,null,null,null,null,null,null,null,null,null,null,null,null,null,null,null,null,null,null,null,null,null,null,null,null,null,null,null,null,null,null,null,null,null,0]
["Verificare încadrare cheltuieli capitolul 3",null,null,null,null,null,null,null,null,null,null,null,null,null,null,null,null,null,null,null,null,null,null,null,null,null,null,null,null,null,null,null,{"$f":"AJ340+AJ345+AJ371","v":0},{"$f":"IF(AG370=0,0,AI370)","v":0},{"$f":"AJ346*100/AG370","v":{"$error":"#DIV/0!"}},{"$f":"IF(AJ371=0,IF(AH370<=5,\"cheltuieli capitol 3 se incadreaza in limita de 5%\",\"cheltuieli capitol 3 nu se incadreaza in limita de 5%\"),IF(AH370<=10,\"cheltuieli capitol 3 se incadreaza in limita de 10%\",\"cheltuieli capitol 3 nu se incadreaza in limita de 10%\"))","v":"cheltuieli capitol 3 se incadreaza in limita de 5%"}]
["Capitolul 4 Cheltuieli pentru investiţia de bază - total, din care:",null,null,null,null,null,null,null,null,null,null,null,null,null,null,null,null,null,null,null,null,null,null,null,null,null,null,null,null,null,null,null,null,null,null,{"$f":"SUM(AJ372:AJ377)","v":0},null,null,null,null,null,null,null,null,{"$f":"SUM(AS372:AS377)","v":0},null,null,null,null,null,null,null,{"$f":"SUM(AJ371:AZ371)","v":0}]
["4.1 Construcţii şi instalaţii",null,null,null,null,null,null,null,null,null,null,null,null,null,null,null,null,null,null,null,null,null,null,null,null,null,null,null,null,null,null,null,null,null,null,null,null,null,null,null,null,null,null,null,null,null,null,null,null,null,null,null,{"$f":"SUM(AJ372:AZ372)","v":0}]
["4.2 Montaj utilaje, echipamente tehnologice şi funcţionale",null,null,null,null,null,null,null,null,null,null,null,null,null,null,null,null,null,null,null,null,null,null,null,null,null,null,null,null,null,null,null,null,null,null,null,null,null,null,null,null,null,null,null,null,null,null,null,null,null,null,null,0]
["4.3 Utilaje, echipamente tehnologice şi funcţionale care necesită montaj",null,null,null,null,null,null,null,null,null,null,null,null,null,null,null,null,null,null,null,null,null,null,null,null,null,null,null,null,null,null,null,null,null,null,null,null,null,null,null,null,null,null,null,null,null,null,null,null,null,null,null,0]
["4.4 Utilaje, echipamente tehnologice şi funcţionale care nu necesită montaj şi echipamente de transport",null,null,null,null,null,null,null,null,null,null,null,null,null,null,null,null,null,null,null,null,null,null,null,null,null,null,null,null,null,null,null,null,null,null,null,null,null,null,null,null,null,null,null,null,null,null,null,null,null,null,null,0]
["4.5 Dotări",null,null,null,null,null,null,null,null,null,null,null,null,null,null,null,null,null,null,null,null,null,null,null,null,null,null,null,null,null,null,null,null,null,null,null,null,null,null,null,null,null,null,null,null,null,null,null,null,null,null,null,0]
["4.6 Active necorporale",null,null,null,null,null,null,null,null,null,null,null,null,null,null,null,null,null,null,null,null,null,null,null,null,null,null,null,null,null,null,null,null,null,null,null,null,null,null,null,null,null,null,null,null,null,null,null,null,null,null,null,0]
["Capitolul 5 Alte cheltuieli - total, din care:",null,null,null,null,null,null,null,null,null,null,null,null,null,null,null,null,null,null,null,null,null,null,null,null,null,null,null,null,null,null,null,null,null,null,{"$f":"AJ379+AJ382+AJ389","v":0},null,null,null,null,null,null,null,null,{"$f":"AS379+AS382+AS388+AS389","v":0},null,null,null,null,null,null,null,0]
["5.1 Organizare de şantier",null,null,null,null,null,null,null,null,null,null,null,null,null,null,null,null,null,null,null,null,null,null,null,null,null,null,null,null,null,null,null,null,null,null,{"$f":"SUM(AJ380:AR381)","v":0},null,null,null,null,null,null,null,null,{"$f":"SUM(AS380:AZ381)","v":0},null,null,null,null,null,null,null,0]
["      5.1.1 Lucrări de construcţii şi instalaţii aferente organizării de şantier",null,null,null,null,null,null,null,null,null,null,null,null,null,null,null,null,null,null,null,null,null,null,null,null,null,null,null,null,null,null,null,null,null,null,null,null,null,null,null,null,null,null,null,null,null,null,null,null,null,null,null,0]
["      5.1.2 Cheltuieli conexe orgănizării şantierului",null,null,null,null,null,null,null,null,null,null,null,null,null,null,null,null,null,null,null,null,null,null,null,null,null,null,null,null,null,null,null,null,null,null,null,null,null,null,null,null,null,null,null,null,null,null,null,null,null,null,null,0]
["5.2 Comisioane, cote, taxe, costul creditului",null,null,null,null,null,null,null,null,null,null,null,null,null,null,null,null,null,null,null,null,null,null,null,null,null,null,null,null,null,null,null,null,null,null,{"$f":"SUM(AJ384:AR387)-AJ386","v":0},null,null,null,null,null,null,null,null,{"$f":"SUM(AS383:AZ387)","v":0},null,null,null,null,null,null,null,{"$f":"SUM(AJ382:AZ382)","v":0}]
["      5.2.1 Comisioanele și dobânzile aferente creditului băncii finanțatoare",null,null,null,null,null,null,null,null,null,null,null,null,null,null,null,null,null,null,null,null,null,null,null,null,null,null,null,null,null,null,null,null,null,null,null,null,null,null,null,null,null,null,null,null,null,null,null,null,null,null,null,0]
["      5.2.2 Cota aferentă ISC pentru controlul calității lucrărilor de construcții",null,null,null,null,null,null,null,null,null,null,null,null,null,null,null,null,null,null,null,null,null,null,null,null,null,null,null,null,null,null,null,null,null,null,null,null,null,null,null,null,null,null,null,null,null,null,null,null,null,null,null,0]
["      5.2.3 Cota aferentă ISC pentru controlul statului în amenajarea teritoriului, urbanism și pentru autorizarea lucrărilor de construcţii",null,null,null,null,null,null,null,null,null,null,null,null,null,null,null,null,null,null,null,null,null,null,null,null,null,null,null,null,null,null,null,null,null,null,null,null,null,null,null,null,null,null,null,null,null,null,null,null,null,null,null,{"$f":"SUM(AJ385:AZ385)","v":0}]
["      5.2.4 Cota aferentă Casei Sociale a Constructorilor - CSC",null,null,null,null,null,null,null,null,null,null,null,null,null,null,null,null,null,null,null,null,null,null,null,null,null,null,null,null,null,null,null,null,null,null,null,null,null,null,null,null,null,null,null,null,null,null,null,null,null,null,null,0]
["      5.2.5 Taxe pentru acorduri, avize conforme și autorizașia de construire/desființare",null,null,null,null,null,null,null,null,null,null,null,null,null,null,null,null,null,null,null,null,null,null,null,null,null,null,null,null,null,null,null,null,null,null,null,null,null,null,null,null,null,null,null,null,null,null,null,null,null,null,null,{"$f":"SUM(AJ387:AZ387)","v":0}]
["5.3 Cheltuieli diverse şi neprevăzute",null,null,null,null,null,null,null,null,null,null,null,null,null,null,null,null,null,null,null,null,null,null,null,null,null,null,null,null,null,null,null,null,null,null,null,null,null,null,null,null,null,null,null,null,null,null,null,null,null,null,null,{"$f":"SUM(AJ388:AZ388)","v":0}]
["5.4 Cheltuieli pentru informare și publicitate",null,null,null,null,null,null,null,null,null,null,null,null,null,null,null,null,null,null,null,null,null,null,null,null,null,null,null,null,null,null,null,null,null,null,null,null,null,null,null,null,null,null,null,null,null,null,null,null,null,null,null,{"$f":"SUM(AJ389:AZ389)","v":0}]
["Capitolul 6 Cheltuieli pentru darea în exploatare - total, din care:",null,null,null,null,null,null,null,null,null,null,null,null,null,null,null,null,null,null,null,null,null,null,null,null,null,null,null,null,null,null,null,null,null,null,{"$f":"AJ392","v":0},null,null,null,null,null,null,null,null,{"$f":"SUM(AS391:AS392)","v":0},null,null,null,null,null,null,null,0]
["6.1 Pregătirea personalului de exploatare",null,null,null,null,null,null,null,null,null,null,null,null,null,null,null,null,null,null,null,null,null,null,null,null,null,null,null,null,null,null,null,null,null,null,null,null,null,null,null,null,null,null,null,null,null,null,null,null,null,null,null,0]
["6.2 Probe tehnologice şi teste",null,null,null,null,null,null,null,null,null,null,null,null,null,null,null,null,null,null,null,null,null,null,null,null,null,null,null,null,null,null,null,null,null,null,null,null,null,null,null,null,null,null,null,null,null,null,null,null,null,null,null,0]
["TOTAL GENERAL",null,null,null,null,null,null,null,null,null,null,null,null,null,null,null,null,null,null,null,null,null,null,null,null,null,null,null,null,null,null,null,null,null,null,{"$f":"AJ340+AJ345+AJ346+AJ371+AJ378+AJ390","v":0},null,null,null,null,null,null,null,null,{"$f":"AS340+AS345+AS346+AS371+AS378+AS390","v":0},null,null,null,null,null,null,null,0]
["Verificare actualizare",null,null,null,null,null,null,null,null,null,null,null,null,null,null,null,null,null,null,null,null,null,null,null,null,null,null,null,null,null,null,{"$f":"AJ395*100/AJ393","v":{"$error":"#DIV/0!"}},null,null,{"$f":"IF(AJ393=0,0,AF394)","v":0},{"$f":"IF(AI394<=5,\"actualizare mai mică de 5% din valoarea eligibila\",\"actualizare mai mare de 5% din valoarea eligibila\")","v":"actualizare mai mică de 5% din valoarea eligibila"}]
["ACTUALIZARE Cheltuieli Eligibile (max 5%)",null,null,null,null,null,null,null,null,null,null,null,null,null,null,null,null,null,null,null,null,null,null,null,null,null,null,null,null,null,null,null,null,null,null,null,null,null,null,null,null,null,null,null,null,null,null,null,null,null,null,null,{"$f":"SUM(AJ395:AZ395)","v":0}]
["TOTAL GENERAL CU ACTUALIZARE",null,null,null,null,null,null,null,null,null,null,null,null,null,null,null,null,null,null,null,null,null,null,null,null,null,null,null,null,null,null,null,null,null,null,{"$f":"AJ393+AJ395","v":0},null,null,null,null,null,null,null,null,{"$f":"AS393","v":0},null,null,null,null,null,null,null,{"$f":"SUM(AJ396:AZ396)","v":0}]
["Valoare TVA",null,null,null,null,null,null,null,null,null,null,null,null,null,null,null,null,null,null,null,null,null,null,null,null,null,null,null,null,null,null,null,null,null,null,null,null,null,null,null,null,null,null,null,null,null,null,null,null,null,null,null,0]
[]
["TOTAL GENERAL inclusiv TVA",null,null,null,null,null,null,null,null,null,null,null,null,null,null,null,null,null,null,null,null,null,null,null,null,null,null,null,null,null,null,null,null,null,null,{"$f":"BA396+BA397","v":0}]
[null,null,null,null,null,null,null,null,null,null,null,null,null,null,null,null,null,null,null,null,null,null,null,null,null,null,null,null,null,null,null,null,null,null,null,"LEI",null,null,null,null,null,null,null,null,"EURO"]
["VALOARE TOTALĂ",null,null,null,null,null,null,null,null,null,null,null,null,null,null,null,null,null,null,null,null,null,null,null,null,null,null,null,null,null,null,null,null,null,null,{"$f":"AS401*W334","v":0},null,null,null,null,null,null,null,null,{"$f":"AJ399","v":0}]
["VALOARE ELIGIBILĂ",null,null,null,null,null,null,null,null,null,null,null,null,null,null,null,null,null,null,null,null,null,null,null,null,null,null,null,null,null,null,null,null,null,null,{"$f":"AS402*W334","v":0},null,null,null,null,null,null,null,null,{"$f":"AJ396+AJ397","v":0}]
["VALOARE NEELIGIBILĂ",null,null,null,null,null,null,null,null,null,null,null,null,null,null,null,null,null,null,null,null,null,null,null,null,null,null,null,null,null,null,null,null,null,null,{"$f":"AS403*W334","v":0},null,null,null,null,null,null,null,null,{"$f":"AS396+AS397","v":0}]
[]
["Plan Financiar",null,null,null,null,null,null,null,null,null,null,null,null,null,null,null,null,null,null,null,null,null,null,null,null,null,null,null,null,null,null,null,null,null,null,"Cheltuieli eligibile EURO",null,null,null,null,null,null,null,null,"Cheltuieli neeligibile EURO",null,null,null,null,null,null,null,"Total"]
["Ajutor public nerambursabil (contribuţie UE şi cofinanţare naţională)",null,null,null,null,null,null,null,null,null,null,null,null,null,null,null,null,null,null,null,null,null,null,null,null,null,null,null,null,null,null,null,null,null,null,null,null,null,null,null,null,null,null,null,null,null,null,null,null,null,null,null,{"$f":"SUM(AJ406:AZ406)","v":0}]
["Cofinantare privata, din care:",null,null,null,null,null,null,null,null,null,null,null,null,null,null,null,null,null,null,null,null,null,null,null,null,null,null,null,null,null,null,null,null,null,null,{"$f":"SUM(AJ408:AJ409)","v":0},null,null,null,null,null,null,null,null,{"$f":"SUM(AS408:AS409)","v":0},null,null,null,null,null,null,null,0]
[null,null,null,null,null,null,null,null,null,null,null,null,null,null,null,"- autofinantare",null,null,null,null,null,null,null,null,null,null,null,null,null,null,null,null,null,null,null,null,null,null,null,null,null,null,null,null,null,null,null,null,null,null,null,null,0]
[null,null,null,null,null,null,null,null,null,null,null,null,null,null,null,"- imprumuturi",null,null,null,null,null,null,null,null,null,null,null,null,null,null,null,null,null,null,null,null,null,null,null,null,null,null,null,null,null,null,null,null,null,null,null,null,0]
["Buget local",null,null,null,null,null,null,null,null,null,null,null,null,null,null,null,null,null,null,null,null,null,null,null,null,null,null,null,null,null,null,null,null,null,null,null,null,null,null,null,null,null,null,null,null,null,null,null,null,null,null,null,0]
["TOTAL PROIECT",null,null,null,null,null,null,null,null,null,null,null,null,null,null,null,null,null,null,null,null,null,null,null,null,null,null,null,null,null,null,null,null,null,null,{"$f":"AJ406+AJ407+AJ410","v":0},null,null,null,null,null,null,null,null,{"$f":"AS407+AS410","v":0},null,null,null,null,null,null,null,0]
["Procent contribuţie publică",null,null,null,null,null,null,null,null,null,null,null,null,null,null,null,null,null,null,null,null,null,null,null,null,null,null,null,null,null,null,null,null,{"$f":"AJ406*100/AJ411","v":{"$error":"#DIV/0!"}},{"$f":"IF(AJ411=0,0,AH412)","v":0},{"$f":"AI412","v":0},null,null,null,null,null,null,null,"%"]
["Avans solicitat"]
["Procent avans solicitat ca procent din ajutorul public nerambursabil",null,null,null,null,null,null,null,null,null,null,null,null,null,null,null,null,null,null,null,null,null,null,null,null,null,null,null,null,null,null,null,null,null,{"$f":"AJ413*100/AJ406","v":{"$error":"#DIV/0!"}},{"$f":"IF(AJ406=0,0,AI414)","v":0},null,null,null,null,null,null,null,null,{"$f":"IF(AJ414<=50,\"Suma avans mai mica de 50% din ajutorul public\",\"Suma avans mai mare de 50% din ajutorul public\")","v":"Suma avans mai mica de 50% din ajutorul public"}]
[]
[]
[null,null,null,null,null,null,null,"MINISTERUL AGRICULTURII ŞI DEZVOLTĂRII RURALE"]
[null,null,null,null,null,null,null,null,null,null,null,null,null,null,null,null,null,null,null,null,null,null,null,null,null,null,null,null,null,null,null,null,null,null,null,null,null,null,null,null,null,null,"Anexa A1\nHG 28/2008"]
[null,null,null,null,null,null,null,"AGENŢIA PENTRU FINANŢAREA INVESTIŢIILOR RURALE"]
[null,null,null,null,null,null,null,null,null,null,null,null,null,null,null,null,null,null,null,null,null,null,null,null,null,null,null,null,null,null,null,null,null,null,null,null,null,null,null,null,null,null,"…………..2017",null,null,null,null,null,null,null,null,"Nr.1"]
[null,null,null,null,null,null,null,"Deviz financiar- Capitolul 3 - Cheltuieli pentru proiectare şi asistenţa tehnică - EURO"]
[]
[]
["(Titlu deviz)"]
["Nr.crt",null,null,null,"Specificaţie",null,null,null,null,null,null,null,null,null,null,null,null,null,null,null,null,null,null,null,null,null,null,null,null,null,null,null,null,null,null,null,null,null,null,null,null,null,"Valoare eligibilă",null,null,null,null,null,null,null,null,"Valoare\nneeligibilă"]
[1,null,null,null,"Cheltuieli pentru studii de teren (geotehnice, geologice, hidrologice, hidrogeologice, fotogrammetrice, topografice şi de stabilitate a terenului pe care se amplasează obiectivul de investiţie)"]
[2,null,null,null,"Cheltuieli pentru obţinere de avize, acorduri şi autorizaţii - total, din care:",null,null,null,null,null,null,null,null,null,null,null,null,null,null,null,null,null,null,null,null,null,null,null,null,null,null,null,null,null,null,null,null,null,null,null,null,null,{"$f":"SUM(AQ428:AY437)","v":0},null,null,null,null,null,null,null,null,{"$f":"SUM(AZ428:BI437)","v":0}]
[null,null,null,null,"1. obţinerea/prelungirea valabilităţii ceritificatului de urbanism"]
[null,null,null,null,"2. obţinerea/prelungirea valabilităţii autorizaţiei de construire/desfiinţare, obţinere autorizaţii de scoatere din circuitul agricol"]
[null,null,null,null,"3. obţinerea avizelor şi acordurilor pentru racorduri şi branşamente la reţelele publice de apă, canalizare, gaze, termoficare, energie electrică, telefonie etc."]
[null,null,null,null,"4. obţinere aviz sanitar, sanitar-veterinar şi fitosanitar"]
[null,null,null,null,"5. obţinerea certificatului de nomenclatură stradală şi adresa"]
[null,null,null,null,"6. întocmirea documentaţiei, obţinerea numărului Cadastral provizoriu şi înregistrarea terenului în Cartea Funciară"]
[null,null,null,null,"7. obţinerea avizului PSI"]
[null,null,null,null,"8. obţinerea acordului de mediu"]
[null,null,null,null,"9. căi ferate"]
[null,null,null,null,"10. alte avize, acorduri şi autorizaţii solicitate prin lege"]
[3,null,null,null,"3 Proiectare şi inginerie - total, din care:",null,null,null,null,null,null,null,null,null,null,null,null,null,null,null,null,null,null,null,null,null,null,null,null,null,null,null,null,null,null,null,null,null,null,null,null,null,{"$f":"AQ439+AQ446+AQ447+AQ448","v":0},null,null,null,null,null,null,null,null,{"$f":"AZ439+AZ446+AZ447+AZ448","v":0}]
[null,null,null,null,"1. Cheltuieli pentru elaborarea tuturor fazelor de proiectare - total, din care:",null,null,null,null,null,null,null,null,null,null,null,null,null,null,null,null,null,null,null,null,null,null,null,null,null,null,null,null,null,null,null,null,null,null,null,null,null,{"$f":"SUM(AQ440:AY445)","v":0},null,null,null,null,null,null,null,null,{"$f":"SUM(AZ440:BI445)","v":0}]
[null,null,null,null,null,null,"a. studiu de prefezabilitate"]
[null,null,null,null,null,null,"b. studiu de fezabilitate"]
[null,null,null,null,null,null,"c. proiect tehnic"]
[null,null,null,null,null,null,"d. detalii de execuţie"]
[null,null,null,null,null,null,"e. verificarea tehnică a proiectării"]
[null,null,null,null,null,null,"f. elaborarea certificatului de performanţa energetică a clădirii"]
[null,null,null,null,"2. Documentaţii necesare pentru obţinerea acordurilor, avizelor şi autorizaţiilor aferente obiectivului de investitii"]
[null,null,null,null,"3. Cheltuielile pentru expertiza tehnică efectuată pentru construcţii începute şi neterminate sau care urmează a fi modificate prin proiect (modernizări, consolidări etc.)"]
[null,null,null,null,"4. Cheltuielile pentru efectuarea auditului energetic"]
[4,null,null,null,"Organizarea procedurilor de achiziţie"]
[5,null,null,null,"Cheltuieli pentru consultanţă - total, din care:",null,null,null,null,null,null,null,null,null,null,null,null,null,null,null,null,null,null,null,null,null,null,null,null,null,null,null,null,null,null,null,null,null,null,null,null,null,{"$f":"SUM(AQ451:AY452)","v":0},null,null,null,null,null,null,null,null,{"$f":"SUM(AZ451:BI452)","v":0}]
[null,null,null,null,"1. plata serviciilor de consultanţă la elaborarea memoriului justificativ, studiilor de piaţă, de evaluare, la întocmirea cererii de finanţare"]
[null,null,null,null,"2. plata serviciilor de consultanţă în domeniul managementului investiţiei sau administrarea contractului de execuţie"]
[6,null,null,null,"Cheltuieli pentru asistenţa tehnică - total, din care:",null,null,null,null,null,null,null,null,null,null,null,null,null,null,null,null,null,null,null,null,null,null,null,null,null,null,null,null,null,null,null,null,null,null,null,null,null,{"$f":"SUM(AQ454:AY455)","v":0},null,null,null,null,null,null,null,null,{"$f":"SUM(AZ454:BI455)","v":0}]
[null,null,null,null,"1. asistenţa tehnică din partea proiectantului în cazul când aceasta nu intră în tarifarea proiectării"]
[null,null,null,null,"2. plata diriginţilor de şantier desemnaţi de autoritatea contractantă, autorizaţi conform prevederilor legale pentru verificarea execuţiei lucrărilor de construcţii şi instalaţii"]
[null,null,null,null,"Total valoare fără TVA",null,null,null,null,null,null,null,null,null,null,null,null,null,null,null,null,null,null,null,null,null,null,null,null,null,null,null,null,null,null,null,null,null,null,null,null,null,{"$f":"AQ453+AQ450+AQ438+AQ427+AQ426","v":0},null,null,null,null,null,null,null,null,{"$f":"AZ453+AZ450+AZ449+AZ438+AZ427+AZ426","v":0}]
[null,null,null,null,"Valoare TVA (aferentă cheltuielilor eligibile şi neeligibile)"]
["TOTAL DEVIZ FINANCIAR 1 (inclusiv TVA)",null,null,null,null,null,null,null,null,null,null,null,null,null,null,null,null,null,null,null,null,null,null,null,null,null,null,null,null,null,null,null,null,null,null,null,null,null,null,null,null,null,{"$f":"AQ456+AZ456+AQ457+AZ457","v":0}]
[]
["Notă: Pentru a adăuga o nouă anexă accesaţi foaia (sheet) corespunzătoare sau click aici"]
[]
[null,null,null,null,null,null,null,"MINISTERUL AGRICULTURII ŞI DEZVOLTĂRII RURALE"]
[null,null,null,null,null,null,null,null,null,null,null,null,null,null,null,null,null,null,null,null,null,null,null,null,null,null,null,null,null,null,null,null,null,null,null,null,null,null,null,null,null,null,"Anexa A1\nHG 907/2016"]
[null,null,null,null,null,null,null,"AGENŢIA PENTRU FINANŢAREA INVESTIŢIILOR RURALE"]
[]
[null,null,null,null,null,null,null,"Deviz financiar- Capitolul 3 - Cheltuieli pentru proiectare şi asistenţa tehnică - EURO"]
[]
[]
["(Titlu deviz)"]
["Nr.crt",null,null,null,"Specificaţie",null,null,null,null,null,null,null,null,null,null,null,null,null,null,null,null,null,null,null,null,null,null,null,null,null,null,null,null,null,null,null,null,null,null,null,null,null,"Valoare eligibilă",null,null,null,null,null,null,null,null,"Valoare\nneeligibilă"]
["3.1",null,null,null,"Cheltuieli pentru studii - total din care:",null,null,null,null,null,null,null,null,null,null,null,null,null,null,null,null,null,null,null,null,null,null,null,null,null,null,null,null,null,null,null,null,null,null,null,null,null,{"$f":"AQ472+AQ473+AQ474","v":0},null,null,null,null,null,null,null,null,{"$f":"AZ472+AZ473+AZ474","v":0}]
[null,null,null,null,"3.1.1 Studii de teren: studii geotehnice, geologice, hidrologice, hidrogeotehnice,\nfotogrammetrice, topografica şi de stabilitate ale terenului pe care se amplasează obiectivul de investiţie "]
[null,null,null,null,"3.1.2 Raport privind impactul asupra mediului"]
[null,null,null,null,"3.1.3 Studii de specialitate necesare în funcţie de specificul investiţiei"]
["3.2",null,null,null,"Documentaţii-suport şi cheltuieli pentru obţinerea de avize, acorduri şi\nautorizaţii",null,null,null,null,null,null,null,null,null,null,null,null,null,null,null,null,null,null,null,null,null,null,null,null,null,null,null,null,null,null,null,null,null,null,null,null,null,{"$f":"AQ476+AQ477+AQ478+AQ481+AQ482+AQ483+AQ484","v":0},null,null,null,null,null,null,null,null,{"$f":"AZ476+AZ477+AZ478+AZ479+AZ480+AZ481+AZ482+AZ483+AZ484","v":0}]
[null,null,null,null,"1. obţinerea/prelungirea valabilităţii ceritificatului de urbanism"]
[null,null,null,null,"2. obţinerea/prelungirea valabilităţii autorizaţiei de construire/desfiinţare"]
[null,null,null,null,"3. obţinerea avizelor şi acordurilor pentru racorduri şi branşamente la reţele publice\nde alimentare cu apă, canalizare, alimentare cu gaze, alimentare cu agent termic,\nenergie electrică, telefonie"]
[null,null,null,null,"4. obţinerea certificatului de nomenclatură stradală şi adresă"]
[null,null,null,null,"5. întocmirea documentaţiei, obţinerea numărului cadastral provizoriu şi\nînregistrarea terenului în cartea funciară"]
[null,null,null,null,"6. obţinerea actului administrativ al autorităţii competente pentru protecţia mediului"]
[null,null,null,null,"7. obţinerea avizului de protecţie civilă"]
[null,null,null,null,"8. avizul de specialitate în cazul obiectivelor de patrimoniu"]
[null,null,null,null,"9. alte avize, acorduri şi autorizaţii"]
["3.3",null,null,null,"Cheltuieli pentru expertizarea tehnică a construcţiilor existente, a structurilor şi/sau, după caz, a proiectelor tehnice, inclusiv întocmirea de către expertul tehnic a raportului de expertiză tehnică",null,null,null,null,null,null,null,null,null,null,null,null,null,null,null,null,null,null,null,null,null,null,null,null,null,null,null,null,null,null,null,null,null,null,null,null,null,0,null,null,null,null,null,null,null,null,0]
["3.4",null,null,null,"Cheltuieli pentru certificarea performanţei energetice şi auditul energetic al clădirilor",null,null,null,null,null,null,null,null,null,null,null,null,null,null,null,null,null,null,null,null,null,null,null,null,null,null,null,null,null,null,null,null,null,null,null,null,null,0,null,null,null,null,null,null,null,null,0]
["3.5",null,null,null,"Cheltuieli pentru proiectare",null,null,null,null,null,null,null,null,null,null,null,null,null,null,null,null,null,null,null,null,null,null,null,null,null,null,null,null,null,null,null,null,null,null,null,null,null,{"$f":"AQ488+AQ489+AQ490+AQ491+AQ492+AQ493","v":0},null,null,null,null,null,null,null,null,{"$f":"AZ488+AZ489+AZ490+AZ491+AZ492+AZ493","v":0}]
[null,null,null,null,"3.5.1 Temă de proiectare"]
[null,null,null,null,"3.5.2 Studiu de prefezabilitate"]
[null,null,null,null,"3.5.3 Studiu de fezabilitate/documentaţie de avizare a lucrărilor de intervenţii şi deviz general"]
[null,null,null,null,"3.5.4 Documentaţiile tehnice necesare în vederea obţinerii avizelor/acordurilor/autorizaţiilor"]
[null,null,null,null,"3.5.5 Verificarea tehnică de calitate a proiectului tehnic şi a detaliilor de execuţie"]
[null,null,null,null,"3.5.6 Proiect tehnic şi detalii de execuţie"]
["3.6",null,null,null,"Cheltuieli aferente organizării şi derulării procedurilor de achiziţii publice",null,null,null,null,null,null,null,null,null,null,null,null,null,null,null,null,null,null,null,null,null,null,null,null,null,null,null,null,null,null,null,null,null,null,null,null,null,null,null,null,null,null,null,null,null,null,{"$f":"AZ495+AZ496+AZ497+AZ498","v":0}]
[null,null,null,null,"1. Cheltuieli aferente întocmirii documentaţiei de atribuire şi multiplicării acesteia (exclusiv cele cumpărate de ofertanţi)"]
[null,null,null,null,"2. Cheltuieli cu onorariile, transportul, cazarea şi diurna membrilor desemnaţi în comisiile de evaluare"]
[null,null,null,null,"3. Anunţuri de intenţie, de participare şi de atribuire a contractelor, corespondenţă\nprin poştă, fax, poştă electronică în legătură cu procedurile de achiziţie publică"]
[null,null,null,null,"4. Cheltuieli aferente organizării şi derulării procedurilor de achiziţii publice"]
["3.7",null,null,null,"Cheltuieli pentru consultanţă",null,null,null,null,null,null,null,null,null,null,null,null,null,null,null,null,null,null,null,null,null,null,null,null,null,null,null,null,null,null,null,null,null,null,null,null,null,{"$f":"AQ500","v":0},null,null,null,null,null,null,null,null,{"$f":"AZ500+AZ501","v":0}]
[null,null,null,null,"3.7.1 Managementul de proiect pentru obiectivul de investiţii"]
[null,null,null,null,"3.7.2 Auditul financiar"]
["3.8",null,null,null,"Cheltuieli pentru asistenţă tehnică",null,null,null,null,null,null,null,null,null,null,null,null,null,null,null,null,null,null,null,null,null,null,null,null,null,null,null,null,null,null,null,null,null,null,null,null,null,{"$f":"AQ503+AQ506","v":0},null,null,null,null,null,null,null,null,{"$f":"AZ503+AZ506","v":0}]
[null,null,null,null,"3.8.1. Asistenţă tehnică din partea proiectantului",null,null,null,null,null,null,null,null,null,null,null,null,null,null,null,null,null,null,null,null,null,null,null,null,null,null,null,null,null,null,null,null,null,null,null,null,null,{"$f":"AQ504+AQ505","v":0},null,null,null,null,null,null,null,null,{"$f":"AZ504+AZ505","v":0}]
[null,null,null,null,"    1.1. pe perioada de execuţie a lucrărilor"]
[null,null,null,null,"     1.2. pentru participarea proiectantului la fazele incluse în programul de control al\nlucrărilor de execuţie, avizat de către Inspectoratul de Stat în Construcţii"]
[null,null,null,null,"3.8.2 Dirigenţie de şantier, asigurată de personal tehnic de specialitate, autorizat"]
[null,null,null,null,"Total valoare fără TVA",null,null,null,null,null,null,null,null,null,null,null,null,null,null,null,null,null,null,null,null,null,null,null,null,null,null,null,null,null,null,null,null,null,null,null,null,null,{"$f":"AQ502+AQ499+AQ487+AQ486+AQ485+AQ475+AQ471","v":0},null,null,null,null,null,null,null,null,{"$f":"AZ502+AZ499+AZ494+AZ487+AZ486+AZ485+AZ475+AZ471","v":0}]
[null,null,null,null,"Valoare TVA (aferentă cheltuielilor eligibile şi neeligibile)"]
["TOTAL DEVIZ FINANCIAR 1 (inclusiv TVA)",null,null,null,null,null,null,null,null,null,null,null,null,null,null,null,null,null,null,null,null,null,null,null,null,null,null,null,null,null,null,null,null,null,null,null,null,null,null,null,null,null,{"$f":"AQ507+AZ507+AQ508+AZ508","v":0}]
[]
["Notă: Pentru a adăuga o nouă anexă accesaţi foaia (sheet) corespunzătoare sau click aici"]
[]
[null,null,null,null,null,null,null,"MINISTERUL AGRICULTURII ŞI DEZVOLTĂRII RURALE"]
[null,null,null,null,null,null,null,null,null,null,null,null,null,null,null,null,null,null,null,null,null,null,null,null,null,null,null,null,null,null,null,null,null,null,null,null,null,null,null,null,null,null,"Anexa A2\nHG 28/2008"]
[null,null,null,null,null,null,null,"AGENŢIA PENTRU FINANŢAREA INVESTIŢIILOR RURALE"]
[null,null,null,null,null,null,null,null,null,null,null,null,null,null,null,null,null,null,null,null,null,null,null,null,null,null,null,null,null,null,null,null,null,null,null,null,null,null,null,null,null,null,"………….2017",null,null,null,null,null,null,null,null,"Nr.1"]
[null,null,null,null,null,null,null,"DEVIZ PE OBIECT *"]
[]
[]
["(Descriere obiect de construcţie)"]
["Nr. crt.",null,null,null,"Denumire",null,null,null,null,null,null,null,null,null,null,null,null,null,null,null,null,null,null,null,null,null,null,null,null,null,null,null,null,null,null,null,null,null,null,null,null,null,"Valoarea pe categorii de lucrări, fară TVA - EURO"]
[null,null,null,null,null,null,null,null,null,null,null,null,null,null,null,null,null,null,null,null,null,null,null,null,null,null,null,null,null,null,null,null,null,null,null,null,null,null,null,null,null,null,"Valoare eligibilă",null,null,null,null,null,null,null,null,"Valoare\nneeligibilă"]
["I - LUCRĂRI DE CONSTRUCŢII ŞI INSTALAŢII"]
[1,null,null,null,"Terasamente"]
[2,null,null,null,"Construcţii : rezistenţă (fundaţii, structură de rezistenţă) şi arhitectură (închideri exterioare, compartimentări, finisaje)"]
[3,null,null,null,"Izolaţii"]
[4,null,null,null,"Instalaţii electrice"]
[5,null,null,null,"Instalaţii sanitare"]
[6,null,null,null,"Instalaţii de încălzire, ventilare, climatizare. PSI, radio-tv, intranet"]
[7,null,null,null,"Instalaţii de alimentare cu gaze naturale"]
[8,null,null,null,"Instalaţii de telecomunicaţii"]
[null,null,null,null,"TOTAL I ( fără TVA)",null,null,null,null,null,null,null,null,null,null,null,null,null,null,null,null,null,null,null,null,null,null,null,null,null,null,null,null,null,null,null,null,null,null,null,null,null,{"$f":"SUM(AQ524:AY531)","v":0},null,null,null,null,null,null,null,null,{"$f":"SUM(AZ524:BI531)","v":0}]
["II - MONTAJ"]
[9,null,null,null,"Montaj utilaje şi echipamente tehnologice"]
[null,null,null,null,"TOTAL II ( fără TVA)",null,null,null,null,null,null,null,null,null,null,null,null,null,null,null,null,null,null,null,null,null,null,null,null,null,null,null,null,null,null,null,null,null,null,null,null,null,{"$f":"SUM(AQ534)","v":0},null,null,null,null,null,null,null,null,{"$f":"SUM(AZ534)","v":0}]
["III - PROCURARE"]
[10,null,null,null,"Utilaje şi echipamente tehnologice"]
[11,null,null,null,"Utilaje şi echipamente de transport, utilaje şi echipamente fară montaj, mijloace de transport, alte achiziţii specifice"]
[12,null,null,null,"Dotări"]
[null,null,null,null,"TOTAL III ( fără TVA)",null,null,null,null,null,null,null,null,null,null,null,null,null,null,null,null,null,null,null,null,null,null,null,null,null,null,null,null,null,null,null,null,null,null,null,null,null,{"$f":"SUM(AQ537:AY539)","v":0},null,null,null,null,null,null,null,null,{"$f":"SUM(AZ537:BI539)","v":0}]
["TOTAL ( TOTAL I + TOTAL II +TOTAL III) fără TVA",null,null,null,null,null,null,null,null,null,null,null,null,null,null,null,null,null,null,null,null,null,null,null,null,null,null,null,null,null,null,null,null,null,null,null,null,null,null,null,null,null,{"$f":"AQ540+AQ535+AQ532","v":0},null,null,null,null,null,null,null,null,{"$f":"AZ540+AZ535+AZ532","v":0}]
["TVA aferent cheltuielilor eligibile şi neeligibile"]
["TOTAL DEVIZ PE OBIECT (inclusiv TVA)",null,null,null,null,null,null,null,null,null,null,null,null,null,null,null,null,null,null,null,null,null,null,null,null,null,null,null,null,null,null,null,null,null,null,null,null,null,null,null,null,null,{"$f":"AQ541+AZ541+AQ542+AZ542","v":0}]
[]
["Notă: Pentru a adăuga o nouă anexă accesaţi foaia (sheet) corespunzătoare sau click aici"]
[]
[null,null,null,null,null,null,null,"MINISTERUL AGRICULTURII ŞI DEZVOLTĂRII RURALE"]
[null,null,null,null,null,null,null,null,null,null,null,null,null,null,null,null,null,null,null,null,null,null,null,null,null,null,null,null,null,null,null,null,null,null,null,null,null,null,null,null,null,null,"Anexa A2\nHG 907/2016"]
[null,null,null,null,null,null,null,"AGENŢIA PENTRU FINANŢAREA INVESTIŢIILOR RURALE"]
[]
[null,null,null,null,null,null,null,"DEVIZ PE OBIECT *"]
[]
[]
["(Descriere obiect de construcţie)"]
["Nr. crt.",null,null,null,"Denumire",null,null,null,null,null,null,null,null,null,null,null,null,null,null,null,null,null,null,null,null,null,null,null,null,null,null,null,null,null,null,null,null,null,null,null,null,null,"Valoarea pe categorii de lucrări, fară TVA - EURO"]
["Cap. 4 + Cheltuieli pentru investiţia de bază",null,null,null,null,null,null,null,null,null,null,null,null,null,null,null,null,null,null,null,null,null,null,null,null,null,null,null,null,null,null,null,null,null,null,null,null,null,null,null,null,null,"Valoare eligibilă",null,null,null,null,null,null,null,null,"Valoare\nneeligibilă"]
["   I - LUCRĂRI DE CONSTRUCŢII ŞI INSTALAŢII"]
["4.1",null,null,null,"Construcţii şi instalaţii",null,null,null,null,null,null,null,null,null,null,null,null,null,null,null,null,null,null,null,null,null,null,null,null,null,null,null,null,null,null,null,null,null,null,null,null,null,{"$f":"SUM(AQ559:AQ562)","v":0},null,null,null,null,null,null,null,null,{"$f":"SUM(AZ559:BI562)","v":0}]
[null,null,null,null,"4.1.1 Terasamente, sistematizare pe verticală şi amenajări exterioare"]
[null,null,null,null,"4.1.2 Rezistenţă"]
[null,null,null,null,"4.1.3 Arhitectură"]
[null,null,null,null,"4.1.4 Instalaţii"]
[null,null,null,null,"TOTAL I ( fără TVA)",null,null,null,null,null,null,null,null,null,null,null,null,null,null,null,null,null,null,null,null,null,null,null,null,null,null,null,null,null,null,null,null,null,null,null,null,null,{"$f":"AQ558","v":0},null,null,null,null,null,null,null,null,{"$f":"AZ558","v":0}]
["   II - MONTAJ"]
["4.2",null,null,null,"Montaj utilaje şi echipamente tehnologice şi funcţionale"]
[null,null,null,null,"TOTAL II ( fără TVA)",null,null,null,null,null,null,null,null,null,null,null,null,null,null,null,null,null,null,null,null,null,null,null,null,null,null,null,null,null,null,null,null,null,null,null,null,null,{"$f":"SUM(AQ565)","v":0},null,null,null,null,null,null,null,null,{"$f":"SUM(AZ565)","v":0}]
["   III - PROCURARE"]
["4.3",null,null,null,"Utilaje, echipamente tehnologice şi funcţionale care necesită montaj"]
["4.4",null,null,null,"Utilaje, echipamente tehnologice şi funcţionale care nu necesită\nmontaj şi echipamente de transport"]
["4.5",null,null,null,"Dotări"]
["4.6",null,null,null,"Active necorporale"]
[null,null,null,null,"TOTAL III ( fără TVA)",null,null,null,null,null,null,null,null,null,null,null,null,null,null,null,null,null,null,null,null,null,null,null,null,null,null,null,null,null,null,null,null,null,null,null,null,null,{"$f":"SUM(AQ568:AY571)","v":0},null,null,null,null,null,null,null,null,{"$f":"SUM(AZ568:BI571)","v":0}]
["TOTAL ( TOTAL I + TOTAL II +TOTAL III) fără TVA",null,null,null,null,null,null,null,null,null,null,null,null,null,null,null,null,null,null,null,null,null,null,null,null,null,null,null,null,null,null,null,null,null,null,null,null,null,null,null,null,null,{"$f":"AQ572+AQ566+AQ563","v":0},null,null,null,null,null,null,null,null,{"$f":"AZ572+AZ566+AZ563","v":0}]
["TVA aferent cheltuielilor eligibile şi neeligibile"]
["TOTAL DEVIZ PE OBIECT (inclusiv TVA)",null,null,null,null,null,null,null,null,null,null,null,null,null,null,null,null,null,null,null,null,null,null,null,null,null,null,null,null,null,null,null,null,null,null,null,null,null,null,null,null,null,{"$f":"AQ573+AZ573+AQ574+AZ574","v":0}]
[]
["Notă: Pentru a adăuga o nouă anexă accesaţi foaia (sheet) corespunzătoare sau click aici"]
[]
["Situaţia achiziţiilor publice efectuate până la depunerea Cererii de finanţare cu respectarea condiţiilor de eligibilitate a cheltuielilor prevăzute în fişa Măsurii 4.3"]
["Nr. crt.",null,null,"Obiectul contractului",null,null,null,null,null,null,null,null,null,null,null,null,null,null,"Valoarea reală                         (Lei)",null,null,null,null,"Procedura aplicată",null,null,null,null,null,null,null,null,null,null,null,null,null,null,null,null,null,"Data începerii procedurii (zz/ll/aaaa)",null,null,null,null,null,null,"Data finalizarii procedurii (zz/ll/aaaa)",null,null,null,null,null,null,"Stadiul procedurii"]
[1,null,null,"Servicii de consultanta"]
[2,null,null,"Elaborarea Studiului de Fezabilitate"]
[3]
[4]
[5]
[6]
[7]
["Declar pe proprie raspundere ca informatiile din tabelul de mai sus sunt corecte si ca la atribuirea contractelor de servicii mentionate au fost respectate prevederile legislatiei nationale in vigoare privind procedura de achizitie publica"]
[]
["Reprezentant legal, Nume/Prenume"]
["Semnatura si ştampila"]
[]
[]
[]
[null,null,null,null,null,null,null,"MINISTERUL AGRICULTURII ŞI DEZVOLTĂRII RURALE",null,null,null,null,null,null,null,null,null,null,null,null,null,null,null,null,null,null,null,null,null,null,null,null,null,null,null,null,null,null,null,null,null,null,"Anexa A3\nHG 28/2008"]
[]
[null,null,null,null,null,null,null,"AGENŢIA PENTRU FINANŢAREA INVESTIŢIILOR RURALE",null,null,null,null,null,null,null,null,null,null,null,null,null,null,null,null,null,null,null,null,null,null,null,null,null,null,null,null,null,null,null,null,null,null,"……………2017",null,null,null,null,null,null,null,null,"Nr.1"]
[]
[]
[]
["(Titlu deviz)"]
["Deviz capitolul 2- Cheltuieli pentru asigurarea utilităţilor necesare obiectivului - EURO"]
["Nr.crt",null,null,null,"Specificaţie",null,null,null,null,null,null,null,null,null,null,null,null,null,null,null,null,null,null,null,null,null,null,null,null,null,null,null,null,null,null,null,null,null,null,null,null,null,"Valoare eligibilă",null,null,null,null,null,null,null,null,"Valoare\nneeligibilă"]
[1,null,null,null,"Alimentare cu apă"]
[2,null,null,null,"Canalizare"]
[3,null,null,null,"Alimentare cu gaze naturale"]
[4,null,null,null,"Alimentare cu agent termic"]
[5,null,null,null,"Alimentare cu energie electrică"]
[6,null,null,null,"Telecomunicaţii (telefonie, radio-tv,etc)"]
[7,null,null,null,"Alte tipuri de reţele exterioare"]
[8,null,null,null,"Drumuri de acces"]
[null,null,null,null,"Total valoare fără TVA",null,null,null,null,null,null,null,null,null,null,null,null,null,null,null,null,null,null,null,null,null,null,null,null,null,null,null,null,null,null,null,null,null,null,null,null,null,{"$f":"SUM(AQ604:AY611)","v":0},null,null,null,null,null,null,null,null,{"$f":"SUM(AZ604:BI611)","v":0}]
[null,null,null,null,"Valoare TVA aferentă cheltuielilor eligibile şi neeligibile"]
["TOTAL DEVIZ CAPITOLUL 2 (inclusiv TVA)",null,null,null,null,null,null,null,null,null,null,null,null,null,null,null,null,null,null,null,null,null,null,null,null,null,null,null,null,null,null,null,null,null,null,null,null,null,null,null,null,null,{"$f":"AQ612+AZ612+AQ613+AZ613","v":0}]
[]
[" Deviz capitolul 5 - Alte cheltuieli - EURO"]
["Nr.crt",null,null,null,"Specificaţie",null,null,null,null,null,null,null,null,null,null,null,null,null,null,null,null,null,null,null,null,null,null,null,null,null,null,null,null,null,null,null,null,null,null,null,null,null,"Valoare eligibilă",null,null,null,null,null,null,null,null,"Valoare\nneeligibilă"]
[]
["5.1 ",null,null,null,"Organizare de şantier",null,null,null,null,null,null,null,null,null,null,null,null,null,null,null,null,null,null,null,null,null,null,null,null,null,null,null,null,null,null,null,null,null,null,null,null,null,{"$f":"SUM(AQ620:AY621)","v":0},null,null,null,null,null,null,null,null,{"$f":"SUM(AZ620:BI621)","v":0}]
[null,null,null,null,"5.1.1. Lucrări de construcţii şi instalaţii aferente organizării de şantier"]
[null,null,null,null,"5.1.2. Cheltuieli conexe organizării de şantier"]
["5.2",null,null,null,"Comisioane, taxe",null,null,null,null,null,null,null,null,null,null,null,null,null,null,null,null,null,null,null,null,null,null,null,null,null,null,null,null,null,null,null,null,null,null,null,null,null,{"$f":"SUM(AQ624:AY627)","v":0},null,null,null,null,null,null,null,null,{"$f":"SUM(AZ623:BI628)","v":0}]
[null,null,null,null,"5.2.1. Comisionul băncii finanţatoare"]
[null,null,null,null,"5.2.2. Cota aferentă Inspectoratului de Stat în Construcţii pentru controlul calităţii lucrărilor de construcţii"]
[null,null,null,null,"5.2.3. Cota pentru controlul statului în amenajarea teritoriului, urbanism şi pentru autorizarea lucrărilor de construcţii"]
[null,null,null,null,"5.2.4. Prime de asigurare din sarcina autorităţii contractante"]
[null,null,null,null,"5.2.5. Alte cheltuieli de aceeaşi natură, stabilite în condiţiile legii"]
[null,null,null,null,"5.2.6. Cota aferentă Casei Sociale a Constructorilor"]
["5.3",null,null,null," Cheltuieli diverse si neprevazute"]
[null,null,null,null,"TOTAL DEVIZ CAPITOLUL 5",null,null,null,null,null,null,null,null,null,null,null,null,null,null,null,null,null,null,null,null,null,null,null,null,null,null,null,null,null,null,null,null,null,null,null,null,null,{"$f":"AQ619+AQ622","v":0},null,null,null,null,null,null,null,null,{"$f":"AZ619+AZ622+AZ629","v":0}]
[null,null,null,null,"VALOARE TVA aferentă cheltuielilor eligibile şi neeligibile"]
[null,null,null,null,"TOTAL DEVIZ CAPITOLUL 5 ( inclusiv TVA)",null,null,null,null,null,null,null,null,null,null,null,null,null,null,null,null,null,null,null,null,null,null,null,null,null,null,null,null,null,null,null,null,null,null,null,null,null,{"$f":"AQ630+AZ630+AQ631+AZ631","v":0}]
[]
["Notă: Pentru a adăuga o nouă anexă accesaţi foaia (sheet) corespunzătoare sau click aici"]
[]
[]
[null,null,null,null,null,null,null,"MINISTERUL AGRICULTURII ŞI DEZVOLTĂRII RURALE",null,null,null,null,null,null,null,null,null,null,null,null,null,null,null,null,null,null,null,null,null,null,null,null,null,null,null,null,null,null,null,null,null,null,"Anexa A3\nHG 907/2016"]
[]
[null,null,null,null,null,null,null,"AGENŢIA PENTRU FINANŢAREA INVESTIŢIILOR RURALE"]
[]
[]
[]
["(Titlu deviz)"]
["Deviz capitolul 2- Cheltuieli pentru asigurarea utilităţilor necesare obiectivului - EURO"]
["Nr.crt",null,null,null,"Specificaţie",null,null,null,null,null,null,null,null,null,null,null,null,null,null,null,null,null,null,null,null,null,null,null,null,null,null,null,null,null,null,null,null,null,null,null,null,null,"Valoare eligibilă",null,null,null,null,null,null,null,null,"Valoare\nneeligibilă"]
[1,null,null,null,"Alimentare cu apă"]
[2,null,null,null,"Canalizare"]
[3,null,null,null,"Alimentare cu gaze naturale"]
[4,null,null,null,"Alimentare cu agent termic"]
[5,null,null,null,"Alimentare cu energie electrică"]
[6,null,null,null,"Telecomunicaţii (telefonie, radio-tv,etc)"]
[7,null,null,null,"Drumuri de acces"]
[8,null,null,null,"Căi ferate industriale"]
[9,null,null,null,"Alte utilități"]
[null,null,null,null,"TOTAL DEVIZ CAPITOLUL 2",null,null,null,null,null,null,null,null,null,null,null,null,null,null,null,null,null,null,null,null,null,null,null,null,null,null,null,null,null,null,null,null,null,null,null,null,null,{"$f":"SUM(AQ646:AY654)","v":0},null,null,null,null,null,null,null,null,{"$f":"SUM(AZ646:BI654)","v":0}]
[null,null,null,null,"Valoare TVA aferentă cheltuielilor eligibile şi neeligibile"]
["TOTAL DEVIZ CAPITOLUL 2 (inclusiv TVA)",null,null,null,null,null,null,null,null,null,null,null,null,null,null,null,null,null,null,null,null,null,null,null,null,null,null,null,null,null,null,null,null,null,null,null,null,null,null,null,null,null,{"$f":"AQ655+AZ655+AQ656+AZ656","v":0}]
[]
[" Deviz capitolul 5 - Alte cheltuieli - EURO"]
["Nr.crt",null,null,null,"Specificaţie",null,null,null,null,null,null,null,null,null,null,null,null,null,null,null,null,null,null,null,null,null,null,null,null,null,null,null,null,null,null,null,null,null,null,null,null,null,"Valoare eligibilă",null,null,null,null,null,null,null,null,"Valoare\nneeligibilă"]
[]
["5.1 ",null,null,null,"Organizare de şantier",null,null,null,null,null,null,null,null,null,null,null,null,null,null,null,null,null,null,null,null,null,null,null,null,null,null,null,null,null,null,null,null,null,null,null,null,null,{"$f":"SUM(AQ663:AY664)","v":0},null,null,null,null,null,null,null,null,{"$f":"SUM(AZ663:BI664)","v":0}]
[null,null,null,null,"5.1.1 Lucrări de construcţii şi instalaţii aferente organizării de şantier"]
[null,null,null,null,"5.1.2 Cheltuieli conexe organizării de şantier"]
["5.2",null,null,null,"Comisioane, cote, taxe, costul creditului",null,null,null,null,null,null,null,null,null,null,null,null,null,null,null,null,null,null,null,null,null,null,null,null,null,null,null,null,null,null,null,null,null,null,null,null,null,{"$f":"SUM(AQ667:AY670)-AQ669","v":0},null,null,null,null,null,null,null,null,{"$f":"SUM(AZ666:BI670)","v":0}]
[null,null,null,null,"5.2.1. Comisioanele şi dobânzile aferente creditului băncii finanţatoare",null,null,null,null,null,null,null,null,null,null,null,null,null,null,null,null,null,null,null,null,null,null,null,null,null,null,null,null,null,null,null,null,null,null,null,null,null,1]
[null,null,null,null,"5.2.2. Cota aferentă ISC pentru controlul calităţii lucrărilor de construcţii"]
[null,null,null,null,"5.2.3. Cota aferentă ISC pentru controlul statului în amenajarea teritoriului, urbanism şi pentru autorizarea lucrărilor de construcţii"]
[null,null,null,null,"5.2.4. Cota aferentă Casei Sociale a Constructorilor - CSC"]
[null,null,null,null,"5.2.5. Taxe pentru acorduri, avize conforme şi autorizaţia de construire/desfiinţare"]
["5.3",null,null,null," Cheltuieli diverse si neprevazute"]
["5.4",null,null,null,"Cheltuieli pentru informare și publicitate",null,null,null,null,null,null,null,null,null,null,null,null,null,null,null,null,null,null,null,null,null,null,null,null,null,null,null,null,null,null,null,null,null,null,null,null,null,0,null,null,null,null,null,null,null,null,0]
[null,null,null,null,"TOTAL DEVIZ CAPITOLUL 5",null,null,null,null,null,null,null,null,null,null,null,null,null,null,null,null,null,null,null,null,null,null,null,null,null,null,null,null,null,null,null,null,null,null,null,null,null,{"$f":"AQ662+AQ665+AQ672","v":0},null,null,null,null,null,null,null,null,{"$f":"AZ672+AZ671+AZ665+AZ662","v":0}]
[null,null,null,null,"VALOARE TVA aferentă cheltuielilor eligibile şi neeligibile"]
[null,null,null,null,"TOTAL DEVIZ CAPITOLUL 5 ( inclusiv TVA)",null,null,null,null,null,null,null,null,null,null,null,null,null,null,null,null,null,null,null,null,null,null,null,null,null,null,null,null,null,null,null,null,null,null,null,null,null,{"$f":"AQ673+AZ673+AQ674+AZ674","v":0}]
[]
["Notă: Pentru a adăuga o nouă anexă accesaţi foaia (sheet) corespunzătoare sau click aici"]
[]
[]
["MINISTERUL AGRICULTURII ŞI DEZVOLTĂRII RURALE",null,null,null,null,null,null,null,null,null,null,null,null,null,null,null,null,null,null,null,null,null,null,null,null,null,null,null,null,null,"SECTIUNE SPECIFICA MASURA 4.3"]
["AGENŢIA PENTRU FINANŢAREA INVESTIŢIILOR RURALE"]
[]
["D. ALTE INFORMAȚII :"]
["Programarea proiectului:"]
["Numar luni de implementare"]
[]
["E. LISTA DOCUMENTELOR ANEXATE PROIECTELOR AFERENTE MĂSURII 4.3 / M03-2C",null,null,null,null,null,null,null,null,null,null,null,null,null,null,null,null,null,null,null,null,null,null,null,null,null,null,null,null,null,null,null,null,null,null,null,null,null,null,null,null,null,null,null,null,null,null,null,null,null,null,null,null,null,null,"OPIS"]
[null,null,null,null,null,null,null,null,null,null,null,null,null,null,null,null,null,null,null,null,null,null,null,null,null,null,null,null,null,null,null,null,null,null,null,null,null,null,null,null,null,null,null,null,null,null,null,null,null,null,null,null,null,null,null,"documente"]
["A se anexa documentele în ordinea de mai jos:"]
["Lista documente",null,null,null,null,null,null,null,null,null,null,null,null,null,null,null,null,null,null,null,null,null,null,null,null,null,null,null,null,null,"Obligatoriu pentru toate proiectele",null,null,null,null,"Obligatoriu, dacă proiectul impune",null,null,null,null,null,null,"PAGINA de   la - până la",null,null,null,null,null,null,null,"Obligatoriu pentru toate proiectele",null,null,null,null,"Obligatoriu, dacă proiectul impune"]
["ETAPA:",null,null,null,null,null,null,null,null,null,null,null,null,null,null,null,null,null,null,null,null,null,null,null,null,null,null,null,null,null,"DEPUNERE",null,null,null,null,null,null,null,null,null,null,null,null,null,null,null,null,null,null,null,"CONTRACTARE"]
["Tip investiţie - drum acces agricol"]
["1a. Studiu de fezabilitate/Documentația de avizare pentru lucrări de\nintervenții, întocmit/ă conform legislaţiei în vigoare privind etapele de elaborare şi conţinutul-cadru al documentațiilor tehnico- economice aferente obiectivelor/proiectelor de investiții finanțate din fonduri publice.              Notă. La DALI se va atașa inclusiv Expertiza tehnică/ Raportul de expertiză tehnică precum și atestatul tehnic. "]
["2. Certificat de Urbanism valabil la data depunerii cererii de finanțare,\neliberat în condițiile legii (Legea nr. 50/1991 privind autorizarea lucrărilor de construcții- Replblicare,  cu modificările și completările\nulterioare)."]
["3.1. Inventarul bunurilor care aparţin domeniului public al UAT/UAT-urilor,\nîntocmit conform legislaţiei privind proprietatea publică şi regimul\njuridic al acesteia, atestat prin Hotărâre a Guvernului şi publicat în Monitorul Oficial al României (copie după Monitorul Oficial);                                                   În cazul în care inventarul bunurilor unui UAT nu a fost atestat înainte de intrarea în vigoare a OUG nr. 57/2019 privind Codul Administrativ, cu modificările și completările ulterioare, atunci se va prezenta Hotărârea ce Consiliu Local ( doc. 3.2) privind atestarea inventarului respectiv, întocmită conform OUG nr. 57/2019 cu modificările și completările ulterioare. "]
["3.2 Hotărârea Consiliului Local privind aprobarea inventarului, precum și cea de modificare și/sau completare, întocmită conform OUG nr. 57/2019, cu modificările și completările ulterioare, în sensul includerii în domeniul public sau detalierii unei/unor poziţii globale existente clasificării unor drumuri neclasificate, sau reclasăriidin alte drumuri, publice sau private. \nSe va atașa la hotărâre documentul emis de Instituția Prefectului care confirmă că respectiva hotărâre de consiliu local a fost supusă controlului de legalitate al Prefectului, conform prevederilor art. 255 ale OUG nr. 57/2019 privind Codul Administrativ, cu completările și modificările ulterioare. "]
["4. Hotărârea Consiliului Local UAT/ Hotărârile Consiliilor Locale UAT-uri pentru\ninstrumentarea proiectului, cu referire la însuşirea/aprobarea următoarelor\npuncte (obligatorii):\n• Necesitatea, oportunitatea şi potenţialul economic al investiţiei;\n• lucrările vor fi prevăzute în bugetul/ele local/e pentru perioada de realizare a\ninvestiţiei;\n• angajamentul de a asigura funcţionarea la parametri proiectaţi şi întreţinerea\ninvestitiei, pe o perioadă de minim 5 ani, de la ultima tranşă de plată;\n• suprafeţele deservite de investiţie;\n• agenţii economici (agricoli şi non-agricoli), obiective turistice şi agroturistice,\ndeserviţi direct de investiţie (număr şi denumire);\n•angajamentul privind asigurarea accesului public (fără taxe) la investiţia\nrealizată prin proiect"]
["5.1 Certificatul de înregistrare fiscală"]
["5.2 Încheiere privind înscrierea în Registrul Asociaţiilor și fundațiilor, rămasă definitivă/ Certificat de înregistrare în Registrul asociaţiilor şi fundaţiilor ( în cazul ADI)"]
["5.2.1 Actul de înfiinţare şi statutul ADI"]
["6. Certificat constator eliberat de  ONRC al agenţilor economici agricoli și non-agricoli deserviţi de drumul\nce face obiectul proiectului (dacă este cazul)                                                             În cazul agenților economici organizați în asociații agricole înființate conform legii asociațiilor și fundațiilor, sau în societăți agricole înființate conform legii 36/1991 cu modificările și completările ulterioare, se va depune extras din registrul special de la judecătorie și respectiv actul constituitiv și statutul acestora. "]
["7. Raport asupra utilizării programelor de finanţare nerambursabilă\nîntocmit de solicitant (va cuprinde obiective, tip de investiţie, lista cheltuielilor\neligibile, costuri şi stadiul proiectului, perioada derulării proiectului), pentru\nsolicitanţii care au mai beneficiat de finanţare nerambursabilă începând cu anul\n2007 pentru aceleaşi tipuri de investiţii;"]
["8. Document emis pentru proiect de autoritatea teritorială competentă de protecția mediului, conform Legii nr. 292/2018 cu modificările și completările ulterioare, după caz:                                                                                                      8.1. Clasarea Notificării,                                                                                             sau"]
["8.2. Decizia etapei de evaluare inițială (demararea procedurii de evaluare a impactului asupra mediului)"]
["8.3. Decizia etapei de Încadrare ( ca document final al procedurii),                         sau "]
["8.4. Acordul de mediu. "]
["9.  Aviz de conformitate a proiectului cu obiectivele Strategiei Integrate de Dezvoltare Durabilă pentru Delta Dunării emis de Asociația pentru Dezvoltare Intercomunitară ITI Delta Dunării ( după caz)"]
["10. Dosarul original după care s-a scanat, pentru conformitatea documentelor încărcate online. "]
["11 Graficul de eșalonare a datoriilor către bugetul consolidat ( în cazul în care beneficiarul figurează cu datorii restante fiscale) "]
["12 Adresa emisă de bancă / trezorerie cu datele de identificare ale acesteia și ale contului aferent proiectului FEADR ( denumirea și adresa băncii/ trezoreriei, codului IBAN al contului de operațiuni cu AFIR.) "]
["13. Copia documentului de identificare al reprezentantului legal al beneficiarului; "]
["14. Dovada achitării integrale a datoriei față de AFIR, inclusiv dobânzile și majorările de întâziere ( dacă este cazul) "]
["15. Declarația de eșalonare a depunerii dosarelor cererilor de plată, inclusiv cea pentru decontarea T.V.A., unde este cazul."]
["16. Alte documente justificative (se vor specifica de către solicitant, după\ncaz):"]
[]
[]
[]
[]
[]
["F. DECLARAŢIE PE PROPRIA RĂSPUNDERE A SOLICITANTULUI"]
["Prin această declaraţie solicitantul"]
[]
["care solicită asistență financiară nerambursabilă prin programul FEADR pentru proiectul intitulat"]
[]
["prin reprezentant legal"]
[]
["cunoscând prevederile legii penale cu privire la falsul în declarații:"]
[null,null,null,"1. Declar că proiectul propus asistenței financiare nerambursabile FEADR nu beneficiază de altă finanțare din\nprograme de finanțare nerambursabilă."]
[null,null,null,"De asemenea mă angajez ca în cazul în care proiectul va fi selectat pentru finanțare FEADR, nu voi depune acest proiect la nici un alt program de finanțare nerambursabilă la care proiectul poate fi în întregime sau parțial eligibil pentru asistență."]
[null,null,null,"2. Declar că îndeplinesc condițiile de eligibilitate prevăzute în fișa sub-măsurii și Ghidul Solicitantului și mă\nangajez să le respect pe perioada de valabilitate a contractului de finanțare și monitorizare a investiției, inclusiv\ncriteriile de selecție pentru care proiectul a fost punctat."]
[null,null,null,"3. Declar că toate informațiile din prezenta cerere de finanțare și din documentele anexate sunt corecte și mă\nangajez să respect condițiile cerute în reglementările referitoare la prezentul program și pe cele legate de\nproiectul anexat și să furnizez periodic, la cerere, documentele justificative necesare."]
[null,null,null,"4. Declar pe propria răspundere că orice modificări aduse dreptului de proprietate sau de folosință vor fi\nnotificate AFIR în termen de trei zile de la data producerii lor."]
[null,null,null,"5. Declar pe propria răspundere că voi obţine şi depune documentaţia de la Agenția Națională pentru Protecția\nMediului înainte de semnarea Contractului de finanţare, în conformitate cu termenul menționat în notificarea AFIR\nprivind selecția cererii de finanțare;"]
["  6. Declar că eu și organizația mea (asociaţie sau întreprindere) nu ne aflăm într-unul din următoarele cazuri:"]
[null,null,null," - Acuzat din cauza unei greșeli privind conduita profesională având ca soluție finală res judicata (împotriva căreia nici un apel nu este posibil)"]
[null,null,null," - Vinovat de grave deficiențe de conduită profesională dovedite prin orice mijloace pe care Agenția le poate justifica."]
[null,null,null," - Vinovat de faptul că nu am prezentat informaţiile cerute de autoritatea contractantă ca o condiţie de participare la licitaţie sau contractare"]
[null,null,null," - Încălcarea prevederilor contractuale prin care nu mi-am îndeplinit obligațiile contractuale în legătură cu un alt contract cu Agenția sau alte contracte finanțate din fonduri comunitare."]
[null,null,null," - Încercarea de a obține informații confidențiale sau de influențare a Agenției în timpul procesului de evaluare a proiectului și nu voi face presiuni la adresa evaluatorului."]
[7,null,null,null,null,"Declar că organizația pe care o reprezint ARE datorii către instituții de credit și/sau instituții financiare\nnebancare pentru care prezint graficul de rambursare."]
[null,null,null,null,null,"Declar că organizația pe care o reprezint NU are datorii către instituții de credit şi/sau instituții financiare\nnebancare."]
[8,null,null,null,null,"Declar pe propria răspundere ca în cazul în care nu respect oricare din punctele prevăzute în această\ndeclarație proiectul să devină neeligibil în baza criteriului \"Eligibilitatea solicitantului\" sau contractul să fie\nreziliat."]
[9,null,null,null,null,"Declar pe propria răspundere că:"]
[null,null,null,null,null,"Nu sunt înregistrat în scopuri TVA și că mă angajez să notific Agenției orice modificare a situatiei privind înregistrarea ca plătitor de TVA, în maximum 10 (zece) zile de la data înregistrării în scopuri TVA."]
[null,null,null,null,null,"Sunt înregistrat în scopuri de TVA (certificat de înregistrare fiscală în scopuri de TVA)."]
[10,null,null,null,null,"Declar pe propria răspundere că nu am înscrieri care privesc sancțiuni economico-financiare în cazierul\njudiciar al întreprinderii (după caz, conform prevederilor legale) și în cazierul judiciar ca persoană fizică\n(reprezentantul legal) pe care mă oblig să îl depun la încheierea contractului de finanţare ;"]
[11,null,null,null,null,"Declar pe propria raspundere că nu am fapte înscrise în cazierul fiscal."]
[12,null,null,null,null,"Declar pe propria răspundere că toate cheltuielile neeligibile vor fi suportate de solicitant și că acestea vor fi realizate până la finalizarea proiectului."]
[13,null,null,null,null,"Declar pe propria răspundere că dosarul cererii de finanţare în original, va fi identic cu dosarul cererii de\nfinanţare depus on line. În caz contrar, proiectul nu va fi contractat ;"]
[14,null,null,null,null,"Declar pe propria răspundere că am luat la cunoştinţă de următoarele:"]
[null,null,null,null,null,"a. Proiectele depuse sunt considerate eligibile dacă respectă cumulativ condiţiile din Ghidul solicitantului ;"]
[null,null,null,null,null,"b. Mă angajez să retrag cererea de finanţare în cazul în care nu pot fi îndeplinite cerinţele prevăzute la pct.a ;"]
[15,null,null,null,null,"Declar pe propria răspundere că voi achita integral datoria față de AFIR, inclusiv dobânzile și majorarările de\nîntârziere până la semnarea contractului de finanțare (pentru solicitanții înregistrați în Registrul debitorilor AFIR atât pentru programul SAPARD, cât și pentru Programul FEADR) ;"]
[16,null,null,null,null,"Mă angajez ca în termenul precizat în Ghidul Solicitantului, de la data primirii \"Notificării beneficiarului privind selectarea cererii de finanţare şi semnarea contractului de finanţare\", să asigur şi să prezint documentele obligatorii menţionate în Ghidul Solicitantului pentru contractarea proiectului ;"]
[17,null,null,null,null,"Declar pe propria răspundere că nu sunt în insolvență sau incapacitate de plată ;"]
[18,null,null,null,null,"Sunt de acord ca AFIR să publice pe site, să consulte și să prelucreze, prin operațiunile prevăzute de legislația în vigoare în vederea desfășurării activității specifice, datele mele cu caracter personal, furnizate AFIR, cu respectarea legislaţiei europene şi naţionale privind transparenţa, publicarea datelor cu caracter personal şi prelucrarea acestora."]
[]
["Semnătura reprezentant legal şi ştampila (după caz)",null,null,null,null,null,null,null,null,null,null,null,null,null,null,null,null,null,null,null,null,null,null,null,null,null,null,null,null,null,null,null,null,null,null,null,null,null,null,null,null," Data:"]
[]
[]
[]
["Anexa INDICATORI DE MONITORIZARE"]
["Măsura 4 - Investiţii în active fizice\nSubmăsura 4.3 - Investiţii pentru dezvoltarea, modernizarea sau adaptarea infrastructurii agricole şi silvice\n"]
[]
["1. Tipul de zonă",null,null,null,null,null,null,null,null,null,null,null,null,null,null,null,null,"Zonă normală"]
[null,null,null,null,null,null,null,null,null,null,null,null,null,null,null,null,null,"Zonă montană"]
[null,null,null,null,null,null,null,null,null,null,null,null,null,null,null,null,null,"Zonă constrângeri specifice"]
[null,null,null,null,null,null,null,null,null,null,null,null,null,null,null,null,null,"Zonă constrângeri semnificative"]
["2. Suprafaţa (Ha) - Irigaţii"]
["3. Lungimea drumurilor (Km)",null,null,null,null,null,null,null,null,null,null,null,null,null,null,null,null,"Agricole"]
[null,null,null,null,null,null,null,null,null,null,null,null,null,null,null,null,null,"Forestiere"]
["4. Tipul investiţiei",null,null,null,null,null,null,null,null,null,null,null,null,null,null,null,null,"a. Construcţia, extinderea și/sau modernizarea drumurilor de acces\nagricole către ferme (căi de acces din afara exploataţiilor agricole)"]
[null,null,null,null,null,null,null,null,null,null,null,null,null,null,null,null,null,"b. Construcţia, extinderea şi/sau modernizarea drumurilor\nforestiere"]
[null,null,null,null,null,null,null,null,null,null,null,null,null,null,null,null,null,"c. Modernizarea infrastructurii secundare de irigaţii, clădirilor\naferente stațiilor de pompare/repompare/punere sub presiune și/\nsau racordarea la utilități, inclusiv construcția/modernizarea\nbazinelor de colectare și stocare a apei de irigat."]
["8. Contribuie la Prioritatea 1",null,null,null,null,null,null,null,null,null,null,null,null,null,null,null,null,"M01 - Transfer de cunoştinţe şi acţiuni de informare"]
[null,null,null,null,null,null,null,null,null,null,null,null,null,null,null,null,null,"M02 - Servicii de consiliere"]
[null,null,null,null,null,null,null,null,null,null,null,null,null,null,null,null,null,"M16 - Cooperare"]
[]
["Indic. nr. 1, 4 - se va bifa doar o singură categorie/ categoria majoritară"]
["Indic. nr. 2 - se va completa numărul de Ha vizate de investiţii pentru sisteme de irigaţii"]
["Indic. nr. 3 - se va completa numărul de km de drumuri agricole sau forestiere, construite, extinse şi/ sau modernizate"]
["Indic. nr. 5 - se va completa din momentul demarării M01, M02, respectiv M16, cu bifa în dreptul măsurii corespunzătoare, dacă va fi cazul."]
["Pentru indicatorii de tip numeric care nu fac obiectul investitiei sa va completa valoarea zero."]
[]
["Factori de risc"]
["I1. Valoarea sprijinului public nerambursabil (EURO)",null,null,null,null,null,null,null,null,null,null,null,null,null,null,null,null,null,null,null,null,null,null,null,null,null,null,null,null,null,null,null,null,null,null,null,null,null,null,null,null,null,null,null,null,null,null,null,null,null,null,"Punctaj obţinut"]
["•",null,"900.001 – 1.500.000 euro",null,null,null,null,null,null,null,null,null,null,null,null,null,null,null,null,null,null,null,null,null,null,null,null,null,null,null,null,null,null,null,null,null,null,null,null,null,null,null,null,null,null,null,null,null,null,null,null,5]
["•",null,"700.001 – 900.000 euro",null,null,null,null,null,null,null,null,null,null,null,null,null,null,null,null,null,null,null,null,null,null,null,null,null,null,null,null,null,null,null,null,null,null,null,null,null,null,null,null,null,null,null,null,null,null,null,null,3]
["•",null,"≤ 700.000 euro",null,null,null,null,null,null,null,null,null,null,null,null,null,null,null,null,null,null,null,null,null,null,null,null,null,null,null,null,null,null,null,null,null,null,null,null,null,null,null,null,null,null,null,null,null,null,null,null,1]
[]
["I2. Complexitatea investitiei",null,null,null,null,null,null,null,null,null,null,null,null,null,null,null,null,null,null,null,null,null,null,null,null,null,null,null,null,null,null,null,null,null,null,null,null,null,null,null,null,null,null,null,null,null,null,null,null,null,null,"Punctaj obţinut"]
["•",null,"Investiție nouă",null,null,null,null,null,null,null,null,null,null,null,null,null,null,null,null,null,null,null,null,null,null,null,null,null,null,null,null,null,null,null,null,null,null,null,null,null,null,null,null,null,null,null,null,null,null,null,null,5]
["•",null,"Lucrări de intervenții",null,null,null,null,null,null,null,null,null,null,null,null,null,null,null,null,null,null,null,null,null,null,null,null,null,null,null,null,null,null,null,null,null,null,null,null,null,null,null,null,null,null,null,null,null,null,null,null,3]
[]
["I3. Riscul proiectului d.p.d.v. al raportului procentual între Cheltuielile suportate de Solicitant și Valoarea ajutorului nerambursabil",null,null,null,null,null,null,null,null,null,null,null,null,null,null,null,null,null,null,null,null,null,null,null,null,null,null,null,null,null,null,null,null,null,null,null,null,null,null,null,null,null,null,null,null,null,null,null,null,null,null,"Punctaj obţinut"]
["Total valoare proiect(fără TVA)\n% = --------------------------------------------------------- x 100\nValoarea ajutorului nerambursabil solicitat"]
["•",null,"> 110%",null,null,null,null,null,null,null,null,null,null,null,null,null,null,null,null,null,null,null,null,null,null,null,null,null,null,null,null,null,null,null,null,null,null,null,null,null,null,null,null,null,null,null,null,null,null,null,null,5]
["•",null,"între 101 si 110%",null,null,null,null,null,null,null,null,null,null,null,null,null,null,null,null,null,null,null,null,null,null,null,null,null,null,null,null,null,null,null,null,null,null,null,null,null,null,null,null,null,null,null,null,null,null,null,null,3]
["•",null," = 100%",null,null,null,null,null,null,null,null,null,null,null,null,null,null,null,null,null,null,null,null,null,null,null,null,null,null,null,null,null,null,null,null,null,null,null,null,null,null,null,null,null,null,null,null,null,null,null,null,1]
[]
["I4. Capacitatea solicitantului de a manageria proiectul",null,null,null,null,null,null,null,null,null,null,null,null,null,null,null,null,null,null,null,null,null,null,null,null,null,null,null,null,null,null,null,null,null,null,null,null,null,null,null,null,null,null,null,null,null,null,null,null,null,null,"Punctaj obţinut"]
["•",null,"Solicitant care nu a participat la alt proiect comunitar sau nu a obţinut asistenţă\nfinanciară nerambursabilă din partea altui instrument financiar",null,null,null,null,null,null,null,null,null,null,null,null,null,null,null,null,null,null,null,null,null,null,null,null,null,null,null,null,null,null,null,null,null,null,null,null,null,null,null,null,null,null,null,null,null,null,null,null,5]
["•",null,"Solicitant care a participat la alt proiect comunitar dar nu a obţinut asistenţă\nfinanciară nerambursabilă din partea altui instrument financiar",null,null,null,null,null,null,null,null,null,null,null,null,null,null,null,null,null,null,null,null,null,null,null,null,null,null,null,null,null,null,null,null,null,null,null,null,null,null,null,null,null,null,null,null,null,null,null,null,3]
["•",null,"Solicitant cu experiență care a finalizat un proiect comunitar sau a obţinut\nasistenţă financiară nerambursabilă din partea altui instrument financiar",null,null,null,null,null,null,null,null,null,null,null,null,null,null,null,null,null,null,null,null,null,null,null,null,null,null,null,null,null,null,null,null,null,null,null,null,null,null,null,null,null,null,null,null,null,null,null,null,1]
[]
["I5. Tipul solicitantului",null,null,null,null,null,null,null,null,null,null,null,null,null,null,null,null,null,null,null,null,null,null,null,null,null,null,null,null,null,null,null,null,null,null,null,null,null,null,null,null,null,null,null,null,null,null,null,null,null,null,"Punctaj obţinut"]
["•",null,"Asociații de dezvoltare intercomunitară",null,null,null,null,null,null,null,null,null,null,null,null,null,null,null,null,null,null,null,null,null,null,null,null,null,null,null,null,null,null,null,null,null,null,null,null,null,null,null,null,null,null,null,null,null,null,null,null,5]
["•",null,"UAT",null,null,null,null,null,null,null,null,null,null,null,null,null,null,null,null,null,null,null,null,null,null,null,null,null,null,null,null,null,null,null,null,null,null,null,null,null,null,null,null,null,null,null,null,null,null,null,null,4]
["•",null,"Alte tipuri (persoane juridice)",null,null,null,null,null,null,null,null,null,null,null,null,null,null,null,null,null,null,null,null,null,null,null,null,null,null,null,null,null,null,null,null,null,null,null,null,null,null,null,null,null,null,null,null,null,null,null,null,3]
["TOTAL"]
["Pentru selectarea cererilor de finanţare ce vor fi verificate se va determina riscul fiecărui proiect folosind un număr de 5\nfactori de risc (I1, I2, I3, I4, I5). Factorii de risc vor fi adaptaţi conform specificului măsurilor PNDR. Pentru fiecare proiect se va determina punctajul fiecărui factor de risc pe o scară de la 1 la 5."]
[]
[]
["Codul unic de inregistrare APIA"]
["In cazul in care nu aveti un cod unic de inregistrare APIA, completati acest formular. "]
[]
["FORMULAR"]
[]
["Programului naţional de dezvoltare rurală 2014 - 2020"]
[]
["Denumire solicitant:"]
[]
["Categorie Solicitant:"]
[]
["Sediul / Adresa"]
[]
["Ţara",null,null,null,null,"România",null,null,null,null,null,null,null,null,"Judeţul",null,null,null,null,null,null,null,null,null,null,null,null,null,null,null,null,null,null,"oraşul"]
[]
["comuna",null,null,null,null,null,null,null,null,null,null,null,null,null,null,null,null,null,null,null,null,"satul",null,null,null,null,null,null,null,null,null,null,null,null,null,null,null,null,null,"strada"]
[]
["nr.",null,null,null,null,null,null,null,"bl.",null,null,null,null,null,"et.",null,null,null,null,"ap.",null,null,null,null,null,"sectorul",null,null,null,null,null,null,null,null,null,null,null,null,"codul poştal"]
[]
["Număr de telefon",null,null,null,null,null,null,null,null,null,null,null,null,null,null,null,null,null,null,null,null,null,null,"Fax",null,null,null,null,null,null,null,null,null,null,null,null,null,null,"E-mail"]
[]
["Număr de înregistrare în registrul comerțului/Registrul asociațiilor și fundațiilor"]
[]
["CUI / CIF"]
[]
["Cod CAEN pentru activitatea principală"]
[]
["Cod CAEN pentru activitatea secundară pentru care se solicită înregistrarea în Registrul unic de identificare"]
[]
["Cod IBAN"]
[]
["deschis la Banca"]
[]
["Sucursala / Agenție"]
[]
["Prin reprezentant legal, doamna/domnul"]
[]
["cu CNP",null,null,null,null,null,null,null,null,null,null,null,null,null,null,"solicit înscrierea în Registrul unic de identificare -Agenţia de Plăţi şi Intervenţie pentru Agricultură."]
[]
["Am luat la cunoştinţă că orice modificare a informaţiilor de mai sus trebuie furnizată către APIA în termen de maximum 10 zile\nlucrătoare de la producerea acestora.\nDeclar pe propria răspundere că cele de mai sus sunt conforme cu realitatea.\nSunt de acord ca datele din cerere să fie introduse în baza de date a Sistemului Integrat de Administrare şi Control, procesate şi\nverificate în vederea înscrierii în Registrul unic de identificare şi transmise autorităţilor responsabile în vederea elaborării de studii statistice şi de evaluări economice, în condiţiile Legii nr. 677-2001 pentru protecţia persoanelor cu privire la prelucrarea datelor cu caracter personal şi libera circulaţie a acestor date, cu modificarile şi completările ulterioare."]
[]
["Reprezentant legal",null,null,null,null,null,null,null,null,null,null,null,null,null,null,null,null,null,null,null,null,null,null,null,null,null,null,null,null,null,null,null,null,null,null,null,null,null,null,null,null,null,null,"Data:"]
[]
["Numele şi prenumele"]
[]
["Semnătura "]

{"sheet":"Anexa 1","index":1,"n_rows":134,"n_cols":52,"rows_kept":134,"cut":false,"hidden":false,"merged":[[4,7,4,60],[5,0,5,60],[6,0,6,60],[7,0,7,60],[8,0,8,3],[8,4,8,41],[8,42,8,50],[8,51,8,60],[0,7,0,41],[1,7,1,41],[1,42,2,60],[2,7,2,41],[3,7,3,41],[3,42,3,50],[3,51,3,60],[11,0,11,3],[11,4,11,41],[11,42,11,50],[11,51,11,60],[12,0,12,3],[12,4,12,41],[12,42,12,50],[12,51,12,60],[9,0,9,3],[9,4,9,41],[9,42,9,50],[9,51,9,60],[10,0,10,3],[10,4,10,41],[10,42,10,50],[10,51,10,60],[15,0,15,3],[15,4,15,41],[15,42,15,50],[15,51,15,60],[16,0,16,3],[16,4,16,41],[16,42,16,50],[16,51,16,60],[13,0,13,3],[13,4,13,41],[13,42,13,50],[13,51,13,60],[14,0,14,3],[14,4,14,41],[14,42,14,50],[14,51,14,60],[19,0,19,3],[19,4,19,41],[19,42,19,50],[19,51,19,60],[20,0,20,3],[20,4,20,41],[20,42,20,50],[20,51,20,60],[17,0,17,3],[17,4,17,41],[17,42,17,50],[17,51,17,60],[18,0,18,3],[18,4,18,41],[18,42,18,50],[18,51,18,60],[23,0,23,3],[23,6,23,41],[23,42,23,50],[23,51,23,60],[24,0,24,3],[24,6,24,41],[24,42,24,50],[24,51,24,60],[21,0,21,3],[21,4,21,41],[21,42,21,50],[21,51,21,60],[22,0,22,3],[22,4,22,41],[22,42,22,50],[22,51,22,60],[27,0,27,3],[27,6,27,41],[27,42,27,50],[27,51,27,60],[28,0,28,3],[28,6,28,41],[28,42,28,50],[28,51,28,60],[25,0,25,3],[25,6,25,41],[25,42,25,50],[25,51,25,60],[26,0,26,3],[26,6,26,41],[26,42,26,50],[26,51,26,60],[31,0,31,3],[31,4,31,41],[31,42,31,50],[31,51,31,60],[32,0,32,3],[32,4,32,41],[32,42,32,50],[32,51,32,60],[29,0,29,3],[29,4,29,41],[29,42,29,50],[29,51,29,60],[30,0,30,3],[30,4,30,41],[30,42,30,50],[30,51,30,60],[35,0,35,3],[35,4,35,41],[35,42,35,50],[35,51,35,60],[36,0,36,3],[36,4,36,41],[36,42,36,50],[36,51,36,60],[33,0,33,3],[33,4,33,41],[33,42,33,50],[33,51,33,60],[34,0,34,3],[34,4,34,41],[34,42,34,50],[34,51,34,60],[39,0,39,3],[39,4,39,41],[39,42,39,50],[39,51,39,60],[40,0,40,3],[40,4,40,41],[40,42,40,50],[40,51,40,60],[37,0,37,3],[37,4,37,41],[37,42,37,50],[37,51,37,60],[38,0,38,3],[38,4,38,41],[38,42,38,50],[38,51,38,60],[46,7,46,41],[46,42,46,50],[46,51,46,60],[47,7,47,60],[48,0,48,60],[49,0,49,60],[41,0,41,41],[41,42,41,60],[43,7,43,41],[44,7,44,41],[44,42,45,60],[45,7,45,41],[50,0,50,60],[51,0,51,3],[51,4,51,41],[51,42,51,50],[51,51,51,60],[52,0,52,3],[52,4,52,41],[52,42,52,50],[52,51,52,60],[55,0,55,3],[55,4,55,41],[55,42,55,50],[55,51,55,60],[56,0,56,3],[56,4,56,41],[56,42,56,50],[56,51,56,60],[53,0,53,3],[53,4,53,41],[53,42,53,50],[53,51,53,60],[54,0,54,3],[54,4,54,41],[54,42,54,50],[54,51,54,60],[59,0,59,3],[59,4,59,41],[59,42,59,50],[59,51,59,60],[60,0,60,3],[60,4,60,41],[60,42,60,50],[60,51,60,60],[57,0,57,3],[57,4,57,41],[57,42,57,50],[57,51,57,60],[58,0,58,3],[58,4,58,41],[58,42,58,50],[58,51,58,60],[63,0,63,3],[63,4,63,41],[63,42,63,50],[63,51,63,60],[64,0,64,3],[64,4,64,41],[64,42,64,50],[64,51,64,60],[61,0,61,3],[61,4,61,41],[61,42,61,50],[61,51,61,60],[62,0,62,3],[62,4,62,41],[62,42,62,50],[62,51,62,60],[67,0,67,3],[67,6,67,41],[67,42,67,50],[67,51,67,60],[68,0,68,3],[68,6,68,41],[68,42,68,50],[68,51,68,60],[65,0,65,3],[65,4,65,41],[65,42,65,50],[65,51,65,60],[66,0,66,3],[66,6,66,41],[66,42,66,50],[66,51,66,60],[71,0,71,3],[71,6,71,41],[71,42,71,50],[71,51,71,60],[72,0,72,3],[72,4,72,41],[72,42,72,50],[72,51,72,60],[69,0,69,3],[69,6,69,41],[69,42,69,50],[69,51,69,60],[70,0,70,3],[70,6,70,41],[70,42,70,50],[70,51,70,60],[75,0,75,3],[75,4,75,41],[75,42,75,50],[75,51,75,60],[76,0,76,3],[76,4,76,41],[76,42,76,50],[76,51,76,60],[73,0,73,3],[73,4,73,41],[73,42,73,50],[73,51,73,60],[74,0,74,3],[74,4,74,41],[74,42,74,50],[74,51,74,60],[79,0,79,3],[79,4,79,41],[79,42,79,50],[79,51,79,60],[80,0,80,3],[80,4,80,41],[80,42,80,50],[80,51,80,60],[77,0,77,3],[77,4,77,41],[77,42,77,50],[77,51,77,60],[78,0,78,3],[78,4,78,41],[78,42,78,50],[78,51,78,60],[83,0,83,3],[83,4,83,41],[83,42,83,50],[83,51,83,60],[84,0,84,41],[84,42,84,60],[81,0,81,3],[81,4,81,41],[81,42,81,50],[81,51,81,60],[82,0,82,3],[82,4,82,41],[82,42,82,50],[82,51,82,60],[90,7,90,60],[91,0,91,60],[92,0,92,60],[93,0,93,60],[94,0,94,3],[94,4,94,41],[94,42,94,50],[94,51,94,60],[86,7,86,41],[87,7,87,41],[87,42,88,60],[88,7,88,41],[89,7,89,41],[89,42,89,50],[89,51,89,60],[97,0,97,3],[97,4,97,41],[97,42,97,50],[97,51,97,60],[98,0,98,3],[98,4,98,41],[98,42,98,50],[98,51,98,60],[95,0,95,3],[95,4,95,41],[95,42,95,50],[95,51,95,60],[96,0,96,3],[96,4,96,41],[96,42,96,50],[96,51,96,60],[101,4,101,41],[101,42,101,50],[101,51,101,60],[102,4,102,41],[102,42,102,50],[102,51,102,60],[99,0,99,3],[99,4,99,41],[99,42,99,50],[99,51,99,60],[100,0,100,3],[100,4,100,41],[100,42,100,50],[100,51,100,60],[105,0,105,3],[105,4,105,41],[105,42,105,50],[105,51,105,60],[106,4,106,41],[106,42,106,50],[106,51,106,60],[103,4,103,41],[103,42,103,50],[103,51,103,60],[104,4,104,41],[104,42,104,50],[104,51,104,60],[109,0,109,3],[109,4,109,41],[109,42,109,50],[109,51,109,60],[110,0,110,3],[110,4,110,41],[110,42,110,50],[110,51,110,60],[107,4,107,41],[107,42,107,50],[107,51,107,60],[108,0,108,3],[108,4,108,41],[108,42,108,50],[108,51,108,60],[113,0,113,3],[113,4,113,41],[113,42,113,50],[113,51,113,60],[114,0,114,3],[114,4,114,41],[114,42,114,50],[114,51,114,60],[111,0,111,3],[111,4,111,41],[111,42,111,50],[111,51,111,60],[112,0,112,3],[112,4,112,41],[112,42,112,50],[112,51,112,60],[117,0,117,3],[117,4,117,41],[117,42,117,50],[117,51,117,60],[118,0,118,3],[118,4,118,41],[118,42,118,50],[118,51,118,60],[115,0,115,3],[115,4,115,41],[115,42,115,50],[115,51,115,60],[116,0,116,3],[116,4,116,41],[116,42,116,50],[116,51,116,60],[121,4,121,41],[121,42,121,50],[121,51,121,60],[122,4,122,41],[122,42,122,50],[122,51,122,60],[119,0,119,3],[119,4,119,41],[119,42,119,50],[119,51,119,60],[120,0,120,3],[120,4,120,41],[120,42,120,50],[120,51,120,60],[125,0,125,3],[125,4,125,41],[125,42,125,50],[125,51,125,60],[126,0,126,3],[126,4,126,41],[126,42,126,50],[126,51,126,60],[123,0,123,3],[123,4,123,41],[123,42,123,50],[123,51,123,60],[124,0,124,3],[124,4,124,41],[124,42,124,50],[124,51,124,60],[129,4,129,41],[129,42,129,50],[129,51,129,60],[130,0,130,3],[130,4,130,41],[130,42,130,50],[130,51,130,60],[127,0,127,3],[127,4,127,41],[127,42,127,50],[127,51,127,60],[128,4,128,41],[128,42,128,50],[128,51,128,60],[133,0,133,41],[133,42,133,60],[131,0,131,3],[131,4,131,41],[131,42,131,50],[131,51,131,60],[132,0,132,3],[132,4,132,41],[132,42,132,50],[132,51,132,60]]}
[null,null,null,null,null,null,null,"MINISTERUL AGRICULTURII ŞI DEZVOLTĂRII RURALE"]
[null,null,null,null,null,null,null,null,null,null,null,null,null,null,null,null,null,null,null,null,null,null,null,null,null,null,null,null,null,null,null,null,null,null,null,null,null,null,null,null,null,null,"Anexa A1"]
[null,null,null,null,null,null,null,"AGENŢIA PENTRU FINANŢAREA INVESTIŢIILOR RURALE"]
[null,null,null,null,null,null,null,null,null,null,null,null,null,null,null,null,null,null,null,null,null,null,null,null,null,null,null,null,null,null,null,null,null,null,null,null,null,null,null,null,null,null,null,null,null,null,null,null,null,null,null,"Nr.2"]
[null,null,null,null,null,null,null,"Deviz financiar- Capitolul 3 - Cheltuieli pentru proiectare şi asistenţa tehnică - EURO"]
[]
[]
["(Titlu deviz)"]
["Nr.crt",null,null,null,"Specificaţie",null,null,null,null,null,null,null,null,null,null,null,null,null,null,null,null,null,null,null,null,null,null,null,null,null,null,null,null,null,null,null,null,null,null,null,null,null,"Valoare eligibilă",null,null,null,null,null,null,null,null,"Valoare\nneeligibilă"]
[1,null,null,null,"Cheltuieli pentru studii de teren (geotehnice, geologice, hidrologice, hidrogeologice, fotogrammetrice, topografice şi de stabilitate a terenului pe care se amplasează obiectivul de investiţie)"]
[2,null,null,null,"Cheltuieli pentru obţinere de avize, acorduri şi autorizaţii - total, din care:",null,null,null,null,null,null,null,null,null,null,null,null,null,null,null,null,null,null,null,null,null,null,null,null,null,null,null,null,null,null,null,null,null,null,null,null,null,{"$f":"SUM(AQ12:AY21)","v":0},null,null,null,null,null,null,null,null,{"$f":"SUM(AZ12:BI21)","v":0}]
[null,null,null,null,"1. obţinerea/prelungirea valabilităţii ceritificatului de urbanism"]
[null,null,null,null,"2. obţinerea/prelungirea valabilităţii autorizaţiei de construire/desfiinţare, obţinere autorizaţii de scoatere din circuitul agricol"]
[null,null,null,null,"3. obţinerea avizelor şi acordurilor pentru racorduri şi branşamente la reţelele publice de apă, canalizare, gaze, termoficare, energie electrică, telefonie etc."]
[null,null,null,null,"4. obţinere aviz sanitar, sanitar-veterinar şi fitosanitar"]
[null,null,null,null,"5. obţinerea certificatului de nomenclatură stradală şi adresa"]
[null,null,null,null,"6. întocmirea documentaţiei, obţinerea numărului Cadastral provizoriu şi înregistrarea terenului în Cartea Funciară"]
[null,null,null,null,"7. obţinerea avizului PSI"]
[null,null,null,null,"8. obţinerea acordului de mediu"]
[null,null,null,null,"9. căi ferate"]
[null,null,null,null,"10. alte avize, acorduri şi autorizaţii solicitate prin lege"]
[3,null,null,null,"3 Proiectare şi inginerie - total, din care:",null,null,null,null,null,null,null,null,null,null,null,null,null,null,null,null,null,null,null,null,null,null,null,null,null,null,null,null,null,null,null,null,null,null,null,null,null,{"$f":"AQ23+AQ30+AQ31+AQ32","v":0},null,null,null,null,null,null,null,null,{"$f":"AZ23+AZ30+AZ31+AZ32","v":0}]
[null,null,null,null,"1. Cheltuieli pentru elaborarea tuturor fazelor de proiectare - total, din care:",null,null,null,null,null,null,null,null,null,null,null,null,null,null,null,null,null,null,null,null,null,null,null,null,null,null,null,null,null,null,null,null,null,null,null,null,null,{"$f":"SUM(AQ24:AY29)","v":0},null,null,null,null,null,null,null,null,{"$f":"SUM(AZ24:BI29)","v":0}]
[null,null,null,null,null,null,"a. studiu de prefezabilitate"]
[null,null,null,null,null,null,"b. studiu de fezabilitate"]
[null,null,null,null,null,null,"c. proiect tehnic"]
[null,null,null,null,null,null,"d. detalii de execuţie"]
[null,null,null,null,null,null,"e. verificarea tehnică a proiectării"]
[null,null,null,null,null,null,"f. elaborarea certificatului de performanţa energetică a clădirii"]
[null,null,null,null,"2. Documentaţii necesare pentru obţinerea acordurilor, avizelor şi autorizaţiilor aferente obiectivului de investitii"]
[null,null,null,null,"3. Cheltuielile pentru expertiza tehnică efectuată pentru construcţii începute şi neterminate sau care urmează a fi modificate prin proiect (modernizări, consolidări etc.)"]
[null,null,null,null,"4. Cheltuielile pentru efectuarea auditului energetic"]
[4,null,null,null,"Organizarea procedurilor de achiziţie"]
[5,null,null,null,"Cheltuieli pentru consultanţă - total, din care:",null,null,null,null,null,null,null,null,null,null,null,null,null,null,null,null,null,null,null,null,null,null,null,null,null,null,null,null,null,null,null,null,null,null,null,null,null,{"$f":"SUM(AQ35:AY36)","v":0},null,null,null,null,null,null,null,null,{"$f":"SUM(AZ35:BI36)","v":0}]
[null,null,null,null,"1. plata serviciilor de consultanţă la elaborarea memoriului justificativ, studiilor de piaţă, de evaluare, la întocmirea cererii de finanţare"]
[null,null,null,null,"2. plata serviciilor de consultanţă în domeniul managementului investiţiei sau administrarea contractului de execuţie"]
[6,null,null,null,"Cheltuieli pentru asistenţa tehnică - total, din care:",null,null,null,null,null,null,null,null,null,null,null,null,null,null,null,null,null,null,null,null,null,null,null,null,null,null,null,null,null,null,null,null,null,null,null,null,null,{"$f":"SUM(AQ38:AY39)","v":0},null,null,null,null,null,null,null,null,{"$f":"SUM(AZ38:BI39)","v":0}]
[null,null,null,null,"1. asistenţa tehnică din partea proiectantului în cazul când aceasta nu intră în tarifarea proiectării"]
[null,null,null,null,"2. plata diriginţilor de şantier desemnaţi de autoritatea contractantă, autorizaţi conform prevederilor legale pentru verificarea execuţiei lucrărilor de construcţii şi instalaţii"]
[null,null,null,null,"Total valoare fără TVA",null,null,null,null,null,null,null,null,null,null,null,null,null,null,null,null,null,null,null,null,null,null,null,null,null,null,null,null,null,null,null,null,null,null,null,null,null,{"$f":"AQ37+AQ34+AQ22+AQ11+AQ10","v":0},null,null,null,null,null,null,null,null,{"$f":"AZ37+AZ34+AZ33+AZ22+AZ11+AZ10","v":0}]
[null,null,null,null,"Valoare TVA (aferentă cheltuielilor eligibile şi neeligibile)"]
["TOTAL DEVIZ FINANCIAR 1 (inclusiv TVA)",null,null,null,null,null,null,null,null,null,null,null,null,null,null,null,null,null,null,null,null,null,null,null,null,null,null,null,null,null,null,null,null,null,null,null,null,null,null,null,null,null,{"$f":"AQ40+AZ40+AQ41+AZ41","v":0}]
[]
[null,null,null,null,null,null,null,"MINISTERUL AGRICULTURII ŞI DEZVOLTĂRII RURALE"]
[null,null,null,null,null,null,null,null,null,null,null,null,null,null,null,null,null,null,null,null,null,null,null,null,null,null,null,null,null,null,null,null,null,null,null,null,null,null,null,null,null,null,"Anexa A1"]
[null,null,null,null,null,null,null,"AGENŢIA PENTRU FINANŢAREA INVESTIŢIILOR RURALE"]
[null,null,null,null,null,null,null,null,null,null,null,null,null,null,null,null,null,null,null,null,null,null,null,null,null,null,null,null,null,null,null,null,null,null,null,null,null,null,null,null,null,null,null,null,null,null,null,null,null,null,null,"Nr.3"]
[null,null,null,null,null,null,null,"Deviz financiar- Capitolul 3 - Cheltuieli pentru proiectare şi asistenţa tehnică - EURO"]
[]
[]
["(Titlu deviz)"]
["Nr.crt",null,null,null,"Specificaţie",null,null,null,null,null,null,null,null,null,null,null,null,null,null,null,null,null,null,null,null,null,null,null,null,null,null,null,null,null,null,null,null,null,null,null,null,null,"Valoare eligibilă",null,null,null,null,null,null,null,null,"Valoare\nneeligibilă"]
[1,null,null,null,"Cheltuieli pentru studii de teren (geotehnice, geologice, hidrologice, hidrogeologice, fotogrammetrice, topografice şi de stabilitate a terenului pe care se amplasează obiectivul de investiţie)"]
[2,null,null,null,"Cheltuieli pentru obţinere de avize, acorduri şi autorizaţii - total, din care:",null,null,null,null,null,null,null,null,null,null,null,null,null,null,null,null,null,null,null,null,null,null,null,null,null,null,null,null,null,null,null,null,null,null,null,null,null,{"$f":"SUM(AQ55:AY64)","v":0},null,null,null,null,null,null,null,null,{"$f":"SUM(AZ55:BI64)","v":0}]
[null,null,null,null,"1. obţinerea/prelungirea valabilităţii ceritificatului de urbanism"]
[null,null,null,null,"2. obţinerea/prelungirea valabilităţii autorizaţiei de construire/desfiinţare, obţinere autorizaţii de scoatere din circuitul agricol"]
[null,null,null,null,"3. obţinerea avizelor şi acordurilor pentru racorduri şi branşamente la reţelele publice de apă, canalizare, gaze, termoficare, energie electrică, telefonie etc."]
[null,null,null,null,"4. obţinere aviz sanitar, sanitar-veterinar şi fitosanitar"]
[null,null,null,null,"5. obţinerea certificatului de nomenclatură stradală şi adresa"]
[null,null,null,null,"6. întocmirea documentaţiei, obţinerea numărului Cadastral provizoriu şi înregistrarea terenului în Cartea Funciară"]
[null,null,null,null,"7. obţinerea avizului PSI"]
[null,null,null,null,"8. obţinerea acordului de mediu"]
[null,null,null,null,"9. căi ferate"]
[null,null,null,null,"10. alte avize, acorduri şi autorizaţii solicitate prin lege"]
[3,null,null,null,"3 Proiectare şi inginerie - total, din care:",null,null,null,null,null,null,null,null,null,null,null,null,null,null,null,null,null,null,null,null,null,null,null,null,null,null,null,null,null,null,null,null,null,null,null,null,null,{"$f":"AQ66+AQ73+AQ74+AQ75","v":0},null,null,null,null,null,null,null,null,{"$f":"AZ66+AZ73+AZ74+AZ75","v":0}]
[null,null,null,null,"1. Cheltuieli pentru elaborarea tuturor fazelor de proiectare - total, din care:",null,null,null,null,null,null,null,null,null,null,null,null,null,null,null,null,null,null,null,null,null,null,null,null,null,null,null,null,null,null,null,null,null,null,null,null,null,{"$f":"SUM(AQ67:AY72)","v":0},null,null,null,null,null,null,null,null,{"$f":"SUM(AZ67:BI72)","v":0}]
[null,null,null,null,null,null,"a. studiu de prefezabilitate"]
[null,null,null,null,null,null,"b. studiu de fezabilitate"]
[null,null,null,null,null,null,"c. proiect tehnic"]
[null,null,null,null,null,null,"d. detalii de execuţie"]
[null,null,null,null,null,null,"e. verificarea tehnică a proiectării"]
[null,null,null,null,null,null,"f. elaborarea certificatului de performanţa energetică a clădirii"]
[null,null,null,null,"2. Documentaţii necesare pentru obţinerea acordurilor, avizelor şi autorizaţiilor aferente obiectivului de investitii"]
[null,null,null,null,"3. Cheltuielile pentru expertiza tehnică efectuată pentru construcţii începute şi neterminate sau care urmează a fi modificate prin proiect (modernizări, consolidări etc.)"]
[null,null,null,null,"4. Cheltuielile pentru efectuarea auditului energetic"]
[4,null,null,null,"Organizarea procedurilor de achiziţie"]
[5,null,null,null,"Cheltuieli pentru consultanţă - total, din care:",null,null,null,null,null,null,null,null,null,null,null,null,null,null,null,null,null,null,null,null,null,null,null,null,null,null,null,null,null,null,null,null,null,null,null,null,null,{"$f":"SUM(AQ78:AY79)","v":0},null,null,null,null,null,null,null,null,{"$f":"SUM(AZ78:BI79)","v":0}]
[null,null,null,null,"1. plata serviciilor de consultanţă la elaborarea memoriului justificativ, studiilor de piaţă, de evaluare, la întocmirea cererii de finanţare"]
[null,null,null,null,"2. plata serviciilor de consultanţă în domeniul managementului investiţiei sau administrarea contractului de execuţie"]
[6,null,null,null,"Cheltuieli pentru asistenţa tehnică - total, din care:",null,null,null,null,null,null,null,null,null,null,null,null,null,null,null,null,null,null,null,null,null,null,null,null,null,null,null,null,null,null,null,null,null,null,null,null,null,{"$f":"SUM(AQ81:AY82)","v":0},null,null,null,null,null,null,null,null,{"$f":"SUM(AZ81:BI82)","v":0}]
[null,null,null,null,"1. asistenţa tehnică din partea proiectantului în cazul când aceasta nu intră în tarifarea proiectării"]
[null,null,null,null,"2. plata diriginţilor de şantier desemnaţi de autoritatea contractantă, autorizaţi conform prevederilor legale pentru verificarea execuţiei lucrărilor de construcţii şi instalaţii"]
[null,null,null,null,"Total valoare fără TVA",null,null,null,null,null,null,null,null,null,null,null,null,null,null,null,null,null,null,null,null,null,null,null,null,null,null,null,null,null,null,null,null,null,null,null,null,null,{"$f":"AQ80+AQ77+AQ65+AQ54+AQ53","v":0},null,null,null,null,null,null,null,null,{"$f":"AZ80+AZ77+AZ76+AZ65+AZ54+AZ53","v":0}]
[null,null,null,null,"Valoare TVA (aferentă cheltuielilor eligibile şi neeligibile)"]
["TOTAL DEVIZ FINANCIAR 1 (inclusiv TVA)",null,null,null,null,null,null,null,null,null,null,null,null,null,null,null,null,null,null,null,null,null,null,null,null,null,null,null,null,null,null,null,null,null,null,null,null,null,null,null,null,null,{"$f":"AQ83+AZ83+AQ84+AZ84","v":0}]
[]
[null,null,null,null,null,null,null,"MINISTERUL AGRICULTURII ŞI DEZVOLTĂRII RURALE"]
[null,null,null,null,null,null,null,null,null,null,null,null,null,null,null,null,null,null,null,null,null,null,null,null,null,null,null,null,null,null,null,null,null,null,null,null,null,null,null,null,null,null,"Anexa A1\nHG 907/2016"]
[null,null,null,null,null,null,null,"AGENŢIA PENTRU FINANŢAREA INVESTIŢIILOR RURALE"]
[]
[null,null,null,null,null,null,null,"Deviz financiar- Capitolul 3 - Cheltuieli pentru proiectare şi asistenţa tehnică - EURO"]
[]
[]
["(Titlu deviz)"]
["Nr.crt",null,null,null,"Specificaţie",null,null,null,null,null,null,null,null,null,null,null,null,null,null,null,null,null,null,null,null,null,null,null,null,null,null,null,null,null,null,null,null,null,null,null,null,null,"Valoare eligibilă",null,null,null,null,null,null,null,null,"Valoare\nneeligibilă"]
["3.1",null,null,null,"Cheltuieli pentru studii - total din care:",null,null,null,null,null,null,null,null,null,null,null,null,null,null,null,null,null,null,null,null,null,null,null,null,null,null,null,null,null,null,null,null,null,null,null,null,null,{"$f":"AQ97+AQ98+AQ99","v":0},null,null,null,null,null,null,null,null,{"$f":"AZ97+AZ98+AZ99","v":0}]
[null,null,null,null,"3.1.1 Studii de teren: studii geotehnice, geologice, hidrologice, hidrogeotehnice,\nfotogrammetrice, topografica şi de stabilitate ale terenului pe care se amplasează obiectivul de investiţie "]
[null,null,null,null,"3.1.2 Raport privind impactul asupra mediului"]
[null,null,null,null,"3.1.3 Studii de specialitate necesare în funcţie de specificul investiţiei"]
["3.2",null,null,null,"Documentaţii-suport şi cheltuieli pentru obţinerea de avize, acorduri şi\nautorizaţii",null,null,null,null,null,null,null,null,null,null,null,null,null,null,null,null,null,null,null,null,null,null,null,null,null,null,null,null,null,null,null,null,null,null,null,null,null,{"$f":"AQ101+AQ102+AQ103+AQ106+AQ107+AQ108+AQ109","v":0},null,null,null,null,null,null,null,null,{"$f":"AZ101+AZ102+AZ103+AZ104+AZ105+AZ106+AZ107+AZ108+AZ109","v":0}]
[null,null,null,null,"1. obţinerea/prelungirea valabilităţii ceritificatului de urbanism"]
[null,null,null,null,"2. obţinerea/prelungirea valabilităţii autorizaţiei de construire/desfiinţare"]
[null,null,null,null,"3. obţinerea avizelor şi acordurilor pentru racorduri şi branşamente la reţele publice de alimentare cu apă, canalizare, alimentare cu gaze, alimentare cu agent termic, energie electrică, telefonie"]
[null,null,null,null,"4. obţinerea certificatului de nomenclatură stradală şi adresă"]
[null,null,null,null,"5. întocmirea documentaţiei, obţinerea numărului cadastral provizoriu şi\nînregistrarea terenului în cartea funciară"]
[null,null,null,null,"6. obţinerea actului administrativ al autorităţii competente pentru protecţia mediului"]
[null,null,null,null,"7. obţinerea avizului de protecţie civilă"]
[null,null,null,null,"8. avizul de specialitate în cazul obiectivelor de patrimoniu"]
[null,null,null,null,"9. alte avize, acorduri şi autorizaţii"]
["3.3",null,null,null,"Cheltuieli pentru expertizarea tehnică a construcţiilor existente, a structurilor\nşi/sau, după caz, a proiectelor tehnice, inclusiv întocmirea de către expertul\ntehnic a raportului de expertiză tehnică",null,null,null,null,null,null,null,null,null,null,null,null,null,null,null,null,null,null,null,null,null,null,null,null,null,null,null,null,null,null,null,null,null,null,null,null,null,0,null,null,null,null,null,null,null,null,0]
["3.4",null,null,null,"Cheltuieli pentru certificarea performanţei energetice şi auditul energetic al clădirilor",null,null,null,null,null,null,null,null,null,null,null,null,null,null,null,null,null,null,null,null,null,null,null,null,null,null,null,null,null,null,null,null,null,null,null,null,null,0,null,null,null,null,null,null,null,null,0]
["3.5",null,null,null,"Cheltuieli pentru proiectare",null,null,null,null,null,null,null,null,null,null,null,null,null,null,null,null,null,null,null,null,null,null,null,null,null,null,null,null,null,null,null,null,null,null,null,null,null,{"$f":"AQ113+AQ114+AQ115+AQ116+AQ117+AQ118","v":0},null,null,null,null,null,null,null,null,{"$f":"AZ113+AZ114+AZ115+AZ116+AZ117+AZ118","v":0}]
[null,null,null,null,"3.5.1 Temă de proiectare"]
[null,null,null,null,"3.5.2 Studiu de prefezabilitate"]
[null,null,null,null,"3.5.3 Studiu de fezabilitate/documentaţie de avizare a lucrărilor de intervenţii şi\ndeviz general"]
[null,null,null,null,"3.5.4 Documentaţiile tehnice necesare în vederea obţinerii avizelor/acordurilor/\nautorizaţiilor"]
[null,null,null,null,"3.5.5 Verificarea tehnică de calitate a proiectului tehnic şi a detaliilor de execuţie"]
[null,null,null,null,"3.5.6 Proiect tehnic şi detalii de execuţie"]
["3.6",null,null,null,"Cheltuieli aferente organizării şi derulării procedurilor de achiziţii publice",null,null,null,null,null,null,null,null,null,null,null,null,null,null,null,null,null,null,null,null,null,null,null,null,null,null,null,null,null,null,null,null,null,null,null,null,null,null,null,null,null,null,null,null,null,null,{"$f":"AZ120+AZ121+AZ122+AZ123","v":0}]
[null,null,null,null,"1. Cheltuieli aferente întocmirii documentaţiei de atribuire şi multiplicării acesteia (exclusiv cele cumpărate de ofertanţi)"]
[null,null,null,null,"2. Cheltuieli cu onorariile, transportul, cazarea şi diurna membrilor desemnaţi în comisiile de evaluare"]
[null,null,null,null,"3. Anunţuri de intenţie, de participare şi de atribuire a contractelor, corespondenţă prin poştă, fax, poştă electronică în legătură cu procedurile de achiziţie publică "]
[null,null,null,null,"4. Cheltuieli aferente organizării şi derulării procedurilor de achiziţii publice"]
["3.7",null,null,null,"Cheltuieli pentru consultanţă",null,null,null,null,null,null,null,null,null,null,null,null,null,null,null,null,null,null,null,null,null,null,null,null,null,null,null,null,null,null,null,null,null,null,null,null,null,{"$f":"AQ125","v":0},null,null,null,null,null,null,null,null,{"$f":"AZ125+AZ126","v":0}]
[null,null,null,null,"3.7.1 Managementul de proiect pentru obiectivul de investiţii"]
[null,null,null,null,"3.7.2 Auditul financiar"]
["3.8",null,null,null,"Cheltuieli pentru asistenţă tehnică",null,null,null,null,null,null,null,null,null,null,null,null,null,null,null,null,null,null,null,null,null,null,null,null,null,null,null,null,null,null,null,null,null,null,null,null,null,{"$f":"AQ128+AQ131","v":0},null,null,null,null,null,null,null,null,{"$f":"AZ128+AZ131","v":0}]
[null,null,null,null,"3.8.1. Asistenţă tehnică din partea proiectantului",null,null,null,null,null,null,null,null,null,null,null,null,null,null,null,null,null,null,null,null,null,null,null,null,null,null,null,null,null,null,null,null,null,null,null,null,null,{"$f":"AQ129+AQ130","v":0},null,null,null,null,null,null,null,null,{"$f":"AZ129+AZ130","v":0}]
[null,null,null,null,"     1.1. pe perioada de execuţie a lucrărilor"]
[null,null,null,null,"     1.2. pentru participarea proiectantului la fazele incluse în programul de control al lucrărilor de execuţie, avizat de către Inspectoratul de Stat în Construcţii"]
[null,null,null,null,"3.8.2 Dirigenţie de şantier, asigurată de personal tehnic de specialitate, autorizat"]
[null,null,null,null,"Total valoare fără TVA",null,null,null,null,null,null,null,null,null,null,null,null,null,null,null,null,null,null,null,null,null,null,null,null,null,null,null,null,null,null,null,null,null,null,null,null,null,{"$f":"AQ127+AQ124+AQ112+AQ111+AQ110+AQ100+AQ96","v":0},null,null,null,null,null,null,null,null,{"$f":"AZ127+AZ124+AZ119+AZ112+AZ111+AZ110+AZ100+AZ96","v":0}]
[null,null,null,null,"Valoare TVA (aferentă cheltuielilor eligibile şi neeligibile)"]
["TOTAL DEVIZ FINANCIAR 1 (inclusiv TVA)",null,null,null,null,null,null,null,null,null,null,null,null,null,null,null,null,null,null,null,null,null,null,null,null,null,null,null,null,null,null,null,null,null,null,null,null,null,null,null,null,null,{"$f":"AQ132+AZ132+AQ133+AZ133","v":0}]

{"sheet":"Anexa 2","index":2,"n_rows":95,"n_cols":52,"rows_kept":95,"cut":false,"hidden":false,"merged":[[0,7,0,41],[1,7,1,41],[1,42,2,60],[2,7,2,41],[3,7,3,41],[3,42,3,50],[3,51,3,60],[9,0,9,41],[9,42,9,50],[9,51,9,60],[10,0,10,41],[10,42,10,50],[10,51,10,60],[4,7,4,60],[5,0,5,60],[6,0,6,60],[7,0,7,60],[8,0,8,3],[8,4,8,41],[8,42,8,60],[13,0,13,3],[13,4,13,41],[13,42,13,50],[13,51,13,60],[14,0,14,3],[14,4,14,41],[14,42,14,50],[14,51,14,60],[11,0,11,3],[11,4,11,41],[11,42,11,50],[11,51,11,60],[12,0,12,3],[12,4,12,41],[12,42,12,50],[12,51,12,60],[17,0,17,3],[17,4,17,41],[17,42,17,50],[17,51,17,60],[18,0,18,3],[18,4,18,41],[18,42,18,50],[18,51,18,60],[15,0,15,3],[15,4,15,41],[15,42,15,50],[15,51,15,60],[16,0,16,3],[16,4,16,41],[16,42,16,50],[16,51,16,60],[19,0,19,3],[19,4,19,41],[19,42,19,50],[19,51,19,60],[20,0,20,60],[21,0,21,3],[21,4,21,41],[21,42,21,50],[21,51,21,60],[22,0,22,3],[22,4,22,41],[22,42,22,50],[22,51,22,60],[23,0,23,60],[24,0,24,3],[24,4,24,41],[24,42,24,50],[24,51,24,60],[27,0,27,3],[27,4,27,41],[27,42,27,50],[27,51,27,60],[28,0,28,41],[28,42,28,50],[28,51,28,60],[25,0,25,3],[25,4,25,41],[25,42,25,50],[25,51,25,60],[26,0,26,3],[26,4,26,41],[26,42,26,50],[26,51,26,60],[34,7,34,41],[34,42,35,60],[35,7,35,41],[36,7,36,41],[36,42,36,50],[36,51,36,60],[29,0,29,41],[29,42,29,50],[29,51,29,60],[30,0,30,41],[30,42,30,60],[33,7,33,41],[42,0,42,41],[42,42,42,50],[42,51,42,60],[43,0,43,41],[43,42,43,50],[43,51,43,60],[37,7,37,60],[38,0,38,60],[39,0,39,60],[40,0,40,60],[41,0,41,3],[41,4,41,41],[41,42,41,60],[46,0,46,3],[46,4,46,41],[46,42,46,50],[46,51,46,60],[47,0,47,3],[47,4,47,41],[47,42,47,50],[47,51,47,60],[44,0,44,3],[44,4,44,41],[44,42,44,50],[44,51,44,60],[45,0,45,3],[45,4,45,41],[45,42,45,50],[45,51,45,60],[50,0,50,3],[50,4,50,41],[50,42,50,50],[50,51,50,60],[51,0,51,3],[51,4,51,41],[51,42,51,50],[51,51,51,60],[48,0,48,3],[48,4,48,41],[48,42,48,50],[48,51,48,60],[49,0,49,3],[49,4,49,41],[49,42,49,50],[49,51,49,60],[52,0,52,3],[52,4,52,41],[52,42,52,50],[52,51,52,60],[53,0,53,60],[54,0,54,3],[54,4,54,41],[54,42,54,50],[54,51,54,60],[58,0,58,3],[58,4,58,41],[58,42,58,50],[58,51,58,60],[59,0,59,3],[59,4,59,41],[59,42,59,50],[59,51,59,60],[55,0,55,3],[55,4,55,41],[55,42,55,50],[55,51,55,60],[56,0,56,60],[57,0,57,3],[57,4,57,41],[57,42,57,50],[57,51,57,60],[62,0,62,41],[62,42,62,50],[62,51,62,60],[63,0,63,41],[63,42,63,60],[66,7,66,41],[60,0,60,3],[60,4,60,41],[60,42,60,50],[60,51,60,60],[61,0,61,41],[61,42,61,50],[61,51,61,60],[70,7,70,60],[71,0,71,60],[72,0,72,60],[73,0,73,60],[74,0,74,3],[74,4,74,41],[74,42,74,60],[67,7,67,41],[67,42,68,60],[68,7,68,41],[69,7,69,41],[69,42,69,50],[69,51,69,60],[77,0,77,3],[77,4,77,41],[77,42,77,50],[77,51,77,60],[78,0,78,3],[78,4,78,41],[78,42,78,50],[78,51,78,60],[75,0,75,41],[75,42,75,50],[75,51,75,60],[76,0,76,41],[76,42,76,50],[76,51,76,60],[81,0,81,3],[81,4,81,41],[81,42,81,50],[81,51,81,60],[82,0,82,3],[82,4,82,41],[82,42,82,50],[82,51,82,60],[79,0,79,3],[79,4,79,41],[79,42,79,50],[79,51,79,60],[80,0,80,3],[80,4,80,41],[80,42,80,50],[80,51,80,60],[83,0,83,60],[84,0,84,3],[84,4,84,41],[84,42,84,50],[84,51,84,60],[85,0,85,3],[85,4,85,41],[85,42,85,50],[85,51,85,60],[89,0,89,3],[89,4,89,41],[89,42,89,50],[89,51,89,60],[90,0,90,3],[90,4,90,41],[90,42,90,50],[90,51,90,60],[86,0,86,60],[87,0,87,3],[87,4,87,41],[87,42,87,50],[87,51,87,60],[88,0,88,3],[88,4,88,41],[88,42,88,50],[88,51,88,60],[93,0,93,41],[93,42,93,50],[93,51,93,60],[94,0,94,41],[94,42,94,60],[91,0,91,3],[91,4,91,41],[91,42,91,50],[91,51,91,60],[92,0,92,41],[92,42,92,50],[92,51,92,60]]}
[null,null,null,null,null,null,null,"MINISTERUL AGRICULTURII ŞI DEZVOLTĂRII RURALE"]
[null,null,null,null,null,null,null,null,null,null,null,null,null,null,null,null,null,null,null,null,null,null,null,null,null,null,null,null,null,null,null,null,null,null,null,null,null,null,null,null,null,null,"Anexa A2"]
[null,null,null,null,null,null,null,"AGENŢIA PENTRU FINANŢAREA INVESTIŢIILOR RURALE"]
[null,null,null,null,null,null,null,null,null,null,null,null,null,null,null,null,null,null,null,null,null,null,null,null,null,null,null,null,null,null,null,null,null,null,null,null,null,null,null,null,null,null,null,null,null,null,null,null,null,null,null,"Nr.2"]
[null,null,null,null,null,null,null,"DEVIZ PE OBIECT *"]
[]
[]
["(Descriere obiect de construcţie)"]
["Nr. crt.",null,null,null,"Denumire",null,null,null,null,null,null,null,null,null,null,null,null,null,null,null,null,null,null,null,null,null,null,null,null,null,null,null,null,null,null,null,null,null,null,null,null,null,"Valoarea pe categorii de lucrări, fară TVA - EURO"]
[null,null,null,null,null,null,null,null,null,null,null,null,null,null,null,null,null,null,null,null,null,null,null,null,null,null,null,null,null,null,null,null,null,null,null,null,null,null,null,null,null,null,"Valoare eligibilă",null,null,null,null,null,null,null,null,"Valoare\nneeligibilă"]
["I - LUCRĂRI DE CONSTRUCŢII ŞI INSTALAŢII"]
[1,null,null,null,"Terasamente"]
[2,null,null,null,"Construcţii : rezistenţă (fundaţii, structură de rezistenţă) şi arhitectură (închideri exterioare, compartimentări, finisaje)"]
[3,null,null,null,"Izolaţii"]
[4,null,null,null,"Instalaţii electrice"]
[5,null,null,null,"Instalaţii sanitare"]
[6,null,null,null,"Instalaţii de încălzire, ventilare, climatizare. PSI, radio-tv, intranet"]
[7,null,null,null,"Instalaţii de alimentare cu gaze naturale"]
[8,null,null,null,"Instalaţii de telecomunicaţii"]
[null,null,null,null,"TOTAL I ( fără TVA)",null,null,null,null,null,null,null,null,null,null,null,null,null,null,null,null,null,null,null,null,null,null,null,null,null,null,null,null,null,null,null,null,null,null,null,null,null,{"$f":"SUM(AQ12:AY19)","v":0},null,null,null,null,null,null,null,null,{"$f":"SUM(AZ12:BI19)","v":0}]
["II - MONTAJ"]
[9,null,null,null,"Montaj utilaje şi echipamente tehnologice"]
[null,null,null,null,"TOTAL II ( fără TVA)",null,null,null,null,null,null,null,null,null,null,null,null,null,null,null,null,null,null,null,null,null,null,null,null,null,null,null,null,null,null,null,null,null,null,null,null,null,{"$f":"SUM(AQ22)","v":0},null,null,null,null,null,null,null,null,{"$f":"SUM(AZ22)","v":0}]
["III - PROCURARE"]
[10,null,null,null,"Utilaje şi echipamente tehnologice"]
[11,null,null,null,"Utilaje şi echipamente de transport, utilaje şi echipamente fară montaj, mijloace de transport, alte achiziţii specifice"]
[12,null,null,null,"Dotări"]
[null,null,null,null,"TOTAL III ( fără TVA)",null,null,null,null,null,null,null,null,null,null,null,null,null,null,null,null,null,null,null,null,null,null,null,null,null,null,null,null,null,null,null,null,null,null,null,null,null,{"$f":"SUM(AQ25:AY27)","v":0},null,null,null,null,null,null,null,null,{"$f":"SUM(AZ25:BI27)","v":0}]
["TOTAL ( TOTAL I + TOTAL II +TOTAL III) fără TVA",null,null,null,null,null,null,null,null,null,null,null,null,null,null,null,null,null,null,null,null,null,null,null,null,null,null,null,null,null,null,null,null,null,null,null,null,null,null,null,null,null,{"$f":"AQ28+AQ23+AQ20","v":0},null,null,null,null,null,null,null,null,{"$f":"AZ28+AZ23+AZ20","v":0}]
["TVA aferent cheltuielilor eligibile şi neeligibile"]
["TOTAL DEVIZ PE OBIECT (inclusiv TVA)",null,null,null,null,null,null,null,null,null,null,null,null,null,null,null,null,null,null,null,null,null,null,null,null,null,null,null,null,null,null,null,null,null,null,null,null,null,null,null,null,null,{"$f":"AQ29+AZ29+AQ30+AZ30","v":0}]
[]
[]
[null,null,null,null,null,null,null,"MINISTERUL AGRICULTURII ŞI DEZVOLTĂRII RURALE"]
[null,null,null,null,null,null,null,null,null,null,null,null,null,null,null,null,null,null,null,null,null,null,null,null,null,null,null,null,null,null,null,null,null,null,null,null,null,null,null,null,null,null,"Anexa A2"]
[null,null,null,null,null,null,null,"AGENŢIA PENTRU FINANŢAREA INVESTIŢIILOR RURALE"]
[null,null,null,null,null,null,null,null,null,null,null,null,null,null,null,null,null,null,null,null,null,null,null,null,null,null,null,null,null,null,null,null,null,null,null,null,null,null,null,null,null,null,null,null,null,null,null,null,null,null,null,"Nr.3"]
[null,null,null,null,null,null,null,"DEVIZ PE OBIECT *"]
[]
[]
["(Descriere obiect de construcţie)"]
["Nr. crt.",null,null,null,"Denumire",null,null,null,null,null,null,null,null,null,null,null,null,null,null,null,null,null,null,null,null,null,null,null,null,null,null,null,null,null,null,null,null,null,null,null,null,null,"Valoarea pe categorii de lucrări, fară TVA - EURO"]
[null,null,null,null,null,null,null,null,null,null,null,null,null,null,null,null,null,null,null,null,null,null,null,null,null,null,null,null,null,null,null,null,null,null,null,null,null,null,null,null,null,null,"Valoare eligibilă",null,null,null,null,null,null,null,null,"Valoare\nneeligibilă"]
["I - LUCRĂRI DE CONSTRUCŢII ŞI INSTALAŢII"]
[1,null,null,null,"Terasamente"]
[2,null,null,null,"Construcţii : rezistenţă (fundaţii, structură de rezistenţă) şi arhitectură (închideri exterioare, compartimentări, finisaje)"]
[3,null,null,null,"Izolaţii"]
[4,null,null,null,"Instalaţii electrice"]
[5,null,null,null,"Instalaţii sanitare"]
[6,null,null,null,"Instalaţii de încălzire, ventilare, climatizare. PSI, radio-tv, intranet"]
[7,null,null,null,"Instalaţii de alimentare cu gaze naturale"]
[8,null,null,null,"Instalaţii de telecomunicaţii"]
[null,null,null,null,"TOTAL I ( fără TVA)",null,null,null,null,null,null,null,null,null,null,null,null,null,null,null,null,null,null,null,null,null,null,null,null,null,null,null,null,null,null,null,null,null,null,null,null,null,{"$f":"SUM(AQ45:AY52)","v":0},null,null,null,null,null,null,null,null,{"$f":"SUM(AZ45:BI52)","v":0}]
["II - MONTAJ"]
[9,null,null,null,"Montaj utilaje şi echipamente tehnologice"]
[null,null,null,null,"TOTAL II ( fără TVA)",null,null,null,null,null,null,null,null,null,null,null,null,null,null,null,null,null,null,null,null,null,null,null,null,null,null,null,null,null,null,null,null,null,null,null,null,null,{"$f":"SUM(AQ55)","v":0},null,null,null,null,null,null,null,null,{"$f":"SUM(AZ55)","v":0}]
["III - PROCURARE"]
[10,null,null,null,"Utilaje şi echipamente tehnologice"]
[11,null,null,null,"Utilaje şi echipamente de transport, utilaje şi echipamente fară montaj, mijloace de transport, alte achiziţii specifice"]
[12,null,null,null,"Dotări"]
[null,null,null,null,"TOTAL III ( fără TVA)",null,null,null,null,null,null,null,null,null,null,null,null,null,null,null,null,null,null,null,null,null,null,null,null,null,null,null,null,null,null,null,null,null,null,null,null,null,{"$f":"SUM(AQ58:AY60)","v":0},null,null,null,null,null,null,null,null,{"$f":"SUM(AZ58:BI60)","v":0}]
["TOTAL ( TOTAL I + TOTAL II +TOTAL III) fără TVA",null,null,null,null,null,null,null,null,null,null,null,null,null,null,null,null,null,null,null,null,null,null,null,null,null,null,null,null,null,null,null,null,null,null,null,null,null,null,null,null,null,{"$f":"AQ61+AQ56+AQ53","v":0},null,null,null,null,null,null,null,null,{"$f":"AZ61+AZ56+AZ53","v":0}]
["TVA aferent cheltuielilor eligibile şi neeligibile"]
["TOTAL DEVIZ PE OBIECT (inclusiv TVA)",null,null,null,null,null,null,null,null,null,null,null,null,null,null,null,null,null,null,null,null,null,null,null,null,null,null,null,null,null,null,null,null,null,null,null,null,null,null,null,null,null,{"$f":"AQ62+AZ62+AQ63+AZ63","v":0}]
[]
[]
[null,null,null,null,null,null,null,"MINISTERUL AGRICULTURII ŞI DEZVOLTĂRII RURALE"]
[null,null,null,null,null,null,null,null,null,null,null,null,null,null,null,null,null,null,null,null,null,null,null,null,null,null,null,null,null,null,null,null,null,null,null,null,null,null,null,null,null,null,"Anexa A2\nHG 907/2016"]
[null,null,null,null,null,null,null,"AGENŢIA PENTRU FINANŢAREA INVESTIŢIILOR RURALE"]
[]
[null,null,null,null,null,null,null,"DEVIZ PE OBIECT *"]
[]
[]
["(Descriere obiect de construcţie)"]
["Nr. crt.",null,null,null,"Denumire",null,null,null,null,null,null,null,null,null,null,null,null,null,null,null,null,null,null,null,null,null,null,null,null,null,null,null,null,null,null,null,null,null,null,null,null,null,"Valoarea pe categorii de lucrări, fară TVA - EURO"]
["Cap. 4 + Cheltuieli pentru investiţia de bază",null,null,null,null,null,null,null,null,null,null,null,null,null,null,null,null,null,null,null,null,null,null,null,null,null,null,null,null,null,null,null,null,null,null,null,null,null,null,null,null,null,"Valoare eligibilă",null,null,null,null,null,null,null,null,"Valoare\nneeligibilă"]
["   I - LUCRĂRI DE CONSTRUCŢII ŞI INSTALAŢII"]
["4.1",null,null,null,"Construcţii şi instalaţii"]
[null,null,null,null,"4.1.1 Terasamente, sistematizare pe verticală şi amenajări exterioare"]
[null,null,null,null,"4.1.2 Rezistenţă"]
[null,null,null,null,"4.1.3 Arhitectură"]
[null,null,null,null,"4.1.4 Instalaţii"]
[null,null,null,null,"TOTAL I ( fără TVA)",null,null,null,null,null,null,null,null,null,null,null,null,null,null,null,null,null,null,null,null,null,null,null,null,null,null,null,null,null,null,null,null,null,null,null,null,null,{"$f":"SUM(AQ79:AY82)","v":0},null,null,null,null,null,null,null,null,{"$f":"SUM(AZ79:BI82)","v":0}]
["   II - MONTAJ"]
["4.2",null,null,null,"Montaj utilaje şi echipamente tehnologice"]
[null,null,null,null,"TOTAL II ( fără TVA)",null,null,null,null,null,null,null,null,null,null,null,null,null,null,null,null,null,null,null,null,null,null,null,null,null,null,null,null,null,null,null,null,null,null,null,null,null,{"$f":"SUM(AQ85)","v":0},null,null,null,null,null,null,null,null,{"$f":"SUM(AZ85)","v":0}]
["   III - PROCURARE"]
["4.3",null,null,null,"Utilaje, echipamente tehnologice şi funcţionale care necesită montaj"]
["4.4",null,null,null,"Utilaje, echipamente tehnologice şi funcţionale care nu necesită\nmontaj şi echipamente de transport"]
["4.5",null,null,null,"Dotări"]
["4.6",null,null,null,"Active necorporale"]
[null,null,null,null,"TOTAL III ( fără TVA)",null,null,null,null,null,null,null,null,null,null,null,null,null,null,null,null,null,null,null,null,null,null,null,null,null,null,null,null,null,null,null,null,null,null,null,null,null,{"$f":"SUM(AQ88:AY91)","v":0},null,null,null,null,null,null,null,null,{"$f":"SUM(AZ88:BI91)","v":0}]
["TOTAL ( TOTAL I + TOTAL II +TOTAL III) fără TVA",null,null,null,null,null,null,null,null,null,null,null,null,null,null,null,null,null,null,null,null,null,null,null,null,null,null,null,null,null,null,null,null,null,null,null,null,null,null,null,null,null,{"$f":"AQ92+AQ86+AQ83","v":0},null,null,null,null,null,null,null,null,{"$f":"AZ92+AZ86+AZ83","v":0}]
["TVA aferent cheltuielilor eligibile şi neeligibile"]
["TOTAL DEVIZ PE OBIECT (inclusiv TVA)",null,null,null,null,null,null,null,null,null,null,null,null,null,null,null,null,null,null,null,null,null,null,null,null,null,null,null,null,null,null,null,null,null,null,null,null,null,null,null,null,null,{"$f":"AQ93+AZ93+AQ94+AZ94","v":0}]

{"sheet":"Anexa 3","index":3,"n_rows":121,"n_cols":52,"rows_kept":121,"cut":false,"hidden":false,"merged":[[1,7,1,41],[1,42,2,60],[2,7,2,41],[3,7,3,41],[3,42,3,50],[3,51,3,60],[10,0,10,3],[10,4,10,41],[10,42,10,50],[10,51,10,60],[11,0,11,3],[11,4,11,41],[11,42,11,50],[11,51,11,60],[4,7,4,60],[5,0,5,60],[6,0,6,60],[7,0,7,60],[8,0,8,60],[9,0,9,3],[9,4,9,41],[9,42,9,50],[9,51,9,60],[14,0,14,3],[14,4,14,41],[14,42,14,50],[14,51,14,60],[15,0,15,3],[15,4,15,41],[15,42,15,50],[15,51,15,60],[12,0,12,3],[12,4,12,41],[12,42,12,50],[12,51,12,60],[13,0,13,3],[13,4,13,41],[13,42,13,50],[13,51,13,60],[18,0,18,3],[18,4,18,41],[18,42,18,50],[18,51,18,60],[19,0,19,3],[19,4,19,41],[19,42,19,50],[19,51,19,60],[16,0,16,3],[16,4,16,41],[16,42,16,50],[16,51,16,60],[17,0,17,3],[17,4,17,41],[17,42,17,50],[17,51,17,60],[22,0,22,60],[23,0,23,3],[23,4,23,41],[23,42,23,50],[23,51,23,60],[24,0,24,60],[20,0,20,41],[20,42,20,60],[21,0,21,3],[21,4,21,41],[21,42,21,50],[21,51,21,60],[27,0,27,3],[27,4,27,41],[27,42,27,50],[27,51,27,60],[28,0,28,3],[28,4,28,41],[28,42,28,50],[28,51,28,60],[25,0,25,3],[25,4,25,41],[25,42,25,50],[25,51,25,60],[26,0,26,3],[26,4,26,41],[26,42,26,50],[26,51,26,60],[31,0,31,3],[31,4,31,41],[31,42,31,50],[31,51,31,60],[32,0,32,3],[32,4,32,41],[32,42,32,50],[32,51,32,60],[29,0,29,3],[29,4,29,41],[29,42,29,50],[29,51,29,60],[30,0,30,3],[30,4,30,41],[30,42,30,50],[30,51,30,60],[35,0,35,3],[35,4,35,41],[35,42,35,50],[35,51,35,60],[36,0,36,3],[36,4,36,41],[36,42,36,50],[36,51,36,60],[33,0,33,3],[33,4,33,41],[33,42,33,50],[33,51,33,60],[34,0,34,3],[34,4,34,41],[34,42,34,50],[34,51,34,60],[42,7,42,41],[42,42,43,60],[43,7,43,41],[44,7,44,41],[44,42,44,50],[44,51,44,60],[37,0,37,3],[37,4,37,41],[37,42,37,50],[37,51,37,60],[38,0,38,3],[38,4,38,41],[38,42,38,60],[51,0,51,3],[51,4,51,41],[51,42,51,50],[51,51,51,60],[52,0,52,3],[52,4,52,41],[52,42,52,50],[52,51,52,60],[45,7,45,60],[46,0,46,60],[47,0,47,60],[48,0,48,60],[49,0,49,60],[50,0,50,3],[50,4,50,41],[50,42,50,50],[50,51,50,60],[55,0,55,3],[55,4,55,41],[55,42,55,50],[55,51,55,60],[56,0,56,3],[56,4,56,41],[56,42,56,50],[56,51,56,60],[53,0,53,3],[53,4,53,41],[53,42,53,50],[53,51,53,60],[54,0,54,3],[54,4,54,41],[54,42,54,50],[54,51,54,60],[59,0,59,3],[59,4,59,41],[59,42,59,50],[59,51,59,60],[60,0,60,3],[60,4,60,41],[60,42,60,50],[60,51,60,60],[57,0,57,3],[57,4,57,41],[57,42,57,50],[57,51,57,60],[58,0,58,3],[58,4,58,41],[58,42,58,50],[58,51,58,60],[63,0,63,60],[64,0,64,3],[64,4,64,41],[64,42,64,50],[64,51,64,60],[65,0,65,60],[61,0,61,41],[61,42,61,60],[62,0,62,3],[62,4,62,41],[62,42,62,50],[62,51,62,60],[68,0,68,3],[68,4,68,41],[68,42,68,50],[68,51,68,60],[69,0,69,3],[69,4,69,41],[69,42,69,50],[69,51,69,60],[66,0,66,3],[66,4,66,41],[66,42,66,50],[66,51,66,60],[67,0,67,3],[67,4,67,41],[67,42,67,50],[67,51,67,60],[72,0,72,3],[72,4,72,41],[72,42,72,50],[72,51,72,60],[73,0,73,3],[73,4,73,41],[73,42,73,50],[73,51,73,60],[70,0,70,3],[70,4,70,41],[70,42,70,50],[70,51,70,60],[71,0,71,3],[71,4,71,41],[71,42,71,50],[71,51,71,60],[76,0,76,3],[76,4,76,41],[76,42,76,50],[76,51,76,60],[77,0,77,3],[77,4,77,41],[77,42,77,50],[77,51,77,60],[74,0,74,3],[74,4,74,41],[74,42,74,50],[74,51,74,60],[75,0,75,3],[75,4,75,41],[75,42,75,50],[75,51,75,60],[82,7,82,41],[82,42,83,60],[83,7,83,41],[84,7,84,41],[84,42,84,50],[84,51,84,60],[78,0,78,3],[78,4,78,41],[78,42,78,50],[78,51,78,60],[79,0,79,3],[79,4,79,41],[79,42,79,60],[85,7,85,60],[86,0,86,60],[87,0,87,60],[88,0,88,60],[89,0,89,60],[90,0,90,3],[90,4,90,41],[90,42,90,50],[90,51,90,60],[93,0,93,3],[93,4,93,41],[93,42,93,50],[93,51,93,60],[94,0,94,3],[94,4,94,41],[94,42,94,50],[94,51,94,60],[91,0,91,3],[91,4,91,41],[91,42,91,50],[91,51,91,60],[92,0,92,3],[92,4,92,41],[92,42,92,50],[92,51,92,60],[97,0,97,3],[97,4,97,41],[97,42,97,50],[97,51,97,60],[98,0,98,3],[98,4,98,41],[98,42,98,50],[98,51,98,60],[95,0,95,3],[95,4,95,41],[95,42,95,50],[95,51,95,60],[96,0,96,3],[96,4,96,41],[96,42,96,50],[96,51,96,60],[101,0,101,3],[101,4,101,41],[101,42,101,50],[101,51,101,60],[102,0,102,41],[102,42,102,60],[99,0,99,3],[99,4,99,41],[99,42,99,50],[99,51,99,60],[100,0,100,3],[100,4,100,41],[100,42,100,50],[100,51,100,60],[103,0,103,3],[103,4,103,41],[103,42,103,50],[103,51,103,60],[104,0,104,60],[105,0,105,3],[105,4,105,41],[105,42,105,50],[105,51,105,60],[106,0,106,60],[107,0,107,3],[107,4,107,41],[107,42,107,50],[107,51,107,60],[108,0,108,3],[108,4,108,41],[108,42,108,50],[108,51,108,60],[111,0,111,3],[111,4,111,41],[111,42,111,50],[111,51,111,60],[112,0,112,3],[112,4,112,41],[112,42,112,50],[112,51,112,60],[109,0,109,3],[109,4,109,41],[109,42,109,50],[109,51,109,60],[110,0,110,3],[110,4,110,41],[110,42,110,50],[110,51,110,60],[115,0,115,3],[115,4,115,41],[115,42,115,50],[115,51,115,60],[116,0,116,3],[116,4,116,41],[116,42,116,50],[116,51,116,60],[113,0,113,3],[113,4,113,41],[113,42,113,50],[113,51,113,60],[114,0,114,3],[114,4,114,41],[114,42,114,50],[114,51,114,60],[119,0,119,3],[119,4,119,41],[119,42,119,50],[119,51,119,60],[120,0,120,3],[120,4,120,41],[120,42,120,60],[117,0,117,3],[117,4,117,41],[117,42,117,50],[117,51,117,60],[118,0,118,3],[118,4,118,41],[118,42,118,50],[118,51,118,60]]}
[]
[null,null,null,null,null,null,null,"MINISTERUL AGRICULTURII ŞI DEZVOLTĂRII RURALE",null,null,null,null,null,null,null,null,null,null,null,null,null,null,null,null,null,null,null,null,null,null,null,null,null,null,null,null,null,null,null,null,null,null,"Anexa A3"]
[]
[null,null,null,null,null,null,null,"AGENŢIA PENTRU FINANŢAREA INVESTIŢIILOR RURALE",null,null,null,null,null,null,null,null,null,null,null,null,null,null,null,null,null,null,null,null,null,null,null,null,null,null,null,null,null,null,null,null,null,null,null,null,null,null,null,null,null,null,null,"Nr.2"]
[]
[]
[]
["(Titlu deviz)"]
["Deviz capitolul 2- Cheltuieli pentru asigurarea utilităţilor necesare obiectivului - EURO"]
["Nr.crt",null,null,null,"Specificaţie",null,null,null,null,null,null,null,null,null,null,null,null,null,null,null,null,null,null,null,null,null,null,null,null,null,null,null,null,null,null,null,null,null,null,null,null,null,"Valoare eligibilă",null,null,null,null,null,null,null,null,"Valoare\nneeligibilă"]
[1,null,null,null,"Alimentare cu apă"]
[2,null,null,null,"Canalizare"]
[3,null,null,null,"Alimentare cu gaze naturale"]
[4,null,null,null,"Alimentare cu agent termic"]
[5,null,null,null,"Alimentare cu energie electrică"]
[6,null,null,null,"Telecomunicaţii (telefonie, radio-tv,etc)"]
[7,null,null,null,"Alte tipuri de reţele exterioare"]
[8,null,null,null,"Drumuri de acces"]
[null,null,null,null,"Total valoare fără TVA",null,null,null,null,null,null,null,null,null,null,null,null,null,null,null,null,null,null,null,null,null,null,null,null,null,null,null,null,null,null,null,null,null,null,null,null,null,{"$f":"SUM(AQ11:AY18)","v":0},null,null,null,null,null,null,null,null,{"$f":"SUM(AZ11:BI18)","v":0}]
[null,null,null,null,"Valoare TVA aferentă cheltuielilor eligibile şi neeligibile"]
["TOTAL DEVIZ CAPITOLUL 2 (inclusiv TVA)",null,null,null,null,null,null,null,null,null,null,null,null,null,null,null,null,null,null,null,null,null,null,null,null,null,null,null,null,null,null,null,null,null,null,null,null,null,null,null,null,null,{"$f":"AQ19+AZ19+AQ20+AZ20","v":0}]
[]
[" Deviz capitolul 5 - Alte cheltuieli - EURO"]
["Nr.crt",null,null,null,"Specificaţie",null,null,null,null,null,null,null,null,null,null,null,null,null,null,null,null,null,null,null,null,null,null,null,null,null,null,null,null,null,null,null,null,null,null,null,null,null,"Valoare eligibilă",null,null,null,null,null,null,null,null,"Valoare\nneeligibilă"]
[]
["5.1 ",null,null,null,"Organizare de şantier",null,null,null,null,null,null,null,null,null,null,null,null,null,null,null,null,null,null,null,null,null,null,null,null,null,null,null,null,null,null,null,null,null,null,null,null,null,{"$f":"SUM(AQ27:AY28)","v":0},null,null,null,null,null,null,null,null,{"$f":"SUM(AZ27:BI28)","v":0}]
["5.1.1",null,null,null,"lucrări de construcţii şi instalaţii aferente organizării de şantier"]
["5.1.2",null,null,null,"cheltuieli conexe organizării de şantier"]
["5.2",null,null,null,"Comisioane, taxe",null,null,null,null,null,null,null,null,null,null,null,null,null,null,null,null,null,null,null,null,null,null,null,null,null,null,null,null,null,null,null,null,null,null,null,null,null,{"$f":"SUM(AQ31:AY34)","v":0},null,null,null,null,null,null,null,null,{"$f":"SUM(AZ30:BI35)","v":0}]
[null,null,null,null,"comisionul băncii finanţatoare"]
[null,null,null,null,"cota aferentă Inspectoratului de Stat în Construcţii pentru controlul calităţii lucrărilor de construcţii"]
[null,null,null,null,"cota pentru controlul statului în amenajarea teritoriului, urbanism şi pentru autorizarea lucrărilor de construcţii"]
[null,null,null,null,"prime de asigurare din sarcina autorităţii contractante"]
[null,null,null,null,"alte cheltuieli de aceeaşi natură, stabilite în condiţiile legii"]
[null,null,null,null,"cota aferentă Casei Sociale a Constructorilor"]
["5.3",null,null,null," Cheltuieli diverse si neprevazute"]
[null,null,null,null,"TOTAL DEVIZ CAPITOLUL 5",null,null,null,null,null,null,null,null,null,null,null,null,null,null,null,null,null,null,null,null,null,null,null,null,null,null,null,null,null,null,null,null,null,null,null,null,null,{"$f":"AQ26+AQ29","v":0},null,null,null,null,null,null,null,null,{"$f":"AZ26+AZ29+AZ36","v":0}]
[null,null,null,null,"VALOARE TVA aferentă cheltuielilor eligibile şi neeligibile"]
[null,null,null,null,"TOTAL DEVIZ CAPITOLUL 5 ( inclusiv TVA)",null,null,null,null,null,null,null,null,null,null,null,null,null,null,null,null,null,null,null,null,null,null,null,null,null,null,null,null,null,null,null,null,null,null,null,null,null,{"$f":"AQ37+AZ37+AQ38+AZ38","v":0}]
[]
[]
[]
[null,null,null,null,null,null,null,"MINISTERUL AGRICULTURII ŞI DEZVOLTĂRII RURALE",null,null,null,null,null,null,null,null,null,null,null,null,null,null,null,null,null,null,null,null,null,null,null,null,null,null,null,null,null,null,null,null,null,null,"Anexa A3"]
[]
[null,null,null,null,null,null,null,"AGENŢIA PENTRU FINANŢAREA INVESTIŢIILOR RURALE",null,null,null,null,null,null,null,null,null,null,null,null,null,null,null,null,null,null,null,null,null,null,null,null,null,null,null,null,null,null,null,null,null,null,null,null,null,null,null,null,null,null,null,"Nr.3"]
[]
[]
[]
["(Titlu deviz)"]
["Deviz capitolul 2- Cheltuieli pentru asigurarea utilităţilor necesare obiectivului - EURO"]
["Nr.crt",null,null,null,"Specificaţie",null,null,null,null,null,null,null,null,null,null,null,null,null,null,null,null,null,null,null,null,null,null,null,null,null,null,null,null,null,null,null,null,null,null,null,null,null,"Valoare eligibilă",null,null,null,null,null,null,null,null,"Valoare\nneeligibilă"]
[1,null,null,null,"Alimentare cu apă"]
[2,null,null,null,"Canalizare"]
[3,null,null,null,"Alimentare cu gaze naturale"]
[4,null,null,null,"Alimentare cu agent termic"]
[5,null,null,null,"Alimentare cu energie electrică"]
[6,null,null,null,"Telecomunicaţii (telefonie, radio-tv,etc)"]
[7,null,null,null,"Alte tipuri de reţele exterioare"]
[8,null,null,null,"Drumuri de acces"]
[null,null,null,null,"Total valoare fără TVA",null,null,null,null,null,null,null,null,null,null,null,null,null,null,null,null,null,null,null,null,null,null,null,null,null,null,null,null,null,null,null,null,null,null,null,null,null,{"$f":"SUM(AQ52:AY59)","v":0},null,null,null,null,null,null,null,null,{"$f":"SUM(AZ52:BI59)","v":0}]
[null,null,null,null,"Valoare TVA aferentă cheltuielilor eligibile şi neeligibile"]
["TOTAL DEVIZ CAPITOLUL 2 (inclusiv TVA)",null,null,null,null,null,null,null,null,null,null,null,null,null,null,null,null,null,null,null,null,null,null,null,null,null,null,null,null,null,null,null,null,null,null,null,null,null,null,null,null,null,{"$f":"AQ60+AZ60+AQ61+AZ61","v":0}]
[]
[" Deviz capitolul 5 - Alte cheltuieli - EURO"]
["Nr.crt",null,null,null,"Specificaţie",null,null,null,null,null,null,null,null,null,null,null,null,null,null,null,null,null,null,null,null,null,null,null,null,null,null,null,null,null,null,null,null,null,null,null,null,null,"Valoare eligibilă",null,null,null,null,null,null,null,null,"Valoare\nneeligibilă"]
[]
["5.1 ",null,null,null,"Organizare de şantier",null,null,null,null,null,null,null,null,null,null,null,null,null,null,null,null,null,null,null,null,null,null,null,null,null,null,null,null,null,null,null,null,null,null,null,null,null,{"$f":"SUM(AQ68:AY69)","v":0},null,null,null,null,null,null,null,null,{"$f":"SUM(AZ68:BI69)","v":0}]
["5.1.1",null,null,null,"lucrări de construcţii şi instalaţii aferente organizării de şantier"]
["5.1.2",null,null,null,"cheltuieli conexe organizării de şantier"]
["5.2",null,null,null,"Comisioane, taxe",null,null,null,null,null,null,null,null,null,null,null,null,null,null,null,null,null,null,null,null,null,null,null,null,null,null,null,null,null,null,null,null,null,null,null,null,null,{"$f":"SUM(AQ72:AY75)","v":0},null,null,null,null,null,null,null,null,{"$f":"SUM(AZ71:BI76)","v":0}]
[null,null,null,null,"comisionul băncii finanţatoare"]
[null,null,null,null,"cota aferentă Inspectoratului de Stat în Construcţii pentru controlul calităţii lucrărilor de construcţii"]
[null,null,null,null,"cota pentru controlul statului în amenajarea teritoriului, urbanism şi pentru autorizarea lucrărilor de construcţii"]
[null,null,null,null,"prime de asigurare din sarcina autorităţii contractante"]
[null,null,null,null,"alte cheltuieli de aceeaşi natură, stabilite în condiţiile legii"]
[null,null,null,null,"cota aferentă Casei Sociale a Constructorilor"]
["5.3",null,null,null," Cheltuieli diverse si neprevazute"]
[null,null,null,null,"TOTAL DEVIZ CAPITOLUL 5",null,null,null,null,null,null,null,null,null,null,null,null,null,null,null,null,null,null,null,null,null,null,null,null,null,null,null,null,null,null,null,null,null,null,null,null,null,{"$f":"AQ67+AQ70","v":0},null,null,null,null,null,null,null,null,{"$f":"AZ67+AZ70+AZ77","v":0}]
[null,null,null,null,"VALOARE TVA aferentă cheltuielilor eligibile şi neeligibile"]
[null,null,null,null,"TOTAL DEVIZ CAPITOLUL 5 ( inclusiv TVA)",null,null,null,null,null,null,null,null,null,null,null,null,null,null,null,null,null,null,null,null,null,null,null,null,null,null,null,null,null,null,null,null,null,null,null,null,null,{"$f":"AQ78+AZ78+AQ79+AZ79","v":0}]
[]
[]
[null,null,null,null,null,null,null,"MINISTERUL AGRICULTURII ŞI DEZVOLTĂRII RURALE",null,null,null,null,null,null,null,null,null,null,null,null,null,null,null,null,null,null,null,null,null,null,null,null,null,null,null,null,null,null,null,null,null,null,"Anexa A3\nHG 907/2016"]
[]
[null,null,null,null,null,null,null,"AGENŢIA PENTRU FINANŢAREA INVESTIŢIILOR RURALE"]
[]
[]
[]
["(Titlu deviz)"]
["Deviz capitolul 2- Cheltuieli pentru asigurarea utilităţilor necesare obiectivului - EURO"]
["Nr.crt",null,null,null,"Specificaţie",null,null,null,null,null,null,null,null,null,null,null,null,null,null,null,null,null,null,null,null,null,null,null,null,null,null,null,null,null,null,null,null,null,null,null,null,null,"Valoare eligibilă",null,null,null,null,null,null,null,null,"Valoare\nneeligibilă"]
[1,null,null,null,"Alimentare cu apă"]
[2,null,null,null,"Canalizare"]
[3,null,null,null,"Alimentare cu gaze naturale"]
[4,null,null,null,"Alimentare cu agent termic"]
[5,null,null,null,"Alimentare cu energie electrică"]
[6,null,null,null,"Telecomunicaţii (telefonie, radio-tv,etc)"]
[7,null,null,null,"Drumuri de acces"]
[8,null,null,null,"Căi ferate industriale"]
[9,null,null,null,"Alte utilități"]
[null,null,null,null,"TOTAL DEVIZ CAPITOLUL 2",null,null,null,null,null,null,null,null,null,null,null,null,null,null,null,null,null,null,null,null,null,null,null,null,null,null,null,null,null,null,null,null,null,null,null,null,null,{"$f":"SUM(AQ92:AY100)","v":0},null,null,null,null,null,null,null,null,{"$f":"SUM(AZ92:BI100)","v":0}]
[null,null,null,null,"Valoare TVA aferentă cheltuielilor eligibile şi neeligibile"]
["TOTAL DEVIZ CAPITOLUL 2 (inclusiv TVA)",null,null,null,null,null,null,null,null,null,null,null,null,null,null,null,null,null,null,null,null,null,null,null,null,null,null,null,null,null,null,null,null,null,null,null,null,null,null,null,null,null,{"$f":"AQ101+AZ101+AQ102+AZ102","v":0}]
[]
[" Deviz capitolul 5 - Alte cheltuieli - EURO"]
["Nr.crt",null,null,null,"Specificaţie",null,null,null,null,null,null,null,null,null,null,null,null,null,null,null,null,null,null,null,null,null,null,null,null,null,null,null,null,null,null,null,null,null,null,null,null,null,"Valoare eligibilă",null,null,null,null,null,null,null,null,"Valoare\nneeligibilă"]
[]
["5.1 ",null,null,null,"Organizare de şantier",null,null,null,null,null,null,null,null,null,null,null,null,null,null,null,null,null,null,null,null,null,null,null,null,null,null,null,null,null,null,null,null,null,null,null,null,null,{"$f":"SUM(AQ109:AY110)","v":0},null,null,null,null,null,null,null,null,{"$f":"SUM(AZ109:BI110)","v":0}]
[null,null,null,null,"5.1.1 Lucrări de construcţii şi instalaţii aferente organizării de şantier"]
[null,null,null,null,"5.1.2 Cheltuieli conexe organizării de şantier"]
["5.2",null,null,null,"Comisioane, cote, taxe, costul creditului",null,null,null,null,null,null,null,null,null,null,null,null,null,null,null,null,null,null,null,null,null,null,null,null,null,null,null,null,null,null,null,null,null,null,null,null,null,{"$f":"SUM(AQ113:AQ116)-AQ115","v":0},null,null,null,null,null,null,null,null,{"$f":"SUM(AZ112:BI116)","v":0}]
[null,null,null,null,"5.2.1. Comisioanele şi dobânzile aferente creditului băncii finanţatoare",null,null,null,null,null,null,null,null,null,null,null,null,null,null,null,null,null,null,null,null,null,null,null,null,null,null,null,null,null,null,null,null,null,null,null,null,null,1]
[null,null,null,null,"5.2.2. Cota aferentă ISC pentru controlul calităţii lucrărilor de\nconstrucţii"]
[null,null,null,null,"5.2.3. Cota aferentă ISC pentru controlul statului în amenajarea teritoriului, urbanism şi pentru autorizarea lucrărilor de construcţii"]
[null,null,null,null,"5.2.4. Cota aferentă Casei Sociale a Constructorilor - CSC"]
[null,null,null,null,"5.2.5. Taxe pentru acorduri, avize conforme şi autorizaţia de construire/desfiinţare"]
["5.3",null,null,null," Cheltuieli diverse si neprevazute"]
["5.3",null,null,null,"Cheltuieli pentru informare și publicitate",null,null,null,null,null,null,null,null,null,null,null,null,null,null,null,null,null,null,null,null,null,null,null,null,null,null,null,null,null,null,null,null,null,null,null,null,null,0,null,null,null,null,null,null,null,null,0]
[null,null,null,null,"TOTAL DEVIZ CAPITOLUL 5",null,null,null,null,null,null,null,null,null,null,null,null,null,null,null,null,null,null,null,null,null,null,null,null,null,null,null,null,null,null,null,null,null,null,null,null,null,{"$f":"AQ108+AQ111+AQ118","v":0},null,null,null,null,null,null,null,null,{"$f":"AZ118+AZ117+AZ111+AZ108","v":0}]
[null,null,null,null,"VALOARE TVA aferentă cheltuielilor eligibile şi neeligibile"]
[null,null,null,null,"TOTAL DEVIZ CAPITOLUL 5 ( inclusiv TVA)",null,null,null,null,null,null,null,null,null,null,null,null,null,null,null,null,null,null,null,null,null,null,null,null,null,null,null,null,null,null,null,null,null,null,null,null,null,{"$f":"AQ119+AZ119+AQ120+AZ120","v":0}]